Date Incurred,Directorate,Beneficiary,Purpose,Amount,Non Recoverable VAT,Supplier Type
01/11/2018,Strategic Commissioning Enforcement and Safety,Redacted - Personal Data,PCN INCOME,265.00,0,Individuals
01/11/2018,Strategic Commissioning Enforcement and Safety,Redacted - Personal Data,PCN INCOME,265.00,0,Individuals
01/11/2018,Strategic Commissioning Adults,Abundant Life Housing Assoc,PRIVATE CONTRACTORS PAYMENT - OTHER,"2,000.00",0,Commercial Supplier
01/11/2018,Strategic Commissioning Adults,Abundant Life Housing Assoc,PRIVATE CONTRACTORS PAYMENT - OTHER,"1,114.28",0,Commercial Supplier
01/11/2018,Customer & Strategic Services Communications,Actavo Events Uk Ltd,EVENTS,"3,842.00",0,Commercial Supplier
01/11/2018,Customer & Strategic Services Communications,Actavo Events Uk Ltd,EVENTS,"1,350.00",0,Commercial Supplier
01/11/2018,Housing Revenue Account HRA,Actual Support Services Ltd,REMOVAL SERVICES,521.00,0,Commercial Supplier
01/11/2018,Housing Revenue Account HRA,Actual Support Services Ltd,REMOVAL SERVICES,521.00,0,Commercial Supplier
01/11/2018,Strategic Commissioning Adults,Advanced Building & Maintenance Services Limited,PRIVATE CONTRACTORS PAYMENT - OTHER,"4,335.25",0,CIS
01/11/2018,Strategic Commissioning CYPS,Redacted - Personal Data,IN HOUSE FOSTER CARE PLACEMENTS - PRIVATE CONTRACTORS PAYMENT,725.00,0,Direct Payments
01/11/2018,Strategic Commissioning CYPS,Redacted - Personal Data,IN HOUSE FOSTER CARE PLACEMENTS - PRIVATE CONTRACTORS PAYMENT,725.00,0,Direct Payments
01/11/2018,Strategic Commissioning Adults,Ambitions Employmnt Agency Ltd,DAYCARE - PRIVATE CONTRACTORS PAYMENT,258.09,0,Supplier
01/11/2018,Strategic Commissioning Adults,Ambitions Employmnt Agency Ltd,DAYCARE - PRIVATE CONTRACTORS PAYMENT,258.09,0,Supplier
01/11/2018,Strategic Commissioning CYPS,Angels Abode,SECTION 17 - PRIVATE CONTRACTORS PAYMENT,"1,350.00",0,Commercial Supplier
01/11/2018,oneSource - Non Shared Asset Management,Aquatronic Group Management PLC,"MAINTENANCE - EQUIPMENT, FURNITURE AND MATERIALS",459.00,0,Commercial Supplier
01/11/2018,oneSource - Non Shared Asset Management,Aquatronic Group Management PLC,"MAINTENANCE - EQUIPMENT, FURNITURE AND MATERIALS",292.00,0,Commercial Supplier
01/11/2018,Strategic Commissioning CYPS,Redacted - Personal Data,LOOKED AFTER COST OTHER,382.16,0,Foster Carers
01/11/2018,Strategic Commissioning CYPS,Redacted - Personal Data,LOOKED AFTER COST OTHER,382.16,0,Foster Carers
01/11/2018,Strategic Commissioning CYPS,Redacted - Personal Data,LOOKED AFTER COST OTHER,382.16,0,Foster Carers
01/11/2018,Strategic Commissioning CYPS,Redacted - Personal Data,LOOKED AFTER COST OTHER,382.16,0,Foster Carers
01/11/2018,oneSource - Non Shared Asset Management,Ashfords LLP,LEGAL FEES,"1,050.00",0,Legal Services
01/11/2018,oneSource - Non Shared Asset Management,Ashfords LLP,LEGAL FEES,"2,190.50",0,Legal Services
01/11/2018,oneSource - Non Shared Asset Management,Ashfords LLP,LEGAL FEES,"4,517.50",0,Legal Services
01/11/2018,Strategic Commissioning Adults,Ask Care Ltd,HOME CARE - PRIVATE CONTRACTORS PAYMENT,787.50,0,Supplier
01/11/2018,Strategic Commissioning Adults,Ask Care Ltd,HOME CARE - PRIVATE CONTRACTORS PAYMENT,984.38,0,Supplier
01/11/2018,Strategic Commissioning Adults,Ask Care Ltd,HOME CARE - PRIVATE CONTRACTORS PAYMENT,262.50,0,Supplier
01/11/2018,Strategic Commissioning Adults,Ask Care Ltd,HOME CARE - PRIVATE CONTRACTORS PAYMENT,328.13,0,Supplier
01/11/2018,Strategic Commissioning Enforcement and Safety,Askews and Holts Library Services Ltd,"BOOKS, PUBLICATIONS AND RESOURCES",429.86,0,Commercial Supplier
01/11/2018,Strategic Commissioning Adults,Aspirations Care T/A Newham House Supporting People,SUPPORTED OTHER ACCOMMODATION - PRIVATE CONTRACTORS PAYMENT,780.00,0,Supplier
01/11/2018,Strategic Commissioning Enforcement and Safety,Bavish Food And Wine,MEMBERSHIP AND SUBSCRIPTIONS,254.15,0,Supplier
01/11/2018,Strategic Commissioning Enforcement and Safety,Bavish Food And Wine,MEMBERSHIP AND SUBSCRIPTIONS,250.20,0,Supplier
01/11/2018,Strategic Commissioning CYPS,Bettertogether Limited,EQUIPMENT & ADAPTATION - PRIVATE CONTRACTORS PAYMENT,"4,820.00",0,Non Commercial Supplier
01/11/2018,Strategic Commissioning CYPS,Bettertogether Limited,SUPPORTED OTHER ACCOMMODATION - PRIVATE CONTRACTORS PAYMENT,"1,932.00",0,Non Commercial Supplier
01/11/2018,Strategic Commissioning Adults,Blakeberry Pharmacy,PAYMENT TO HEALTH AUTHORITIES,"1,071.80",0,Supplier
01/11/2018,Strategic Commissioning Adults,Bloom Procurement Services Ltd,CONSULTANCY FEES,"13,894.80",0,Commercial Supplier
01/11/2018,Regeneration and Planning Regeneration,Bloom Procurement Services Ltd,CONSULTANCY FEES,"29,750.00",0,Commercial Supplier
01/11/2018,Strategic Commissioning Adults,Bloom Procurement Services Ltd,CONSULTANCY FEES,"5,071.43",0,Commercial Supplier
01/11/2018,Financial Sustainability Financial Sustainability,Bloom Procurement Services Ltd,CONSULTANCY FEES,"14,400.00",0,Commercial Supplier
01/11/2018,Strategic Commissioning Adults,Bloom Procurement Services Ltd,CONSULTANCY FEES,380.62,0,Commercial Supplier
01/11/2018,Strategic Commissioning Adults,Bloom Procurement Services Ltd,CONSULTANCY FEES,380.62,0,Commercial Supplier
01/11/2018,Strategic Commissioning CYPS,Bloom Procurement Services Ltd,CONSULTANCY FEES,"15,052.70",0,Commercial Supplier
01/11/2018,oneSource oS ICT Services,Bloom Procurement Services Ltd,CONSULTANCY FEES,"7,980.00",0,Commercial Supplier
01/11/2018,oneSource oS ICT Services,Bloom Procurement Services Ltd,CONSULTANCY FEES,"7,840.00",0,Commercial Supplier
01/11/2018,oneSource oS ICT Services,Bloom Procurement Services Ltd,CONSULTANCY FEES,"7,000.00",0,Commercial Supplier
01/11/2018,oneSource oS Finance,Bloom Procurement Services Ltd,CONSULTANCY FEES,"13,387.50",0,Commercial Supplier
01/11/2018,oneSource oS ICT Services,Bloom Procurement Services Ltd,CONSULTANCY FEES,"5,600.00",0,Commercial Supplier
01/11/2018,Strategic Commissioning Adults,Bluebird Care (Newham),HOME CARE - PRIVATE CONTRACTORS PAYMENT,"8,253.10",0,Supplier
01/11/2018,Strategic Commissioning Adults,Bluebird Care (Newham),HOME CARE - PRIVATE CONTRACTORS PAYMENT,"3,189.82",0,Supplier
01/11/2018,Strategic Commissioning Adults,Bluebird Care (Newham),HOME CARE - PRIVATE CONTRACTORS PAYMENT,"6,795.61",0,Supplier
01/11/2018,Strategic Commissioning CYPS,Redacted - Personal Data,IN HOUSE FOSTER CARE PLACEMENTS - PRIVATE CONTRACTORS PAYMENT,450.00,0,Foster Carers
01/11/2018,Strategic Commissioning CYPS,Redacted - Personal Data,IN HOUSE FOSTER CARE PLACEMENTS - PRIVATE CONTRACTORS PAYMENT,450.00,0,Foster Carers
01/11/2018,Strategic Commissioning Adults,Boots Uk,PAYMENT TO HEALTH AUTHORITIES,834.00,0,Supplier
01/11/2018,Strategic Commissioning Adults,Boots Uk,PAYMENT TO HEALTH AUTHORITIES,"1,810.00",0,Supplier
01/11/2018,Strategic Commissioning Adults,Boots Uk,PAYMENT TO HEALTH AUTHORITIES,"1,288.90",0,Supplier
01/11/2018,Strategic Commissioning Adults,Boots Uk,PAYMENT TO HEALTH AUTHORITIES,938.00,0,Supplier
01/11/2018,Strategic Commissioning Adults,Boots Uk,PAYMENT TO HEALTH AUTHORITIES,"3,403.90",0,Supplier
01/11/2018,Strategic Commissioning Adults,Boots Uk,PAYMENT TO HEALTH AUTHORITIES,"1,346.00",0,Supplier
01/11/2018,oneSource oS ICT Services,CCS Media Limited,ICT HARDWARE,"2,136.93",0,Commercial Supplier
01/11/2018,Strategic Commissioning Community and Environment,Cavendish Media Ltd,"ADVERTISING, PUBLICITY AND MARKETING",362.88,0,Supplier
01/11/2018,oneSource - Non Shared Asset Management,Cavendish Media Ltd,"ADVERTISING, PUBLICITY AND MARKETING",887.04,0,Supplier
01/11/2018,Strategic Commissioning Adults,Central London Community Healthcare NHS Trust,PAYMENT TO HEALTH AUTHORITIES,279.94,0,NHS Bodies
01/11/2018,Strategic Commissioning Adults,Central London Community Healthcare NHS Trust,PAYMENT TO HEALTH AUTHORITIES,303.42,0,NHS Bodies
01/11/2018,Strategic Commissioning Adults,Central and North West London NHS Foundation Trust,PAYMENT TO HEALTH AUTHORITIES,436.02,0,Commercial Supplier
01/11/2018,Strategic Commissioning Adults,Central and North West London NHS Foundation Trust,PAYMENT TO HEALTH AUTHORITIES,"9,507.76",0,Commercial Supplier
01/11/2018,Strategic Commissioning Adults,Central and North West London NHS Foundation Trust,PAYMENT TO HEALTH AUTHORITIES,349.47,0,Commercial Supplier
01/11/2018,Strategic Commissioning Adults,Central and North West London NHS Foundation Trust,PAYMENT TO HEALTH AUTHORITIES,"10,892.24",0,Commercial Supplier
01/11/2018,Strategic Commissioning Adults,Central and North West London NHS Foundation Trust,PAYMENT TO HEALTH AUTHORITIES,629.67,0,Commercial Supplier
01/11/2018,Strategic Commissioning Adults,Central and North West London NHS Foundation Trust,PAYMENT TO HEALTH AUTHORITIES,452.27,0,Commercial Supplier
01/11/2018,Strategic Commissioning Adults,Chosen Care Group Ltd,HOME CARE - PRIVATE CONTRACTORS PAYMENT,"2,468.76",0,Supplier
01/11/2018,Strategic Commissioning Adults,Chosen Care Group Ltd,HOME CARE - PRIVATE CONTRACTORS PAYMENT,"2,537.52",0,Supplier
01/11/2018,Strategic Commissioning Adults,Chosen Care Group Ltd,HOME CARE - PRIVATE CONTRACTORS PAYMENT,"2,537.52",0,Supplier
01/11/2018,Strategic Commissioning Adults,Chosen Care Group Ltd,HOME CARE - PRIVATE CONTRACTORS PAYMENT,"2,537.52",0,Supplier
01/11/2018,Strategic Commissioning Adults,Chosen Care Group Ltd,HOME CARE - PRIVATE CONTRACTORS PAYMENT,378.13,0,Supplier
01/11/2018,Strategic Commissioning Adults,Chosen Care Group Ltd,HOME CARE - PRIVATE CONTRACTORS PAYMENT,"1,253.13",0,Supplier
01/11/2018,Strategic Commissioning Adults,Chosen Care Group Ltd,HOME CARE - PRIVATE CONTRACTORS PAYMENT,"2,487.52",0,Supplier
01/11/2018,Strategic Commissioning Adults,Chosen Care Group Ltd,HOME CARE - PRIVATE CONTRACTORS PAYMENT,852.50,0,Supplier
01/11/2018,Strategic Commissioning CYPS,City Heart Gloucester Limited,IN HOUSE FOSTER CARE PLACEMENTS - PRIVATE CONTRACTORS PAYMENT,"2,466.67",0,Commercial Supplier
01/11/2018,Strategic Commissioning Enforcement and Safety,Concept Clean,CLEANING SERVICES,600.00,0,Commercial Supplier
01/11/2018,oneSource - Non Shared Asset Management,Cooch & Associates,"MAINTENANCE - EQUIPMENT, FURNITURE AND MATERIALS","2,767.30",0,Supplier
01/11/2018,Strategic Commissioning Adults,Day Lewis Chemists Ltd,PAYMENT TO HEALTH AUTHORITIES,714.40,0,NHS Bodies
01/11/2018,Strategic Commissioning Adults,Day Lewis Chemists Ltd,PAYMENT TO HEALTH AUTHORITIES,355.00,0,NHS Bodies
01/11/2018,Strategic Commissioning Adults,Day Lewis Chemists Ltd,PAYMENT TO HEALTH AUTHORITIES,714.40,0,NHS Bodies
01/11/2018,Strategic Commissioning Adults,Day Lewis Chemists Ltd,PAYMENT TO HEALTH AUTHORITIES,355.00,0,NHS Bodies
01/11/2018,Strategic Commissioning CYPS,Redacted - Personal Data,IN HOUSE FOSTER CARE PLACEMENTS - PRIVATE CONTRACTORS PAYMENT,300.00,0,Foster Carers
01/11/2018,Strategic Commissioning CYPS,Redacted - Personal Data,IN HOUSE FOSTER CARE PLACEMENTS - PRIVATE CONTRACTORS PAYMENT,300.00,0,Foster Carers
01/11/2018,Strategic Commissioning CYPS,Redacted - Personal Data,IN HOUSE FOSTER CARE PLACEMENTS - PRIVATE CONTRACTORS PAYMENT,300.00,0,Foster Carers
01/11/2018,Strategic Commissioning CYPS,Redacted - Personal Data,IN HOUSE FOSTER CARE PLACEMENTS - PRIVATE CONTRACTORS PAYMENT,300.00,0,Foster Carers
01/11/2018,Strategic Commissioning CYPS,Durham County Council,SECURE PLACEMENTS - PRIVATE CONTRACTORS PAYMENT,"33,150.00",0,Local Authority Services
01/11/2018,Strategic Commissioning CYPS,Durham County Council,SECURE PLACEMENTS - PRIVATE CONTRACTORS PAYMENT,"30,845.00",0,Local Authority Services
01/11/2018,Strategic Commissioning CYPS,Durham County Council,SECURE PLACEMENTS - PRIVATE CONTRACTORS PAYMENT,"29,850.00",0,Local Authority Services
01/11/2018,Strategic Commissioning CYPS,Durham County Council,SECURE PLACEMENTS - PRIVATE CONTRACTORS PAYMENT,"23,270.00",0,Local Authority Services
01/11/2018,Strategic Commissioning CYPS,East London Early Years And Schools Partnership,SCHOOLS - TRANSFER PAYMENT,"38,943.20",0,Individuals
01/11/2018,Strategic Commissioning Adults,East London Nhs Foundation Tst,PAYMENT TO HEALTH AUTHORITIES,"16,629.28",0,Supplier
01/11/2018,Strategic Commissioning Community and Environment,Eleanor Pearce,ARTS AND LEISURE COSTS,500.00,0,Non Commercial Supplier
01/11/2018,Strategic Commissioning Adults,Ellingham Employment Services,DAYCARE - PRIVATE CONTRACTORS PAYMENT,480.00,0,Supplier
01/11/2018,Strategic Commissioning Adults,Ellingham Employment Services,DAYCARE - PRIVATE CONTRACTORS PAYMENT,408.00,0,Supplier
01/11/2018,Strategic Commissioning Adults,Ellingham Employment Services,DAYCARE - PRIVATE CONTRACTORS PAYMENT,"1,000.00",0,Supplier
01/11/2018,Strategic Commissioning Adults,Ellingham Employment Services,DAYCARE - PRIVATE CONTRACTORS PAYMENT,434.24,0,Supplier
01/11/2018,Strategic Commissioning Adults,Ellingham Employment Services,DAYCARE - PRIVATE CONTRACTORS PAYMENT,480.00,0,Supplier
01/11/2018,Strategic Commissioning Adults,Ellingham Employment Services,DAYCARE - PRIVATE CONTRACTORS PAYMENT,"1,602.56",0,Supplier
01/11/2018,oneSource - Non Shared Asset Management,Envirobuild Solutions Ltd,CONSULTANCY FEES,"2,650.00",0,Supplier
01/11/2018,oneSource - Non Shared Asset Management,Every Project Counts Ltd (Epc),"MAINTENANCE - EQUIPMENT, FURNITURE AND MATERIALS",450.00,0,CIS
01/11/2018,oneSource oS Exchequer & Transactional Services,FISCAL Technologies Ltd,ICT SOFTWARE,"47,809.00",0,Commercial Supplier
01/11/2018,Strategic Commissioning CYPS,Redacted - Personal Data,IN HOUSE FOSTER CARE PLACEMENTS - PRIVATE CONTRACTORS PAYMENT,345.00,0,Foster Carers
01/11/2018,Strategic Commissioning CYPS,Redacted - Personal Data,IN HOUSE FOSTER CARE PLACEMENTS - PRIVATE CONTRACTORS PAYMENT,345.00,0,Foster Carers
01/11/2018,Strategic Commissioning CYPS,Redacted - Personal Data,IN HOUSE FOSTER CARE PLACEMENTS - PRIVATE CONTRACTORS PAYMENT,542.86,0,Foster Carers
01/11/2018,oneSource - Non Shared Legal & Democratic,Financial Data Management PLC,PRINTING,474.78,0,Commercial Supplier
01/11/2018,oneSource - Non Shared Legal & Democratic,Financial Data Management PLC,PRINTING,"4,244.45",0,Commercial Supplier
01/11/2018,Strategic Commissioning CYPS,Forest Care Services Ltd,CLIENT SUPPORT - THIRD PARTY,"1,200.00",0,Non Commercial Supplier
01/11/2018,Strategic Commissioning CYPS,Forest Care Services Ltd,CLIENT SUPPORT - THIRD PARTY,"1,200.00",0,Non Commercial Supplier
01/11/2018,Strategic Commissioning CYPS,Forest Care Services Ltd,CLIENT SUPPORT - THIRD PARTY,"1,107.67",0,Non Commercial Supplier
01/11/2018,Strategic Commissioning CYPS,Forest Care Services Ltd,CLIENT SUPPORT - THIRD PARTY,"1,200.00",0,Non Commercial Supplier
01/11/2018,Strategic Commissioning CYPS,Forest Care Services Ltd,CLIENT SUPPORT - THIRD PARTY,"1,200.00",0,Non Commercial Supplier
01/11/2018,Strategic Commissioning CYPS,Forest Care Services Ltd,CLIENT SUPPORT - THIRD PARTY,"1,200.00",0,Non Commercial Supplier
01/11/2018,Strategic Commissioning CYPS,Forest Care Services Ltd,CLIENT SUPPORT - THIRD PARTY,"1,200.00",0,Non Commercial Supplier
01/11/2018,Strategic Commissioning CYPS,Forest Care Services Ltd,CLIENT SUPPORT - THIRD PARTY,"1,200.00",0,Non Commercial Supplier
01/11/2018,Strategic Commissioning CYPS,Forest Care Services Ltd,CLIENT SUPPORT - THIRD PARTY,"1,200.00",0,Non Commercial Supplier
01/11/2018,Strategic Commissioning CYPS,Forest Care Services Ltd,CLIENT SUPPORT - THIRD PARTY,"1,200.00",0,Non Commercial Supplier
01/11/2018,Strategic Commissioning CYPS,Forest Care Services Ltd,CLIENT SUPPORT - THIRD PARTY,"1,200.00",0,Non Commercial Supplier
01/11/2018,Strategic Commissioning CYPS,Redacted - Personal Data,IN HOUSE FOSTER CARE PLACEMENTS - PRIVATE CONTRACTORS PAYMENT,"4,105.51",0,Commercial Supplier
01/11/2018,Strategic Commissioning Adults,Genesis Housing Association,HOME CARE - PRIVATE CONTRACTORS PAYMENT,"8,502.87",0,Commercial Supplier
01/11/2018,Strategic Commissioning Adults,Genesis Housing Association,RESPITE CARE - PRIVATE CONTRACTORS PAYMENT,441.60,0,Commercial Supplier
01/11/2018,Strategic Commissioning Adults,Genesis Housing Association,DAYCARE - PRIVATE CONTRACTORS PAYMENT,"1,354.82",0,Commercial Supplier
01/11/2018,Strategic Commissioning CYPS,Redacted - Personal Data,IN HOUSE FOSTER CARE PLACEMENTS - PRIVATE CONTRACTORS PAYMENT,400.00,0,Individuals
01/11/2018,Strategic Commissioning CYPS,Redacted - Personal Data,IN HOUSE FOSTER CARE PLACEMENTS - PRIVATE CONTRACTORS PAYMENT,400.00,0,Individuals
01/11/2018,Strategic Commissioning Adults,Glen Road Medical Centre,PAYMENT TO HEALTH AUTHORITIES,684.00,0,Supplier
01/11/2018,Strategic Commissioning Adults,Glen Road Medical Centre,PAYMENT TO HEALTH AUTHORITIES,379.89,0,Supplier
01/11/2018,Strategic Commissioning Adults,Golden Key Support Ltd,HOME CARE - PRIVATE CONTRACTORS PAYMENT,371.00,0,Commercial Supplier
01/11/2018,Strategic Commissioning Adults,Golden Key Support Ltd,HOME CARE - PRIVATE CONTRACTORS PAYMENT,"1,205.76",0,Commercial Supplier
01/11/2018,Strategic Commissioning Enforcement and Safety,HM Prison & Probation Service,PRIVATE CONTRACTORS PAYMENT - OTHER,"4,347.00",0,Non Commercial Supplier
01/11/2018,Strategic Commissioning Enforcement and Safety,HM Prison & Probation Service,PRIVATE CONTRACTORS PAYMENT - OTHER,"5,859.00",0,Non Commercial Supplier
01/11/2018,Strategic Commissioning Enforcement and Safety,HM Prison & Probation Service,PRIVATE CONTRACTORS PAYMENT - OTHER,"2,835.00",0,Non Commercial Supplier
01/11/2018,Strategic Commissioning Enforcement and Safety,HM Prison & Probation Service,PRIVATE CONTRACTORS PAYMENT - OTHER,"2,835.00",0,Non Commercial Supplier
01/11/2018,Strategic Commissioning Enforcement and Safety,HM Prison & Probation Service,PRIVATE CONTRACTORS PAYMENT - OTHER,"4,536.00",0,Non Commercial Supplier
01/11/2018,Strategic Commissioning Enforcement and Safety,HM Prison & Probation Service,PRIVATE CONTRACTORS PAYMENT - OTHER,"4,347.00",0,Non Commercial Supplier
01/11/2018,Strategic Commissioning Enforcement and Safety,HM Prison & Probation Service,PRIVATE CONTRACTORS PAYMENT - OTHER,"5,670.00",0,Non Commercial Supplier
01/11/2018,Strategic Commissioning Enforcement and Safety,HM Prison & Probation Service,PRIVATE CONTRACTORS PAYMENT - OTHER,"4,347.00",0,Non Commercial Supplier
01/11/2018,Strategic Commissioning Enforcement and Safety,HM Prison & Probation Service,PRIVATE CONTRACTORS PAYMENT - OTHER,"5,921.00",0,Non Commercial Supplier
01/11/2018,oneSource - Non Shared Asset Management,Harding Bros Electrical Ltd,BUILDING ALTERATIONS AND MATERIALS,726.10,0,CIS
01/11/2018,Strategic Commissioning Community and Environment,Harvest Energy Ltd,TRANSPORT FUEL,"19,123.43",0,Commercial Supplier
01/11/2018,Strategic Commissioning Adults,Help In Newham Ltd,HOME CARE - PRIVATE CONTRACTORS PAYMENT,"1,410.75",0,Supplier
01/11/2018,Strategic Commissioning Adults,Help In Newham Ltd,HOME CARE - PRIVATE CONTRACTORS PAYMENT,540.00,0,Supplier
01/11/2018,Strategic Commissioning Adults,Help In Newham Ltd,HOME CARE - PRIVATE CONTRACTORS PAYMENT,486.00,0,Supplier
01/11/2018,Strategic Commissioning Adults,Help In Newham Ltd,HOME CARE - PRIVATE CONTRACTORS PAYMENT,378.00,0,Supplier
01/11/2018,Strategic Commissioning Adults,Help In Newham Ltd,HOME CARE - PRIVATE CONTRACTORS PAYMENT,378.00,0,Supplier
01/11/2018,Strategic Commissioning Adults,Helping Hands Home Care,HOME CARE - PRIVATE CONTRACTORS PAYMENT,"4,780.00",0,Non Commercial Supplier
01/11/2018,Strategic Commissioning Adults,Helping Hands Home Care,HOME CARE - PRIVATE CONTRACTORS PAYMENT,"4,780.00",0,Non Commercial Supplier
01/11/2018,Strategic Commissioning CYPS,Hestia Housing And Support,LOOKED AFTER COST OTHER,405.05,0,Foster Carers
01/11/2018,Strategic Commissioning CYPS,Hestia Housing And Support,LOOKED AFTER COST OTHER,"1,320.00",0,Foster Carers
01/11/2018,Strategic Commissioning CYPS,Hestia Housing And Support,LOOKED AFTER COST OTHER,263.05,0,Foster Carers
01/11/2018,Strategic Commissioning CYPS,Hestia Housing And Support,LOOKED AFTER COST OTHER,263.05,0,Foster Carers
01/11/2018,Strategic Commissioning CYPS,Hestia Housing And Support,LOOKED AFTER COST OTHER,264.00,0,Foster Carers
01/11/2018,Strategic Commissioning CYPS,Hestia Housing And Support,LOOKED AFTER COST OTHER,263.05,0,Foster Carers
01/11/2018,Strategic Commissioning CYPS,Hestia Housing And Support,LOOKED AFTER COST OTHER,264.00,0,Foster Carers
01/11/2018,Strategic Commissioning CYPS,Hestia Housing And Support,LOOKED AFTER COST OTHER,263.05,0,Foster Carers
01/11/2018,Strategic Commissioning CYPS,Hestia Housing And Support,LOOKED AFTER COST OTHER,405.05,0,Foster Carers
01/11/2018,Strategic Commissioning CYPS,Hestia Housing And Support,LOOKED AFTER COST OTHER,595.25,0,Foster Carers
01/11/2018,Strategic Commissioning CYPS,Hestia Housing And Support,LOOKED AFTER COST OTHER,405.05,0,Foster Carers
01/11/2018,Strategic Commissioning CYPS,Hestia Housing And Support,LOOKED AFTER COST OTHER,267.30,0,Foster Carers
01/11/2018,Strategic Commissioning CYPS,Hestia Housing And Support,LOOKED AFTER COST OTHER,595.25,0,Foster Carers
01/11/2018,Strategic Commissioning CYPS,Hestia Housing And Support,LOOKED AFTER COST OTHER,267.30,0,Foster Carers
01/11/2018,Strategic Commissioning CYPS,Hestia Housing And Support,LOOKED AFTER COST OTHER,267.30,0,Foster Carers
01/11/2018,Strategic Commissioning CYPS,Hestia Housing And Support,LOOKED AFTER COST OTHER,267.30,0,Foster Carers
01/11/2018,Strategic Commissioning CYPS,Hestia Housing And Support,LOOKED AFTER COST OTHER,595.25,0,Foster Carers
01/11/2018,Strategic Commissioning CYPS,Hestia Housing And Support,LOOKED AFTER COST OTHER,595.25,0,Foster Carers
01/11/2018,Strategic Commissioning CYPS,Hestia Housing And Support,LOOKED AFTER COST OTHER,264.00,0,Foster Carers
01/11/2018,Strategic Commissioning CYPS,Hestia Housing And Support,LOOKED AFTER COST OTHER,405.05,0,Foster Carers
01/11/2018,Strategic Commissioning Adults,Hospiva Care & Associates Agency Ltd,HOME CARE - PRIVATE CONTRACTORS PAYMENT,"2,480.04",0,Commercial Supplier
01/11/2018,oneSource oS Legal & Governance,ILN Ltd,LEGAL FEES,275.00,0,Commercial Supplier
01/11/2018,oneSource oS Legal & Governance,ILN Ltd,LEGAL FEES,282.00,0,Commercial Supplier
01/11/2018,oneSource oS Legal & Governance,ILN Ltd,LEGAL FEES,"1,000.00",0,Commercial Supplier
01/11/2018,Strategic Commissioning CYPS,Integrated Fostering Services,RESIDENTIAL PLACEMENTS - PRIVATE CONTRACTORS PAYMENT,"3,080.00",0,Commercial Supplier
01/11/2018,Housing Revenue Account HRA,J.A. Steel & Son Ltd,COMPENSATION,818.92,0,Commercial Supplier
01/11/2018,Strategic Commissioning Adults,Jetsol Pharmacy,PAYMENT TO HEALTH AUTHORITIES,"2,559.30",0,Supplier
01/11/2018,Strategic Commissioning Adults,Jetsol Pharmacy,PAYMENT TO HEALTH AUTHORITIES,406.00,0,Supplier
01/11/2018,Strategic Commissioning CYPS,Kasper Fostering,RESIDENTIAL PLACEMENTS - PRIVATE CONTRACTORS PAYMENT,"5,757.01",0,Commercial Supplier
01/11/2018,Strategic Commissioning CYPS,Kasper Fostering,RESIDENTIAL PLACEMENTS - PRIVATE CONTRACTORS PAYMENT,"5,571.30",0,Commercial Supplier
01/11/2018,Strategic Commissioning CYPS,Kasper Fostering,RESIDENTIAL PLACEMENTS - PRIVATE CONTRACTORS PAYMENT,"5,571.30",0,Commercial Supplier
01/11/2018,Strategic Commissioning CYPS,Kasper Fostering,RESIDENTIAL PLACEMENTS - PRIVATE CONTRACTORS PAYMENT,"5,757.01",0,Commercial Supplier
01/11/2018,Strategic Commissioning CYPS,Kasper Fostering,RESIDENTIAL PLACEMENTS - PRIVATE CONTRACTORS PAYMENT,"5,757.01",0,Commercial Supplier
01/11/2018,Strategic Commissioning CYPS,Kent County Council (Kcs),GAS,325.52,0,Local Authority Services
01/11/2018,Strategic Commissioning CYPS,Redacted - Personal Data,IN HOUSE FOSTER CARE PLACEMENTS - PRIVATE CONTRACTORS PAYMENT,275.00,0,Foster Carers
01/11/2018,Strategic Commissioning CYPS,Redacted - Personal Data,IN HOUSE FOSTER CARE PLACEMENTS - PRIVATE CONTRACTORS PAYMENT,275.00,0,Foster Carers
01/11/2018,Strategic Commissioning Adults,Kings College Hospital Nhs,PROFESSIONAL SERVICES - GENERAL,728.86,0,Commercial Supplier
01/11/2018,Strategic Commissioning Adults,Kings College Hospital Nhs,PROFESSIONAL SERVICES - GENERAL,"1,197.00",0,Commercial Supplier
01/11/2018,Strategic Commissioning Adults,Kings College Hospital Nhs,PROFESSIONAL SERVICES - GENERAL,"1,209.00",0,Commercial Supplier
01/11/2018,oneSource oS ICT Services,Kovai Ltd,ICT SOFTWARE,"9,576.00",0,Commercial Supplier
01/11/2018,Housing Revenue Account HRA,L M Installations Ltd,RESPONSIVE REPAIRS - MECHANICAL AND ELECTRICAL,335.00,0,CIS
01/11/2018,Housing Revenue Account HRA,L M Installations Ltd,RESPONSIVE REPAIRS - MECHANICAL AND ELECTRICAL,335.00,0,CIS
01/11/2018,Housing Revenue Account HRA,L M Installations Ltd,RESPONSIVE REPAIRS - MECHANICAL AND ELECTRICAL,335.00,0,CIS
01/11/2018,Housing Revenue Account HRA,L M Installations Ltd,RESPONSIVE REPAIRS - MECHANICAL AND ELECTRICAL,335.00,0,CIS
01/11/2018,Housing Revenue Account HRA,L M Installations Ltd,RESPONSIVE REPAIRS - MECHANICAL AND ELECTRICAL,335.00,0,CIS
01/11/2018,Housing Revenue Account HRA,L M Installations Ltd,RESPONSIVE REPAIRS - MECHANICAL AND ELECTRICAL,335.00,0,CIS
01/11/2018,oneSource - Non Shared Asset Management,L M Installations Ltd,BUILDING ALTERATIONS AND MATERIALS,365.90,0,CIS
01/11/2018,oneSource - Non Shared Asset Management,L M Installations Ltd,BUILDING ALTERATIONS AND MATERIALS,283.48,0,CIS
01/11/2018,Strategic Commissioning Adults,L&Q Living,SUPPORTED OTHER ACCOMMODATION - PRIVATE CONTRACTORS PAYMENT,"3,141.60",0,Supplier
01/11/2018,Strategic Commissioning Adults,L&Q Living,SUPPORTED OTHER ACCOMMODATION - PRIVATE CONTRACTORS PAYMENT,"3,141.60",0,Supplier
01/11/2018,Strategic Commissioning CYPS,LBN Oliver Thomas School,PROFESSIONAL SERVICES - GENERAL,"1,600.00",0,Supplier
01/11/2018,Strategic Commissioning CYPS,Lampwick Care Ltd,SUPPORTED OTHER ACCOMMODATION - PRIVATE CONTRACTORS PAYMENT,"1,900.00",0,Supplier
01/11/2018,Strategic Commissioning Adults,Laville Ltd T/A Britannia Pharmacy,PAYMENT TO HEALTH AUTHORITIES,466.00,0,Supplier
01/11/2018,Strategic Commissioning Adults,Lewisham & Greenwich NHS Trust,PAYMENT TO HEALTH AUTHORITIES,"1,340.37",0,NHS Bodies
01/11/2018,Strategic Commissioning Adults,Lewisham & Greenwich NHS Trust,PAYMENT TO HEALTH AUTHORITIES,631.79,0,NHS Bodies
01/11/2018,Strategic Commissioning Adults,Lewisham & Greenwich NHS Trust,PAYMENT TO HEALTH AUTHORITIES,"1,054.97",0,NHS Bodies
01/11/2018,Strategic Commissioning Adults,London Borough of Havering,DAYCARE - PRIVATE CONTRACTORS PAYMENT,435.00,0,Local Authority Services
01/11/2018,Regeneration and Planning Regeneration,London Legacy Development Corporation,"MAINTENANCE - EQUIPMENT, FURNITURE AND MATERIALS","15,282.15",0,Commercial Supplier
01/11/2018,Strategic Commissioning CYPS,Redacted - Personal Data,IN HOUSE FOSTER CARE PLACEMENTS - PRIVATE CONTRACTORS PAYMENT,350.00,0,Individuals
01/11/2018,Strategic Commissioning CYPS,Redacted - Personal Data,IN HOUSE FOSTER CARE PLACEMENTS - PRIVATE CONTRACTORS PAYMENT,350.00,0,Individuals
01/11/2018,Strategic Commissioning Adults,MCCH Society Ltd,RESIDENTIAL PLACEMENTS - PRIVATE CONTRACTORS PAYMENT,"5,201.52",0,Commercial Supplier
01/11/2018,Strategic Commissioning Adults,Mal Chem Pharmacy,PAYMENT TO HEALTH AUTHORITIES,"1,559.60",0,Supplier
01/11/2018,Strategic Commissioning Adults,Mansons Chemist,PAYMENT TO HEALTH AUTHORITIES,372.00,0,Supplier
01/11/2018,Strategic Commissioning Adults,Mayors Healthcare Limited,PAYMENT TO HEALTH AUTHORITIES,"1,448.60",0,Supplier
01/11/2018,Strategic Commissioning Adults,Mayors Healthcare Limited,PAYMENT TO HEALTH AUTHORITIES,"1,314.00",0,Supplier
01/11/2018,Strategic Commissioning CYPS,Mccreadie Hotel,SECTION 17 - PRIVATE CONTRACTORS PAYMENT,275.00,0,Supplier
01/11/2018,Strategic Commissioning CYPS,Redacted - Personal Data,LOOKED AFTER COST OTHER,384.00,0,Foster Carers
01/11/2018,Strategic Commissioning CYPS,Redacted - Personal Data,LOOKED AFTER COST OTHER,384.00,0,Foster Carers
01/11/2018,Strategic Commissioning CYPS,Redacted - Personal Data,LOOKED AFTER COST OTHER,384.00,0,Foster Carers
01/11/2018,Strategic Commissioning CYPS,Redacted - Personal Data,LOOKED AFTER COST OTHER,384.00,0,Foster Carers
01/11/2018,oneSource oS Finance,Morgan Law Partners LLP,AGENCY STAFF,"6,166.88",0,Commercial Supplier
01/11/2018,oneSource oS Finance,Morgan Law Partners LLP,AGENCY STAFF,"3,162.50",0,Commercial Supplier
01/11/2018,Dedicated Schools Budget Dedicated Schools Budget,Mulberry School for Girls,PROFESSIONAL SERVICES - GENERAL,"9,032.00",0,Local Authority Services
01/11/2018,Strategic Commissioning Adults,Munros Pharmacy,PAYMENT TO HEALTH AUTHORITIES,"1,045.20",0,Commercial Supplier
01/11/2018,Strategic Commissioning Adults,Munros Pharmacy,PAYMENT TO HEALTH AUTHORITIES,"1,519.00",0,Commercial Supplier
01/11/2018,Strategic Commissioning Adults,Munros Pharmacy,PAYMENT TO HEALTH AUTHORITIES,"1,045.20",0,Commercial Supplier
01/11/2018,Strategic Commissioning Adults,Munros Pharmacy,PAYMENT TO HEALTH AUTHORITIES,"1,519.00",0,Commercial Supplier
01/11/2018,Strategic Commissioning Adults,NHS Supply Chain,SPECIALIST EQUIPMENT FOR SERVICE PROVISION,"3,284.87",0,NHS Bodies
01/11/2018,Strategic Commissioning Adults,NHS Supply Chain,SPECIALIST EQUIPMENT FOR SERVICE PROVISION,300.75,0,NHS Bodies
01/11/2018,Strategic Commissioning CYPS,NPower,ELECTRICITY,424.76,0,Commercial Supplier
01/11/2018,Strategic Commissioning CYPS,NPower,ELECTRICITY,"1,126.39",0,Commercial Supplier
01/11/2018,Strategic Commissioning CYPS,NPower,ELECTRICITY,"1,386.69",0,Commercial Supplier
01/11/2018,Strategic Commissioning Enforcement and Safety,NPower,ELECTRICITY,566.16,0,Commercial Supplier
01/11/2018,Strategic Commissioning Enforcement and Safety,NPower,ELECTRICITY,787.10,0,Commercial Supplier
01/11/2018,Strategic Commissioning CYPS,National Fostering Agency,RESIDENTIAL PLACEMENTS - PRIVATE CONTRACTORS PAYMENT,"1,902.60",0,Commercial Supplier
01/11/2018,oneSource - Non Shared Asset Management,Newham Learning Partnership (Project Co) Limited,"MAINTENANCE - EQUIPMENT, FURNITURE AND MATERIALS","365,925.23",0,Supplier
01/11/2018,oneSource - Non Shared Asset Management,Newham Learning Partnership (Project Co) Limited,"MAINTENANCE - EQUIPMENT, FURNITURE AND MATERIALS","17,057.00",0,Supplier
01/11/2018,oneSource - Non Shared Asset Management,Newham Learning Partnership (Project Co) Limited,"MAINTENANCE - EQUIPMENT, FURNITURE AND MATERIALS","294,835.57",0,Supplier
01/11/2018,oneSource - Non Shared Asset Management,Newham Learning Partnership (Project Co) Limited,"MAINTENANCE - EQUIPMENT, FURNITURE AND MATERIALS","25,544.00",0,Supplier
01/11/2018,Strategic Commissioning CYPS,Nexus Fostering Ltd,RESIDENTIAL PLACEMENTS - PRIVATE CONTRACTORS PAYMENT,"3,446.80",0,Non Commercial Supplier
01/11/2018,Strategic Commissioning CYPS,Redacted - Personal Data,IN HOUSE FOSTER CARE PLACEMENTS - PRIVATE CONTRACTORS PAYMENT,300.00,0,Individuals
01/11/2018,Strategic Commissioning CYPS,Redacted - Personal Data,IN HOUSE FOSTER CARE PLACEMENTS - PRIVATE CONTRACTORS PAYMENT,300.00,0,Individuals
01/11/2018,Strategic Commissioning Community and Environment,Northgate Public Services (UK) Limited,ICT SOFTWARE,"21,000.00",0,Commercial Supplier
01/11/2018,Strategic Commissioning Adults,Nottingham University Hospitals Nhs Trust.,PAYMENT TO HEALTH AUTHORITIES,351.25,0,Supplier
01/11/2018,Strategic Commissioning Enforcement and Safety,Oakley Adventure Ltd,PROFESSIONAL SERVICES - GENERAL,"2,950.00",0,Supplier
01/11/2018,Strategic Commissioning CYPS,Odgers Interim,AGENCY STAFF,"21,251.73",0,Commercial Supplier
01/11/2018,oneSource - Non Shared Asset Management,Office Depot UK Ltd,STATIONERY,"3,314.10",0,Commercial Supplier
01/11/2018,oneSource - Non Shared Asset Management,Office Depot UK Ltd,STATIONERY,"1,939.80",0,Commercial Supplier
01/11/2018,Customer & Strategic Services Public Policy and Research,Opinion Research Services Ltd,"ADVERTISING, PUBLICITY AND MARKETING","22,200.00",0,Commercial Supplier
01/11/2018,Strategic Commissioning CYPS,Panoramic Associates Ltd,AGENCY STAFF,"1,500.00",0,Commercial Supplier
01/11/2018,Strategic Commissioning CYPS,Panoramic Associates Ltd,AGENCY STAFF,"1,400.00",0,Commercial Supplier
01/11/2018,Strategic Commissioning CYPS,Panoramic Associates Ltd,AGENCY STAFF,"1,225.00",0,Commercial Supplier
01/11/2018,Strategic Commissioning CYPS,Panoramic Associates Ltd,AGENCY STAFF,"1,050.00",0,Commercial Supplier
01/11/2018,Strategic Commissioning CYPS,Panoramic Associates Ltd,AGENCY STAFF,"1,750.00",0,Commercial Supplier
01/11/2018,Strategic Commissioning CYPS,Panoramic Associates Ltd,AGENCY STAFF,"1,400.00",0,Commercial Supplier
01/11/2018,Strategic Commissioning CYPS,Panoramic Associates Ltd,AGENCY STAFF,"1,137.50",0,Commercial Supplier
01/11/2018,Strategic Commissioning CYPS,Panoramic Associates Ltd,AGENCY STAFF,"5,700.00",0,Commercial Supplier
01/11/2018,Strategic Commissioning CYPS,Panoramic Associates Ltd,AGENCY STAFF,"6,650.00",0,Commercial Supplier
01/11/2018,Strategic Commissioning CYPS,Panoramic Associates Ltd,AGENCY STAFF,"1,400.00",0,Commercial Supplier
01/11/2018,Strategic Commissioning CYPS,Panoramic Associates Ltd,AGENCY STAFF,"1,400.00",0,Commercial Supplier
01/11/2018,Strategic Commissioning CYPS,Panoramic Associates Ltd,AGENCY STAFF,"1,400.00",0,Commercial Supplier
01/11/2018,Strategic Commissioning CYPS,Panoramic Associates Ltd,AGENCY STAFF,"3,500.00",0,Commercial Supplier
01/11/2018,Strategic Commissioning CYPS,Panoramic Associates Ltd,AGENCY STAFF,"3,000.00",0,Commercial Supplier
01/11/2018,Strategic Commissioning CYPS,Panoramic Associates Ltd,AGENCY STAFF,"4,500.00",0,Commercial Supplier
01/11/2018,Strategic Commissioning CYPS,Panoramic Associates Ltd,AGENCY STAFF,"7,000.00",0,Commercial Supplier
01/11/2018,Strategic Commissioning CYPS,Panoramic Associates Ltd,AGENCY STAFF,"1,400.00",0,Commercial Supplier
01/11/2018,Strategic Commissioning CYPS,Panoramic Associates Ltd,AGENCY STAFF,"1,400.00",0,Commercial Supplier
01/11/2018,Strategic Commissioning CYPS,Panoramic Associates Ltd,AGENCY STAFF,"1,750.00",0,Commercial Supplier
01/11/2018,Strategic Commissioning CYPS,Redacted - Personal Data,LOOKED AFTER COST OTHER,400.00,0,Foster Carers
01/11/2018,Strategic Commissioning Adults,Pathway Analytics,PAYMENT TO HEALTH AUTHORITIES,950.00,0,Commercial Supplier
01/11/2018,Strategic Commissioning CYPS,Perdeep Gill,PROFESSIONAL SERVICES - GENERAL,"1,100.00",0,Supplier
01/11/2018,Strategic Commissioning CYPS,Permanent Futures Ltd,CONSULTANCY FEES,"2,750.00",0,Commercial Supplier
01/11/2018,Strategic Commissioning CYPS,Permanent Futures Ltd,CONSULTANCY FEES,"2,250.00",0,Commercial Supplier
01/11/2018,Strategic Commissioning CYPS,Permanent Futures Ltd,CONSULTANCY FEES,"1,600.00",0,Commercial Supplier
01/11/2018,oneSource - Non Shared Asset Management,Premier Interlink Waco Uk Ltd,PRIVATE CONTRACTORS PAYMENT - OTHER,"1,275.00",0,CIS
01/11/2018,Strategic Commissioning Adults,Queen Elizabeths Foundation,RESIDENTIAL PLACEMENTS - PRIVATE CONTRACTORS PAYMENT,"5,727.12",0,Non Commercial Supplier
01/11/2018,Strategic Commissioning Adults,RSM Top Jobs Ltd,HOME CARE - PRIVATE CONTRACTORS PAYMENT,"1,662.52",0,Commercial Supplier
01/11/2018,Strategic Commissioning Adults,Rattan Pharmacy,PAYMENT TO HEALTH AUTHORITIES,655.10,0,Commercial Supplier
01/11/2018,Strategic Commissioning Adults,Redspot Homecare (Contracts) Limited,HOME CARE - PRIVATE CONTRACTORS PAYMENT,"1,763.16",0,Supplier
01/11/2018,Strategic Commissioning Adults,Redspot Homecare (Contracts) Limited,HOME CARE - PRIVATE CONTRACTORS PAYMENT,"1,763.16",0,Supplier
01/11/2018,Strategic Commissioning CYPS,Romi Bowen t/a Christ Bull Ltd,STAFF DEVELOPMENT AND TRAINING,400.00,0,Commercial Supplier
01/11/2018,oneSource - Non Shared Asset Management,Royal Mail Group Plc,POSTAGE AND COURIER SERVICES,"1,574.62",0,Commercial Supplier
01/11/2018,Strategic Commissioning Adults,S & A Pharmacy Ltd,PAYMENT TO HEALTH AUTHORITIES,735.30,0,Supplier
01/11/2018,Strategic Commissioning CYPS,Redacted - Personal Data,LOOKED AFTER COST OTHER,280.50,0,Foster Carers
01/11/2018,Strategic Commissioning CYPS,Redacted - Personal Data,LOOKED AFTER COST OTHER,280.50,0,Foster Carers
01/11/2018,Strategic Commissioning CYPS,Redacted - Personal Data,LOOKED AFTER COST OTHER,280.50,0,Foster Carers
01/11/2018,Strategic Commissioning CYPS,Redacted - Personal Data,LOOKED AFTER COST OTHER,280.50,0,Foster Carers
01/11/2018,Strategic Commissioning CYPS,Redacted - Personal Data,LOOKED AFTER COST OTHER,405.19,0,Foster Carers
01/11/2018,Strategic Commissioning CYPS,Redacted - Personal Data,LOOKED AFTER COST OTHER,405.19,0,Foster Carers
01/11/2018,Strategic Commissioning CYPS,Redacted - Personal Data,LOOKED AFTER COST OTHER,405.19,0,Foster Carers
01/11/2018,Strategic Commissioning CYPS,Redacted - Personal Data,LOOKED AFTER COST OTHER,"1,471.54",0,Foster Carers
01/11/2018,Strategic Commissioning CYPS,Redacted - Personal Data,LOOKED AFTER COST OTHER,"1,471.54",0,Foster Carers
01/11/2018,Strategic Commissioning CYPS,Redacted - Personal Data,LOOKED AFTER COST OTHER,"1,471.54",0,Foster Carers
01/11/2018,Strategic Commissioning CYPS,Redacted - Personal Data,LOOKED AFTER COST OTHER,"1,471.54",0,Foster Carers
01/11/2018,Strategic Commissioning CYPS,Redacted - Personal Data,LOOKED AFTER COST OTHER,405.19,0,Foster Carers
01/11/2018,Strategic Commissioning Community and Environment,Smart Platform Rental Ltd,VEHICLE HIRE,375.00,0,Commercial Supplier
01/11/2018,Strategic Commissioning Community and Environment,Smart Platform Rental Ltd,VEHICLE HIRE,375.00,0,Commercial Supplier
01/11/2018,oneSource oS Finance,Socitm Ltd,ICT MAINTENANCE AND SUPPORT,"7,200.00",0,Commercial Supplier
01/11/2018,Strategic Commissioning CYPS,Redacted - Personal Data,IN HOUSE FOSTER CARE PLACEMENTS - PRIVATE CONTRACTORS PAYMENT,400.00,0,Individuals
01/11/2018,Strategic Commissioning CYPS,Redacted - Personal Data,IN HOUSE FOSTER CARE PLACEMENTS - PRIVATE CONTRACTORS PAYMENT,400.00,0,Individuals
01/11/2018,Housing Revenue Account HRA,Stannah Lift Services Ltd,RESPONSIVE REPAIRS - MECHANICAL AND ELECTRICAL,331.41,0,Non Commercial Supplier
01/11/2018,Housing Revenue Account HRA,Stannah Lift Services Ltd,RESPONSIVE REPAIRS - MECHANICAL AND ELECTRICAL,301.89,0,Non Commercial Supplier
01/11/2018,Strategic Commissioning CYPS,Supportin' Independence Service,SUPPORTED OTHER ACCOMMODATION - PRIVATE CONTRACTORS PAYMENT,"2,200.00",0,Non Commercial Supplier
01/11/2018,Strategic Commissioning Adults,Redacted - Personal Data,DIRECT PAYMENTS,289.80,0,Individuals
01/11/2018,Strategic Commissioning Adults,Redacted - Personal Data,DIRECT PAYMENTS,289.80,0,Individuals
01/11/2018,RMS RMS,TOM Vehicle Rental (In Administration),VEHICLE LEASES,365.49,0,Commercial Supplier
01/11/2018,Strategic Commissioning Community and Environment,TOM Vehicle Rental (In Administration),VEHICLE LEASES,643.25,0,Commercial Supplier
01/11/2018,Strategic Commissioning Community and Environment,TOM Vehicle Rental (In Administration),VEHICLE LEASES,282.65,0,Commercial Supplier
01/11/2018,Strategic Commissioning Community and Environment,TOM Vehicle Rental (In Administration),VEHICLE LEASES,643.25,0,Commercial Supplier
01/11/2018,Strategic Commissioning Community and Environment,TOM Vehicle Rental (In Administration),VEHICLE LEASES,537.95,0,Commercial Supplier
01/11/2018,Strategic Commissioning Community and Environment,TOM Vehicle Rental (In Administration),VEHICLE LEASES,643.25,0,Commercial Supplier
01/11/2018,Strategic Commissioning Community and Environment,TOM Vehicle Rental (In Administration),VEHICLE LEASES,"1,138.11",0,Commercial Supplier
01/11/2018,Strategic Commissioning Community and Environment,TOM Vehicle Rental (In Administration),VEHICLE LEASES,695.61,0,Commercial Supplier
01/11/2018,Strategic Commissioning Community and Environment,TOM Vehicle Rental (In Administration),VEHICLE LEASES,462.44,0,Commercial Supplier
01/11/2018,RMS RMS,TOM Vehicle Rental (In Administration),VEHICLE LEASES,460.66,0,Commercial Supplier
01/11/2018,RMS RMS,TOM Vehicle Rental (In Administration),VEHICLE LEASES,294.75,0,Commercial Supplier
01/11/2018,RMS RMS,TOM Vehicle Rental (In Administration),VEHICLE LEASES,365.49,0,Commercial Supplier
01/11/2018,RMS RMS,TOM Vehicle Rental (In Administration),VEHICLE LEASES,365.49,0,Commercial Supplier
01/11/2018,RMS RMS,TOM Vehicle Rental (In Administration),VEHICLE LEASES,535.80,0,Commercial Supplier
01/11/2018,RMS RMS,TOM Vehicle Rental (In Administration),VEHICLE LEASES,"1,529.64",0,Commercial Supplier
01/11/2018,RMS RMS,TOM Vehicle Rental (In Administration),VEHICLE LEASES,553.66,0,Commercial Supplier
01/11/2018,Strategic Commissioning Community and Environment,TOM Vehicle Rental (In Administration),VEHICLE LEASES,643.25,0,Commercial Supplier
01/11/2018,Strategic Commissioning Community and Environment,TOM Vehicle Rental (In Administration),VEHICLE LEASES,462.44,0,Commercial Supplier
01/11/2018,Strategic Commissioning Community and Environment,TOM Vehicle Rental (In Administration),VEHICLE LEASES,337.98,0,Commercial Supplier
01/11/2018,RMS RMS,TOM Vehicle Rental (In Administration),VEHICLE LEASES,365.49,0,Commercial Supplier
01/11/2018,Strategic Commissioning Community and Environment,TOM Vehicle Rental (In Administration),VEHICLE LEASES,337.98,0,Commercial Supplier
01/11/2018,Strategic Commissioning Community and Environment,TOM Vehicle Rental (In Administration),VEHICLE LEASES,597.99,0,Commercial Supplier
01/11/2018,Strategic Commissioning Community and Environment,TOM Vehicle Rental (In Administration),VEHICLE LEASES,511.98,0,Commercial Supplier
01/11/2018,Strategic Commissioning Community and Environment,TOM Vehicle Rental (In Administration),VEHICLE LEASES,327.08,0,Commercial Supplier
01/11/2018,Strategic Commissioning Community and Environment,TOM Vehicle Rental (In Administration),VEHICLE LEASES,643.25,0,Commercial Supplier
01/11/2018,RMS RMS,TOM Vehicle Rental (In Administration),VEHICLE LEASES,553.66,0,Commercial Supplier
01/11/2018,Strategic Commissioning Community and Environment,TOM Vehicle Rental (In Administration),VEHICLE LEASES,467.57,0,Commercial Supplier
01/11/2018,Strategic Commissioning Community and Environment,TOM Vehicle Rental (In Administration),VEHICLE LEASES,337.98,0,Commercial Supplier
01/11/2018,Strategic Commissioning Community and Environment,TOM Vehicle Rental (In Administration),VEHICLE LEASES,337.98,0,Commercial Supplier
01/11/2018,Strategic Commissioning Community and Environment,TOM Vehicle Rental (In Administration),VEHICLE LEASES,337.98,0,Commercial Supplier
01/11/2018,Strategic Commissioning Community and Environment,TOM Vehicle Rental (In Administration),VEHICLE LEASES,337.98,0,Commercial Supplier
01/11/2018,Strategic Commissioning Community and Environment,TOM Vehicle Rental (In Administration),VEHICLE LEASES,467.57,0,Commercial Supplier
01/11/2018,Strategic Commissioning Community and Environment,TOM Vehicle Rental (In Administration),VEHICLE LEASES,643.25,0,Commercial Supplier
01/11/2018,Strategic Commissioning Community and Environment,TOM Vehicle Rental (In Administration),VEHICLE LEASES,337.98,0,Commercial Supplier
01/11/2018,Strategic Commissioning Community and Environment,TOM Vehicle Rental (In Administration),VEHICLE LEASES,467.57,0,Commercial Supplier
01/11/2018,Strategic Commissioning Community and Environment,TOM Vehicle Rental (In Administration),VEHICLE LEASES,337.98,0,Commercial Supplier
01/11/2018,Strategic Commissioning Community and Environment,TOM Vehicle Rental (In Administration),VEHICLE LEASES,337.98,0,Commercial Supplier
01/11/2018,Strategic Commissioning Community and Environment,TOM Vehicle Rental (In Administration),VEHICLE LEASES,337.98,0,Commercial Supplier
01/11/2018,Strategic Commissioning Community and Environment,TOM Vehicle Rental (In Administration),VEHICLE LEASES,337.98,0,Commercial Supplier
01/11/2018,Strategic Commissioning Community and Environment,TOM Vehicle Rental (In Administration),VEHICLE LEASES,552.98,0,Commercial Supplier
01/11/2018,RMS RMS,TOM Vehicle Rental (In Administration),VEHICLE LEASES,330.36,0,Commercial Supplier
01/11/2018,Strategic Commissioning Community and Environment,TOM Vehicle Rental (In Administration),VEHICLE LEASES,337.98,0,Commercial Supplier
01/11/2018,Strategic Commissioning Adults,The Courtney Hotel London Ltd,BED & BREAKFAST - PRIVATE CONTRACTORS PAYMENT,560.07,0,Non Commercial Supplier
01/11/2018,Strategic Commissioning Adults,The Ursuline Convent,PROFESSIONAL SERVICES - GENERAL,762.20,0,Supplier
01/11/2018,Strategic Commissioning Adults,The Ursuline Convent,PROFESSIONAL SERVICES - GENERAL,570.00,0,Supplier
01/11/2018,Strategic Commissioning Community and Environment,Thompsons Solicitors,LEGAL FEES,350.00,0,Legal Services
01/11/2018,oneSource oS Legal & Governance,Thomson Reuters,MEMBERSHIP AND SUBSCRIPTIONS,"1,000.00",0,Commercial Supplier
01/11/2018,oneSource oS Legal & Governance,Thomson Reuters,MEMBERSHIP AND SUBSCRIPTIONS,881.75,0,Commercial Supplier
01/11/2018,Strategic Commissioning Adults,Topman Construction Ltd,PRIVATE CONTRACTORS PAYMENT - OTHER,"4,184.00",0,CIS
01/11/2018,Strategic Commissioning Adults,Tunstall Healthcare Uk Ltd,HEALTH AND SAFETY WORKS,"2,973.02",0,Supplier
01/11/2018,Strategic Commissioning Adults,University of East London,PROFESSIONAL SERVICES - GENERAL,"1,480.00",0,Commercial Supplier
01/11/2018,Strategic Commissioning Adults,University of East London,PROFESSIONAL SERVICES - GENERAL,"1,480.00",0,Commercial Supplier
01/11/2018,Strategic Commissioning Adults,University of East London,PROFESSIONAL SERVICES - GENERAL,950.00,0,Commercial Supplier
01/11/2018,Strategic Commissioning CYPS,Redacted - Personal Data,IN HOUSE FOSTER CARE PLACEMENTS - PRIVATE CONTRACTORS PAYMENT,"1,334.90",0,Local Authority Services
01/11/2018,Strategic Commissioning Adults,Vicarage Consortium Ltd T/A Vicarage Pharmacy,PAYMENT TO HEALTH AUTHORITIES,"2,836.20",0,Supplier
01/11/2018,Strategic Commissioning Enforcement and Safety,WSP UK Ltd,"PURCHASE - EQUIPMENT, FURNITURE AND MATERIALS","67,563.46",0,Commercial Supplier
01/11/2018,Strategic Commissioning Enforcement and Safety,WSP UK Ltd,"PURCHASE - EQUIPMENT, FURNITURE AND MATERIALS","302,035.28",0,Commercial Supplier
01/11/2018,Strategic Commissioning CYPS,Xchange Property Services Ltd,CLIENT SUPPORT - THIRD PARTY,"1,400.00",0,Commercial Supplier
01/11/2018,Strategic Commissioning CYPS,Xchange Property Services Ltd,CLIENT SUPPORT - THIRD PARTY,"1,400.00",0,Commercial Supplier
01/11/2018,Strategic Commissioning CYPS,Xchange Property Services Ltd,CLIENT SUPPORT - THIRD PARTY,"1,400.00",0,Commercial Supplier
01/11/2018,Strategic Commissioning CYPS,Redacted - Personal Data,IN HOUSE FOSTER CARE PLACEMENTS - PRIVATE CONTRACTORS PAYMENT,"2,384.64",0,Foster Carers
01/11/2018,Strategic Commissioning CYPS,Redacted - Personal Data,ADDITIONAL PLACEMENTS - THIRD PARTY,"1,950.00",0,Foster Carers
01/11/2018,Strategic Commissioning CYPS,Redacted - Personal Data,LOOKED AFTER COST OTHER,270.00,0,Foster Carers
01/11/2018,Strategic Commissioning CYPS,Redacted - Personal Data,LOOKED AFTER COST OTHER,270.00,0,Foster Carers
01/11/2018,Strategic Commissioning CYPS,Redacted - Personal Data,LOOKED AFTER COST OTHER,270.00,0,Foster Carers
01/11/2018,Strategic Commissioning CYPS,Redacted - Personal Data,LOOKED AFTER COST OTHER,270.00,0,Foster Carers
01/11/2018,Strategic Commissioning CYPS,adam HTT LTd T/A Adam,ADDITIONAL PLACEMENTS - THIRD PARTY,"43,322.87",0,Supplier
01/11/2018,Strategic Commissioning CYPS,i O Associates Ltd,STAFF RECRUITMENT COSTS,"2,400.00",0,Commercial Supplier
01/11/2018,Strategic Commissioning CYPS,i O Associates Ltd,STAFF RECRUITMENT COSTS,"1,600.00",0,Commercial Supplier
01/11/2018,Strategic Commissioning CYPS,i O Associates Ltd,STAFF RECRUITMENT COSTS,"3,200.00",0,Commercial Supplier
01/11/2018,Strategic Commissioning CYPS,i O Associates Ltd,STAFF RECRUITMENT COSTS,"1,440.00",0,Commercial Supplier
01/11/2018,Strategic Commissioning CYPS,i O Associates Ltd,STAFF RECRUITMENT COSTS,"1,280.00",0,Commercial Supplier
01/11/2018,Strategic Commissioning CYPS,i O Associates Ltd,STAFF RECRUITMENT COSTS,"3,000.00",0,Commercial Supplier
02/11/2018,Dedicated Schools Budget Dedicated Schools Budget,Redacted - Personal Data,INDEPENDENT UNITS WITHIN THE COUNCIL,"265,530.00",0,Supplier
02/11/2018,Dedicated Schools Budget Dedicated Schools Budget,Redacted - Personal Data,INDEPENDENT UNITS WITHIN THE COUNCIL,"424,550.00",0,Supplier
02/11/2018,Dedicated Schools Budget Dedicated Schools Budget,Redacted - Personal Data,INDEPENDENT UNITS WITHIN THE COUNCIL,"460,280.00",0,Local Authority Services
02/11/2018,Dedicated Schools Budget Dedicated Schools Budget,Redacted - Personal Data,INDEPENDENT UNITS WITHIN THE COUNCIL,"326,881.00",0,Supplier
02/11/2018,Dedicated Schools Budget Dedicated Schools Budget,Redacted - Personal Data,INDEPENDENT UNITS WITHIN THE COUNCIL,"255,466.00",0,Supplier
02/11/2018,Dedicated Schools Budget Dedicated Schools Budget,Redacted - Personal Data,INDEPENDENT UNITS WITHIN THE COUNCIL,"426,712.00",0,Supplier
02/11/2018,Dedicated Schools Budget Dedicated Schools Budget,Redacted - Personal Data,INDEPENDENT UNITS WITHIN THE COUNCIL,"323,786.00",0,Supplier
02/11/2018,Dedicated Schools Budget Dedicated Schools Budget,Redacted - Personal Data,INDEPENDENT UNITS WITHIN THE COUNCIL,"340,560.00",0,Supplier
02/11/2018,Dedicated Schools Budget Dedicated Schools Budget,Redacted - Personal Data,INDEPENDENT UNITS WITHIN THE COUNCIL,"655,254.00",0,Supplier
02/11/2018,Dedicated Schools Budget Dedicated Schools Budget,Redacted - Personal Data,INDEPENDENT UNITS WITHIN THE COUNCIL,"50,198.00",0,Supplier
02/11/2018,Dedicated Schools Budget Dedicated Schools Budget,Redacted - Personal Data,INDEPENDENT UNITS WITHIN THE COUNCIL,"211,642.00",0,Supplier
02/11/2018,Dedicated Schools Budget Dedicated Schools Budget,Redacted - Personal Data,INDEPENDENT UNITS WITHIN THE COUNCIL,"447,952.00",0,Non Commercial Supplier
02/11/2018,Dedicated Schools Budget Dedicated Schools Budget,Redacted - Personal Data,INDEPENDENT UNITS WITHIN THE COUNCIL,"185,204.00",0,Supplier
02/11/2018,Dedicated Schools Budget Dedicated Schools Budget,Redacted - Personal Data,INDEPENDENT UNITS WITHIN THE COUNCIL,"146,537.00",0,Non Commercial Supplier
02/11/2018,Dedicated Schools Budget Dedicated Schools Budget,Redacted - Personal Data,INDEPENDENT UNITS WITHIN THE COUNCIL,"47,354.00",0,Supplier
02/11/2018,Dedicated Schools Budget Dedicated Schools Budget,Redacted - Personal Data,INDEPENDENT UNITS WITHIN THE COUNCIL,"272,683.00",0,Supplier
02/11/2018,Dedicated Schools Budget Dedicated Schools Budget,Redacted - Personal Data,INDEPENDENT UNITS WITHIN THE COUNCIL,"924,462.00",0,Non Commercial Supplier
02/11/2018,Dedicated Schools Budget Dedicated Schools Budget,Redacted - Personal Data,INDEPENDENT UNITS WITHIN THE COUNCIL,"70,516.00",0,Supplier
02/11/2018,Dedicated Schools Budget Dedicated Schools Budget,Redacted - Personal Data,INDEPENDENT UNITS WITHIN THE COUNCIL,"258,323.00",0,Supplier
02/11/2018,Dedicated Schools Budget Dedicated Schools Budget,Redacted - Personal Data,INDEPENDENT UNITS WITHIN THE COUNCIL,"875,691.00",0,Local Authority Services
02/11/2018,Dedicated Schools Budget Dedicated Schools Budget,Redacted - Personal Data,INDEPENDENT UNITS WITHIN THE COUNCIL,"809,691.00",0,Supplier
02/11/2018,Dedicated Schools Budget Dedicated Schools Budget,Redacted - Personal Data,INDEPENDENT UNITS WITHIN THE COUNCIL,"181,559.00",0,Supplier
02/11/2018,Dedicated Schools Budget Dedicated Schools Budget,Redacted - Personal Data,INDEPENDENT UNITS WITHIN THE COUNCIL,"209,064.00",0,Supplier
02/11/2018,Dedicated Schools Budget Dedicated Schools Budget,Redacted - Personal Data,INDEPENDENT UNITS WITHIN THE COUNCIL,"100,000.00",0,Commercial Supplier
02/11/2018,Dedicated Schools Budget Dedicated Schools Budget,Redacted - Personal Data,INDEPENDENT UNITS WITHIN THE COUNCIL,"156,210.00",0,Supplier
02/11/2018,Dedicated Schools Budget Dedicated Schools Budget,Redacted - Personal Data,INDEPENDENT UNITS WITHIN THE COUNCIL,"292,054.00",0,Supplier
02/11/2018,Dedicated Schools Budget Dedicated Schools Budget,Redacted - Personal Data,INDEPENDENT UNITS WITHIN THE COUNCIL,"226,466.00",0,Commercial Supplier
02/11/2018,Dedicated Schools Budget Dedicated Schools Budget,Redacted - Personal Data,INDEPENDENT UNITS WITHIN THE COUNCIL,"771,954.00",0,Supplier
02/11/2018,Dedicated Schools Budget Dedicated Schools Budget,Redacted - Personal Data,INDEPENDENT UNITS WITHIN THE COUNCIL,"52,445.00",0,Supplier
02/11/2018,Dedicated Schools Budget Dedicated Schools Budget,Redacted - Personal Data,INDEPENDENT UNITS WITHIN THE COUNCIL,"529,760.00",0,Supplier
02/11/2018,Dedicated Schools Budget Dedicated Schools Budget,Redacted - Personal Data,INDEPENDENT UNITS WITHIN THE COUNCIL,"206,610.00",0,Supplier
02/11/2018,Dedicated Schools Budget Dedicated Schools Budget,Redacted - Personal Data,INDEPENDENT UNITS WITHIN THE COUNCIL,"42,307.00",0,Supplier
02/11/2018,Dedicated Schools Budget Dedicated Schools Budget,Redacted - Personal Data,INDEPENDENT UNITS WITHIN THE COUNCIL,"309,110.00",0,Supplier
02/11/2018,Dedicated Schools Budget Dedicated Schools Budget,Redacted - Personal Data,INDEPENDENT UNITS WITHIN THE COUNCIL,"451,898.00",0,Supplier
02/11/2018,Dedicated Schools Budget Dedicated Schools Budget,Redacted - Personal Data,INDEPENDENT UNITS WITHIN THE COUNCIL,"68,305.00",0,Supplier
02/11/2018,Dedicated Schools Budget Dedicated Schools Budget,Redacted - Personal Data,INDEPENDENT UNITS WITHIN THE COUNCIL,"234,488.00",0,Supplier
02/11/2018,Dedicated Schools Budget Dedicated Schools Budget,Redacted - Personal Data,INDEPENDENT UNITS WITHIN THE COUNCIL,"304,421.00",0,Supplier
02/11/2018,Dedicated Schools Budget Dedicated Schools Budget,Redacted - Personal Data,INDEPENDENT UNITS WITHIN THE COUNCIL,"628,415.00",0,Supplier
02/11/2018,Dedicated Schools Budget Dedicated Schools Budget,Redacted - Personal Data,INDEPENDENT UNITS WITHIN THE COUNCIL,"217,383.00",0,Supplier
02/11/2018,Dedicated Schools Budget Dedicated Schools Budget,Redacted - Personal Data,INDEPENDENT UNITS WITHIN THE COUNCIL,"713,895.00",0,Supplier
02/11/2018,Dedicated Schools Budget Dedicated Schools Budget,Redacted - Personal Data,INDEPENDENT UNITS WITHIN THE COUNCIL,"223,307.00",0,Supplier
02/11/2018,Dedicated Schools Budget Dedicated Schools Budget,Redacted - Personal Data,INDEPENDENT UNITS WITHIN THE COUNCIL,"219,101.00",0,Supplier
02/11/2018,Dedicated Schools Budget Dedicated Schools Budget,Redacted - Personal Data,INDEPENDENT UNITS WITHIN THE COUNCIL,"149,528.00",0,Supplier
02/11/2018,Dedicated Schools Budget Dedicated Schools Budget,Redacted - Personal Data,INDEPENDENT UNITS WITHIN THE COUNCIL,"131,524.00",0,Supplier
02/11/2018,Dedicated Schools Budget Dedicated Schools Budget,Redacted - Personal Data,INDEPENDENT UNITS WITHIN THE COUNCIL,"115,737.00",0,Supplier
02/11/2018,Dedicated Schools Budget Dedicated Schools Budget,Redacted - Personal Data,INDEPENDENT UNITS WITHIN THE COUNCIL,"64,053.00",0,Supplier
02/11/2018,Dedicated Schools Budget Dedicated Schools Budget,Redacted - Personal Data,INDEPENDENT UNITS WITHIN THE COUNCIL,"274,747.00",0,Supplier
02/11/2018,Dedicated Schools Budget Dedicated Schools Budget,Redacted - Personal Data,INDEPENDENT UNITS WITHIN THE COUNCIL,"134,195.00",0,Supplier
02/11/2018,Dedicated Schools Budget Dedicated Schools Budget,Redacted - Personal Data,INDEPENDENT UNITS WITHIN THE COUNCIL,"392,370.00",0,Supplier
02/11/2018,Dedicated Schools Budget Dedicated Schools Budget,Redacted - Personal Data,INDEPENDENT UNITS WITHIN THE COUNCIL,"220,950.00",0,Supplier
02/11/2018,Dedicated Schools Budget Dedicated Schools Budget,Redacted - Personal Data,INDEPENDENT UNITS WITHIN THE COUNCIL,"172,177.00",0,Supplier
02/11/2018,Dedicated Schools Budget Dedicated Schools Budget,Redacted - Personal Data,PROFESSIONAL SERVICES - GENERAL,"7,083.00",0,Local Authority Services
02/11/2018,Dedicated Schools Budget Dedicated Schools Budget,Redacted - Personal Data,INDEPENDENT UNITS WITHIN THE COUNCIL,"126,740.00",0,Supplier
02/11/2018,Dedicated Schools Budget Dedicated Schools Budget,Redacted - Personal Data,INDEPENDENT UNITS WITHIN THE COUNCIL,"331,548.00",0,Local Authority Services
02/11/2018,Dedicated Schools Budget Dedicated Schools Budget,Redacted - Personal Data,INDEPENDENT UNITS WITHIN THE COUNCIL,"212,838.00",0,Supplier
02/11/2018,Strategic Commissioning Adults,Able 2 Occupational Therapy Services Ltd,HEALTH AND SAFETY WORKS,"3,354.30",0,Non Commercial Supplier
02/11/2018,Strategic Commissioning Adults,Able 2 Occupational Therapy Services Ltd,HEALTH AND SAFETY WORKS,"1,612.60",0,Non Commercial Supplier
02/11/2018,Strategic Commissioning Adults,Able 2 Occupational Therapy Services Ltd,HEALTH AND SAFETY WORKS,"1,662.00",0,Non Commercial Supplier
02/11/2018,Regeneration and Planning Planning,BNP Paribas Real Estate Advisory,CONSULTANCY FEES,"3,990.00",0,Supplier
02/11/2018,Strategic Commissioning Community and Environment,BTL Pro Audio,ARTS AND LEISURE COSTS,500.00,0,Non Commercial Supplier
02/11/2018,Strategic Commissioning CYPS,Bettertogether Limited,RESIDENTIAL PLACEMENTS - PRIVATE CONTRACTORS PAYMENT,"3,216.00",0,Non Commercial Supplier
02/11/2018,Business and Growth Business and Growth,Bevan Brittan,CONSULTANCY FEES,"1,455.00",0,Legal Services
02/11/2018,Business and Growth Business and Growth,Bevan Brittan,CONSULTANCY FEES,"3,251.00",0,Legal Services
02/11/2018,Business and Growth Business and Growth,Bevan Brittan,CONSULTANCY FEES,"3,554.50",0,Legal Services
02/11/2018,Business and Growth Business and Growth,Bevan Brittan,CONSULTANCY FEES,975.00,0,Legal Services
02/11/2018,Business and Growth Business and Growth,Bevan Brittan,CONSULTANCY FEES,"1,455.00",0,Legal Services
02/11/2018,Business and Growth Business and Growth,Bevan Brittan,CONSULTANCY FEES,"3,251.00",0,Legal Services
02/11/2018,Business and Growth Business and Growth,Bevan Brittan,CONSULTANCY FEES,"3,554.50",0,Legal Services
02/11/2018,Business and Growth Business and Growth,Bevan Brittan,CONSULTANCY FEES,975.00,0,Legal Services
02/11/2018,Public Health Public Health,Bloom Procurement Services Ltd,CONSULTANCY FEES,"6,562.50",0,Commercial Supplier
02/11/2018,oneSource - Non Shared Asset Management,Bloom Procurement Services Ltd,CONSULTANCY FEES,"3,926.32",0,Commercial Supplier
02/11/2018,Public Health Public Health,Bloom Procurement Services Ltd,CONSULTANCY FEES,"3,741.54",0,Commercial Supplier
02/11/2018,Public Health Public Health,Bloom Procurement Services Ltd,CONSULTANCY FEES,"1,558.98",0,Commercial Supplier
02/11/2018,Strategic Commissioning Adults,Bloom Procurement Services Ltd,CONSULTANCY FEES,"10,665.00",0,Commercial Supplier
02/11/2018,Strategic Commissioning Adults,Bloom Procurement Services Ltd,CONSULTANCY FEES,371.00,0,Commercial Supplier
02/11/2018,Strategic Commissioning Adults,Bloom Procurement Services Ltd,CONSULTANCY FEES,"3,476.00",0,Commercial Supplier
02/11/2018,Public Health Public Health,Bloom Procurement Services Ltd,CONSULTANCY FEES,"1,875.00",0,Commercial Supplier
02/11/2018,Strategic Commissioning CYPS,Broadlands Hall,RESIDENTIAL PLACEMENTS - PRIVATE CONTRACTORS PAYMENT,"5,800.00",0,Commercial Supplier
02/11/2018,oneSource - Non Shared Asset Management,Building A Future (Newham Schools) Limited,"MAINTENANCE - EQUIPMENT, FURNITURE AND MATERIALS","67,092.31",0,Supplier
02/11/2018,oneSource - Non Shared Asset Management,Building A Future (Newham Schools) Limited,"MAINTENANCE - EQUIPMENT, FURNITURE AND MATERIALS","67,988.73",0,Supplier
02/11/2018,oneSource - Non Shared Asset Management,Building A Future (Newham Schools) Limited,"MAINTENANCE - EQUIPMENT, FURNITURE AND MATERIALS","259,986.52",0,Supplier
02/11/2018,Strategic Commissioning CYPS,Cedar Housing Solutions Ltd,SECTION 17 - PRIVATE CONTRACTORS PAYMENT,"2,500.00",0,Commercial Supplier
02/11/2018,RMS RMS,City East Recruitment Ltd,BUILDING ALTERATIONS AND MATERIALS,"1,440.00",0,Supplier
02/11/2018,RMS RMS,City East Recruitment Ltd,BUILDING ALTERATIONS AND MATERIALS,"1,440.00",0,Supplier
02/11/2018,RMS RMS,City East Recruitment Ltd,BUILDING ALTERATIONS AND MATERIALS,"2,900.00",0,Supplier
02/11/2018,RMS RMS,City East Recruitment Ltd,"PURCHASE - EQUIPMENT, FURNITURE AND MATERIALS","1,600.00",0,Supplier
02/11/2018,Strategic Commissioning Community and Environment,College (Uk) Co Ltd,PROFESSIONAL SERVICES - GENERAL,300.00,0,Supplier
02/11/2018,Strategic Commissioning CYPS,Coram Baaf,PROFESSIONAL SERVICES - GENERAL,400.00,0,Supplier
02/11/2018,Strategic Commissioning Adults,DGT Services Ltd,SPECIALIST EQUIPMENT FOR SERVICE PROVISION,"5,250.00",0,Commercial Supplier
02/11/2018,Strategic Commissioning Adults,DGT Services Ltd,SPECIALIST EQUIPMENT FOR SERVICE PROVISION,460.00,0,Commercial Supplier
02/11/2018,Strategic Commissioning Adults,DGT Services Ltd,SPECIALIST EQUIPMENT FOR SERVICE PROVISION,856.43,0,Commercial Supplier
02/11/2018,Strategic Commissioning Adults,DGT Services Ltd,SPECIALIST EQUIPMENT FOR SERVICE PROVISION,"7,916.66",0,Commercial Supplier
02/11/2018,Strategic Commissioning Adults,DGT Services Ltd,SPECIALIST EQUIPMENT FOR SERVICE PROVISION,693.24,0,Commercial Supplier
02/11/2018,Strategic Commissioning Adults,DGT Services Ltd,SPECIALIST EQUIPMENT FOR SERVICE PROVISION,"1,043.59",0,Commercial Supplier
02/11/2018,Strategic Commissioning Adults,DGT Services Ltd,SPECIALIST EQUIPMENT FOR SERVICE PROVISION,390.00,0,Commercial Supplier
02/11/2018,Strategic Commissioning Adults,DGT Services Ltd,SPECIALIST EQUIPMENT FOR SERVICE PROVISION,680.71,0,Commercial Supplier
02/11/2018,Strategic Commissioning Adults,DGT Services Ltd,SPECIALIST EQUIPMENT FOR SERVICE PROVISION,"1,442.56",0,Commercial Supplier
02/11/2018,Strategic Commissioning Adults,DGT Services Ltd,SPECIALIST EQUIPMENT FOR SERVICE PROVISION,"5,250.00",0,Commercial Supplier
02/11/2018,Strategic Commissioning Adults,DGT Services Ltd,SPECIALIST EQUIPMENT FOR SERVICE PROVISION,"7,916.66",0,Commercial Supplier
02/11/2018,Strategic Commissioning Adults,DGT Services Ltd,SPECIALIST EQUIPMENT FOR SERVICE PROVISION,459.25,0,Commercial Supplier
02/11/2018,Strategic Commissioning CYPS,Dr Elaine Arnold,STAFF DEVELOPMENT AND TRAINING,300.00,0,Commercial Supplier
02/11/2018,Strategic Commissioning CYPS,Durham County Council,SECURE PLACEMENTS - PRIVATE CONTRACTORS PAYMENT,"40,145.00",0,Local Authority Services
02/11/2018,Strategic Commissioning Community and Environment,Elevated Aspirations,ARTS AND LEISURE COSTS,450.00,0,Supplier
02/11/2018,Strategic Commissioning CYPS,Elliot Leigh TLC Ltd,CLIENT SUPPORT - THIRD PARTY,"1,400.00",0,Commercial Supplier
02/11/2018,Strategic Commissioning CYPS,Elliot Leigh TLC Ltd,CLIENT SUPPORT - THIRD PARTY,840.00,0,Commercial Supplier
02/11/2018,Strategic Commissioning CYPS,Elliot Leigh TLC Ltd,CLIENT SUPPORT - THIRD PARTY,"1,000.00",0,Commercial Supplier
02/11/2018,RMS RMS,Era Security Hardware,BUILDING ALTERATIONS AND MATERIALS,525.31,0,Supplier
02/11/2018,RMS RMS,Esso Petroleum Company Ltd,TRANSPORT FUEL,330.27,0,Non Commercial Supplier
02/11/2018,RMS RMS,Esso Petroleum Company Ltd,VEHICLE HIRE,559.94,0,Non Commercial Supplier
02/11/2018,RMS RMS,Esso Petroleum Company Ltd,VEHICLE HIRE,377.02,0,Non Commercial Supplier
02/11/2018,Strategic Commissioning CYPS,Forest Care Services Ltd,CLIENT SUPPORT - THIRD PARTY,672.52,0,Non Commercial Supplier
02/11/2018,Strategic Commissioning Community and Environment,Forest Gate Community Garden Cic,PAYMENTS TO VOLUNTARY SECTOR,"1,000.00",0,Supplier
02/11/2018,RMS RMS,GB Macks Skips,REFUSE COLLECTION,"7,865.00",0,Commercial Supplier
02/11/2018,RMS RMS,Grosvenor Contract Leasing Ltd,VEHICLE HIRE,500.92,0,Supplier
02/11/2018,Strategic Commissioning Community and Environment,H G Gladwell & Sons Ltd,PRIVATE CONTRACTORS PAYMENT - OTHER,767.16,0,Commercial Supplier
02/11/2018,Strategic Commissioning Adults,Help In Newham Ltd,HOME CARE - PRIVATE CONTRACTORS PAYMENT,425.25,0,Supplier
02/11/2018,Strategic Commissioning Adults,Hodge Jones & Allen Solicitors LLP,LEGAL FEES,"1,080.00",0,Non Commercial Supplier
02/11/2018,Strategic Commissioning CYPS,Holmdene Housing Ltd,KINSHIP PLACEMENT - PRIVATE CONTRACTORS PAYMENT,"3,760.00",0,Commercial Supplier
02/11/2018,Strategic Commissioning CYPS,Holmdene Housing Ltd,SUPPORTED OTHER ACCOMMODATION - PRIVATE CONTRACTORS PAYMENT,"4,260.00",0,Commercial Supplier
02/11/2018,Strategic Commissioning Adults,Hospiva Care & Associates Agency Ltd,HOME CARE - PRIVATE CONTRACTORS PAYMENT,"2,058.00",0,Commercial Supplier
02/11/2018,Strategic Commissioning Adults,Hospiva Care & Associates Agency Ltd,DAYCARE - PRIVATE CONTRACTORS PAYMENT,298.78,0,Commercial Supplier
02/11/2018,Strategic Commissioning Adults,Hospiva Care & Associates Agency Ltd,HOME CARE - PRIVATE CONTRACTORS PAYMENT,"1,923.02",0,Commercial Supplier
02/11/2018,Strategic Commissioning Adults,Hospiva Care & Associates Agency Ltd,HOME CARE - PRIVATE CONTRACTORS PAYMENT,"1,738.80",0,Commercial Supplier
02/11/2018,Strategic Commissioning CYPS,Inclusive Care Support Ltd,CLIENT EXPENSES - THIRD PARTY,270.00,0,Commercial Supplier
02/11/2018,Strategic Commissioning CYPS,Inclusive Care Support Ltd,KINSHIP PLACEMENT - PRIVATE CONTRACTORS PAYMENT,"3,007.00",0,Commercial Supplier
02/11/2018,Strategic Commissioning CYPS,Inclusive Care Support Ltd,KINSHIP PLACEMENT - PRIVATE CONTRACTORS PAYMENT,"1,530.00",0,Commercial Supplier
02/11/2018,Strategic Commissioning CYPS,Inclusive Care Support Ltd,SUPPORTED OTHER ACCOMMODATION - PRIVATE CONTRACTORS PAYMENT,"6,427.76",0,Commercial Supplier
02/11/2018,oneSource - Non Shared LBN Transactional Services,Inform CPI Ltd,BUSINESS RATES PAYABLE,"7,500.00",0,Commercial Supplier
02/11/2018,Strategic Commissioning Enforcement and Safety,Institute of Licensing Events Ltd,STAFF DEVELOPMENT AND TRAINING,473.00,0,Commercial Supplier
02/11/2018,Strategic Commissioning CYPS,Integrated Fostering Services,RESIDENTIAL PLACEMENTS - PRIVATE CONTRACTORS PAYMENT,"1,171.40",0,Commercial Supplier
02/11/2018,Strategic Commissioning CYPS,Integrated Fostering Services,RESIDENTIAL PLACEMENTS - PRIVATE CONTRACTORS PAYMENT,"2,690.80",0,Commercial Supplier
02/11/2018,Strategic Commissioning CYPS,Integrated Fostering Services,RESIDENTIAL PLACEMENTS - PRIVATE CONTRACTORS PAYMENT,"1,405.68",0,Commercial Supplier
02/11/2018,Strategic Commissioning CYPS,Integrated Fostering Services,EQUIPMENT & ADAPTATION - PRIVATE CONTRACTORS PAYMENT,"1,025.05",0,Commercial Supplier
02/11/2018,Strategic Commissioning Community and Environment,Kent County Council (Kcs),ELECTRICITY,"1,847.96",0,Local Authority Services
02/11/2018,Strategic Commissioning Community and Environment,Kent County Council (Kcs),ELECTRICITY,438.51,0,Local Authority Services
02/11/2018,Strategic Commissioning Community and Environment,Kent County Council (Kcs),ELECTRICITY,501.71,0,Local Authority Services
02/11/2018,Strategic Commissioning Community and Environment,Kent County Council (Kcs),ELECTRICITY,334.85,0,Local Authority Services
02/11/2018,Strategic Commissioning Adults,Kisimul Group Ltd,RESIDENTIAL PLACEMENTS - PRIVATE CONTRACTORS PAYMENT,"12,503.54",0,Commercial Supplier
02/11/2018,Housing Revenue Account HRA,L M Installations Ltd,BUILDING ALTERATIONS AND MATERIALS,"3,947.90",0,CIS
02/11/2018,Strategic Commissioning Adults,Ldn Borough Of Tower Hamlets,"ADVERTISING, PUBLICITY AND MARKETING","3,251.25",0,Supplier
02/11/2018,Strategic Commissioning Adults,London Network for Pest Solutions Ltd,CLEANING SERVICES,"1,250.00",0,Commercial Supplier
02/11/2018,Housing Revenue Account HRA,London Network for Pest Solutions Ltd,PRIVATE CONTRACTORS PAYMENT - OTHER,"22,784.16",0,Commercial Supplier
02/11/2018,Strategic Commissioning Community and Environment,London School of Martial Arts,ARTS AND LEISURE COSTS,320.00,0,Commercial Supplier
02/11/2018,Strategic Commissioning Community and Environment,Maestro7,STAFF DEVELOPMENT AND TRAINING,"4,234.00",0,Commercial Supplier
02/11/2018,oneSource - Non Shared Human Resources,Medigold Hlth Consultancy Ltd,HEALTH AND SAFETY WORKS,"51,347.50",0,Supplier
02/11/2018,Strategic Commissioning Adults,Metro Property Management Ltd,RENTS PAYABLE,540.00,0,Supplier
02/11/2018,RMS RMS,Mint Cleaning Group Holding Ltd,MISCELLANEOUS EXPENSES,"1,427.45",0,Commercial Supplier
02/11/2018,Strategic Commissioning CYPS,Mohammed Juned Miah,GRANTS AND CONTRIBUTIONS,500.00,0,Commercial Supplier
02/11/2018,Strategic Commissioning Enforcement and Safety,NPower,ELECTRICITY,376.99,0,Commercial Supplier
02/11/2018,Strategic Commissioning Enforcement and Safety,NPower,ELECTRICITY,"1,411.81",0,Commercial Supplier
02/11/2018,Strategic Commissioning Enforcement and Safety,NPower,ELECTRICITY,"1,155.97",0,Commercial Supplier
02/11/2018,Strategic Commissioning Community and Environment,NPower,ELECTRICITY,402.33,0,Commercial Supplier
02/11/2018,Strategic Commissioning Enforcement and Safety,NPower,ELECTRICITY,"1,156.36",0,Commercial Supplier
02/11/2018,RMS RMS,Nicholls & Clarke Glass Ltd,BUILDING ALTERATIONS AND MATERIALS,750.90,0,Supplier
02/11/2018,Dedicated Schools Budget Dedicated Schools Budget,North Beckton Primary School,INDEPENDENT UNITS WITHIN THE COUNCIL,"284,444.00",0,Non Commercial Supplier
02/11/2018,Strategic Commissioning Adults,Northgate Public Services (UK) Limited,CONSULTANCY FEES,"1,329.45",0,Commercial Supplier
02/11/2018,Strategic Commissioning CYPS,Odgers Interim,AGENCY STAFF,"13,725.00",0,Commercial Supplier
02/11/2018,Strategic Commissioning CYPS,Odgers Interim,AGENCY STAFF,"6,710.00",0,Commercial Supplier
02/11/2018,Strategic Commissioning CYPS,Orchid Place Ltd,KINSHIP PLACEMENT - PRIVATE CONTRACTORS PAYMENT,"2,426.57",0,Supplier
02/11/2018,Strategic Commissioning CYPS,Orchid Place Ltd,KINSHIP PLACEMENT - PRIVATE CONTRACTORS PAYMENT,"3,400.00",0,Supplier
02/11/2018,Strategic Commissioning CYPS,Orchid Place Ltd,KINSHIP PLACEMENT - PRIVATE CONTRACTORS PAYMENT,"3,200.00",0,Supplier
02/11/2018,oneSource - Non Shared Asset Management,PHS Group Plc,CLEANING MATERIALS,876.06,0,Commercial Supplier
02/11/2018,Strategic Commissioning Adults,Penna Plc.,"ADVERTISING, PUBLICITY AND MARKETING","3,352.00",0,Supplier
02/11/2018,Strategic Commissioning Adults,Penna Plc.,"ADVERTISING, PUBLICITY AND MARKETING","6,800.00",0,Supplier
02/11/2018,Regeneration and Planning Regeneration,Penna Plc.,"ADVERTISING, PUBLICITY AND MARKETING","10,800.00",0,Supplier
02/11/2018,Strategic Commissioning Adults,Penna Plc.,"ADVERTISING, PUBLICITY AND MARKETING","6,540.00",0,Supplier
02/11/2018,Strategic Commissioning Adults,Penna Plc.,"ADVERTISING, PUBLICITY AND MARKETING",498.00,0,Supplier
02/11/2018,oneSource oS Asset Management Services,Penna Plc.,"ADVERTISING, PUBLICITY AND MARKETING","1,335.92",0,Supplier
02/11/2018,RMS RMS,Public Realm Services Ltd,MISCELLANEOUS EXPENSES,510.66,0,Commercial Supplier
02/11/2018,RMS RMS,Public Realm Services Ltd,MISCELLANEOUS EXPENSES,305.95,0,Commercial Supplier
02/11/2018,RMS RMS,Public Realm Services Ltd,MISCELLANEOUS EXPENSES,"1,021.32",0,Commercial Supplier
02/11/2018,RMS RMS,Public Realm Services Ltd,MISCELLANEOUS EXPENSES,348.33,0,Commercial Supplier
02/11/2018,RMS RMS,Public Realm Services Ltd,MISCELLANEOUS EXPENSES,603.66,0,Commercial Supplier
02/11/2018,RMS RMS,Public Realm Services Ltd,MISCELLANEOUS EXPENSES,303.94,0,Commercial Supplier
02/11/2018,RMS RMS,Public Realm Services Ltd,MISCELLANEOUS EXPENSES,312.16,0,Commercial Supplier
02/11/2018,RMS RMS,Public Realm Services Ltd,MISCELLANEOUS EXPENSES,267.28,0,Commercial Supplier
02/11/2018,RMS RMS,Public Realm Services Ltd,MISCELLANEOUS EXPENSES,358.04,0,Commercial Supplier
02/11/2018,RMS RMS,Public Realm Services Ltd,MISCELLANEOUS EXPENSES,507.64,0,Commercial Supplier
02/11/2018,RMS RMS,Public Realm Services Ltd,MISCELLANEOUS EXPENSES,405.79,0,Commercial Supplier
02/11/2018,RMS RMS,Public Realm Services Ltd,MISCELLANEOUS EXPENSES,282.90,0,Commercial Supplier
02/11/2018,RMS RMS,Public Realm Services Ltd,MISCELLANEOUS EXPENSES,322.54,0,Commercial Supplier
02/11/2018,RMS RMS,Public Realm Services Ltd,MISCELLANEOUS EXPENSES,363.98,0,Commercial Supplier
02/11/2018,RMS RMS,Public Realm Services Ltd,MISCELLANEOUS EXPENSES,441.64,0,Commercial Supplier
02/11/2018,RMS RMS,Public Realm Services Ltd,MISCELLANEOUS EXPENSES,267.28,0,Commercial Supplier
02/11/2018,Strategic Commissioning CYPS,Qalb Fostering Agency,RESIDENTIAL PLACEMENTS - PRIVATE CONTRACTORS PAYMENT,"1,357.14",0,Non Commercial Supplier
02/11/2018,Strategic Commissioning Adults,Redspot Homecare (Contracts) Limited,HOME CARE - PRIVATE CONTRACTORS PAYMENT,"1,670.48",0,Supplier
02/11/2018,Strategic Commissioning Adults,Redspot Homecare (Contracts) Limited,HOME CARE - PRIVATE CONTRACTORS PAYMENT,"1,093.75",0,Supplier
02/11/2018,Strategic Commissioning Adults,Redspot Homecare (Contracts) Limited,HOME CARE - PRIVATE CONTRACTORS PAYMENT,649.60,0,Supplier
02/11/2018,Strategic Commissioning Adults,Redspot Homecare (Contracts) Limited,HOME CARE - PRIVATE CONTRACTORS PAYMENT,729.05,0,Supplier
02/11/2018,Strategic Commissioning Adults,Redspot Homecare (Contracts) Limited,HOME CARE - PRIVATE CONTRACTORS PAYMENT,"1,723.48",0,Supplier
02/11/2018,Strategic Commissioning Adults,Redspot Homecare (Contracts) Limited,HOME CARE - PRIVATE CONTRACTORS PAYMENT,"1,855.00",0,Supplier
02/11/2018,Strategic Commissioning Adults,Redspot Homecare (Contracts) Limited,HOME CARE - PRIVATE CONTRACTORS PAYMENT,775.40,0,Supplier
02/11/2018,Strategic Commissioning Adults,Redspot Homecare (Contracts) Limited,HOME CARE - PRIVATE CONTRACTORS PAYMENT,549.99,0,Supplier
02/11/2018,Strategic Commissioning Adults,Redspot Homecare (Contracts) Limited,HOME CARE - PRIVATE CONTRACTORS PAYMENT,543.58,0,Supplier
02/11/2018,Strategic Commissioning Adults,Redspot Homecare (Contracts) Limited,DAYCARE - PRIVATE CONTRACTORS PAYMENT,400.25,0,Supplier
02/11/2018,Strategic Commissioning Adults,Redspot Homecare (Contracts) Limited,HOME CARE - PRIVATE CONTRACTORS PAYMENT,631.00,0,Supplier
02/11/2018,Strategic Commissioning Adults,Redspot Homecare (Contracts) Limited,HOME CARE - PRIVATE CONTRACTORS PAYMENT,371.28,0,Supplier
02/11/2018,Strategic Commissioning Adults,Redspot Homecare (Contracts) Limited,HOME CARE - PRIVATE CONTRACTORS PAYMENT,835.24,0,Supplier
02/11/2018,Strategic Commissioning Adults,Reed Employment Plc,DAYCARE - PRIVATE CONTRACTORS PAYMENT,670.00,0,Commercial Supplier
02/11/2018,Strategic Commissioning Adults,Reed Employment Plc,DAYCARE - PRIVATE CONTRACTORS PAYMENT,670.00,0,Commercial Supplier
02/11/2018,Strategic Commissioning Adults,Reed Employment Plc,DAYCARE - PRIVATE CONTRACTORS PAYMENT,971.50,0,Commercial Supplier
02/11/2018,Strategic Commissioning Adults,Reed Employment Plc,DAYCARE - PRIVATE CONTRACTORS PAYMENT,"1,693.60",0,Commercial Supplier
02/11/2018,Strategic Commissioning Adults,Reed Employment Plc,DAYCARE - PRIVATE CONTRACTORS PAYMENT,603.00,0,Commercial Supplier
02/11/2018,Strategic Commissioning Adults,Reed Employment Plc,DAYCARE - PRIVATE CONTRACTORS PAYMENT,438.00,0,Commercial Supplier
02/11/2018,oneSource oS ICT Services,Royal Mail Group Plc,POSTAGE AND COURIER SERVICES,"17,971.55",0,Commercial Supplier
02/11/2018,Strategic Commissioning CYPS,SEN Support Services Ltd,CONSULTANCY FEES,"2,145.00",0,Commercial Supplier
02/11/2018,RMS RMS,Screwfix Direct Ltd,BUILDING ALTERATIONS AND MATERIALS,359.80,0,Commercial Supplier
02/11/2018,Strategic Commissioning Community and Environment,Senior Learning Disability Group,STAFF DEVELOPMENT AND TRAINING,375.00,0,Commercial Supplier
02/11/2018,oneSource - Non Shared Asset Management,South Park Heating Services,BUILDING ALTERATIONS AND MATERIALS,305.27,0,CIS
02/11/2018,oneSource - Non Shared Asset Management,South Park Heating Services,BUILDING ALTERATIONS AND MATERIALS,298.22,0,CIS
02/11/2018,oneSource - Non Shared Asset Management,South Park Heating Services,BUILDING ALTERATIONS AND MATERIALS,357.00,0,CIS
02/11/2018,Strategic Commissioning CYPS,Sqc Consultancy,CONSULTANCY FEES,362.60,0,Supplier
02/11/2018,RMS RMS,Tersus Ltd,MISCELLANEOUS EXPENSES,495.00,0,Commercial Supplier
02/11/2018,Strategic Commissioning Community and Environment,The Forklift Company,VEHICLE HIRE,346.66,0,Commercial Supplier
02/11/2018,Strategic Commissioning CYPS,Turning Point Care Ltd,RESIDENTIAL PLACEMENTS - PRIVATE CONTRACTORS PAYMENT,"7,662.78",0,Non Commercial Supplier
02/11/2018,RMS RMS,Winkhaus Ltd,BUILDING ALTERATIONS AND MATERIALS,"1,202.47",0,Commercial Supplier
05/11/2018,Strategic Commissioning Community and Environment,Redacted - Personal Data,DIRECT PAYMENTS REFUNDS,"1,200.00",0,Individuals
05/11/2018,Strategic Commissioning CYPS,Action for Children Services Ltd,RESIDENTIAL PLACEMENTS - PRIVATE CONTRACTORS PAYMENT,855.55,0,Commercial Supplier
05/11/2018,Strategic Commissioning Community and Environment,Active Newham,ARTS AND LEISURE COSTS,"35,000.00",0,Supplier
05/11/2018,Strategic Commissioning Community and Environment,Active Newham,ARTS AND LEISURE COSTS,"29,574.48",0,Supplier
05/11/2018,Strategic Commissioning Enforcement and Safety,Active Newham,EVENTS,300.00,0,Supplier
05/11/2018,Strategic Commissioning Enforcement and Safety,Active Newham,EVENTS,415.00,0,Supplier
05/11/2018,Strategic Commissioning CYPS,Active Newham,ARTS AND LEISURE COSTS,"51,403.00",0,Supplier
05/11/2018,Strategic Commissioning CYPS,Adecco Uk Limited,OVERTIME,308.91,0,Commercial Supplier
05/11/2018,oneSource oS Strategic & Operational HR,Adecco Uk Limited,SALARIES,"3,416.10",0,Commercial Supplier
05/11/2018,oneSource oS ICT Services,Adecco Uk Limited,AGENCY STAFF,"27,110.22",0,Commercial Supplier
05/11/2018,oneSource oS Finance,Adecco Uk Limited,AGENCY STAFF,"21,069.86",0,Commercial Supplier
05/11/2018,oneSource oS Exchequer & Transactional Services,Adecco Uk Limited,AGENCY STAFF,"5,871.98",0,Commercial Supplier
05/11/2018,oneSource oS Business Services,Adecco Uk Limited,AGENCY STAFF,"5,779.00",0,Commercial Supplier
05/11/2018,oneSource oS Asset Management Services,Adecco Uk Limited,AGENCY STAFF,"11,456.05",0,Commercial Supplier
05/11/2018,oneSource - Non Shared Legal & Democratic,Adecco Uk Limited,AGENCY STAFF,"2,230.88",0,Commercial Supplier
05/11/2018,oneSource - Non Shared ICT Services,Adecco Uk Limited,AGENCY STAFF,"4,568.60",0,Commercial Supplier
05/11/2018,oneSource - Non Shared Asset Management,Adecco Uk Limited,AGENCY STAFF,"5,822.94",0,Commercial Supplier
05/11/2018,Strategic Commissioning Externalised Business Units,Adecco Uk Limited,AGENCY STAFF,"1,199.00",0,Commercial Supplier
05/11/2018,Strategic Commissioning Enforcement and Safety,Adecco Uk Limited,SALARIES,"1,343.68",0,Commercial Supplier
05/11/2018,Strategic Commissioning Enforcement and Safety,Adecco Uk Limited,EMPLOYER LIABILITY INSURANCE,744.99,0,Commercial Supplier
05/11/2018,Regeneration and Planning Planning,Adecco Uk Limited,AGENCY STAFF,"1,183.05",0,Commercial Supplier
05/11/2018,Customer & Strategic Services Communications,Adecco Uk Limited,AGENCY STAFF,"1,549.80",0,Commercial Supplier
05/11/2018,Customer & Strategic Services Public Policy and Research,Adecco Uk Limited,AGENCY STAFF,"1,566.15",0,Commercial Supplier
05/11/2018,Financial Sustainability Financial Sustainability,Adecco Uk Limited,AGENCY STAFF,"3,028.76",0,Commercial Supplier
05/11/2018,Housing Revenue Account HRA,Adecco Uk Limited,AGENCY STAFF,"15,661.63",0,Commercial Supplier
05/11/2018,Housing Revenue Account HRA,Adecco Uk Limited,STAFF OTHER EXPENSES,"3,369.59",0,Commercial Supplier
05/11/2018,Strategic Commissioning Enforcement and Safety,Adecco Uk Limited,AGENCY STAFF,"13,145.68",0,Commercial Supplier
05/11/2018,RMS RMS,Adecco Uk Limited,JOINT AUTHORITIES PAYMENTS,"1,894.78",0,Commercial Supplier
05/11/2018,Strategic Commissioning Community and Environment,Adecco Uk Limited,AGENCY STAFF,"33,931.24",0,Commercial Supplier
05/11/2018,Regeneration and Planning Regeneration,Adecco Uk Limited,AGENCY STAFF,"4,748.96",0,Commercial Supplier
05/11/2018,Strategic Commissioning Adults,Adecco Uk Limited,AGENCY STAFF,"131,403.65",0,Commercial Supplier
05/11/2018,Strategic Commissioning Adults,Adecco Uk Limited,SALARIES,"18,918.37",0,Commercial Supplier
05/11/2018,Strategic Commissioning CYPS,Adecco Uk Limited,AGENCY STAFF,"169,741.24",0,Commercial Supplier
05/11/2018,Strategic Commissioning CYPS,Adecco Uk Limited,CLEANING SERVICES,"1,701.87",0,Commercial Supplier
05/11/2018,RMS RMS,Adecco Uk Limited,AGENCY STAFF,"8,723.91",0,Commercial Supplier
05/11/2018,Strategic Commissioning CYPS,Redacted - Personal Data,SPECIAL GUARDIANSHIP,475.00,0,Foster Carers
05/11/2018,Strategic Commissioning CYPS,Redacted - Personal Data,SPECIAL GUARDIANSHIP,475.00,0,Foster Carers
05/11/2018,Strategic Commissioning CYPS,Redacted - Personal Data,SPECIAL GUARDIANSHIP,475.00,0,Foster Carers
05/11/2018,Strategic Commissioning CYPS,Redacted - Personal Data,SPECIAL GUARDIANSHIP,475.00,0,Foster Carers
05/11/2018,Business and Growth Business and Growth,Appraisals Abound Ltd,CONSULTANCY FEES,"3,360.00",0,Commercial Supplier
05/11/2018,Strategic Commissioning CYPS,Banya Family Placement Agency Ltd,RESIDENTIAL PLACEMENTS - PRIVATE CONTRACTORS PAYMENT,"3,258.36",0,Commercial Supplier
05/11/2018,Strategic Commissioning Enforcement and Safety,Biffa Waste Services Ltd,PROFESSIONAL SERVICES - GENERAL,"1,091.96",0,Commercial Supplier
05/11/2018,oneSource oS Legal & Governance,Black Cat Couriers Ltd,POSTAGE AND COURIER SERVICES,287.60,0,Commercial Supplier
05/11/2018,oneSource oS ICT Services,Black Cat Couriers Ltd,POSTAGE AND COURIER SERVICES,361.30,0,Commercial Supplier
05/11/2018,Strategic Commissioning Adults,Buddi Ltd,SECURITY SERVICES (EXCLUDING PREMISES),780.00,0,Commercial Supplier
05/11/2018,Strategic Commissioning Adults,Buddi Ltd,SECURITY SERVICES (EXCLUDING PREMISES),390.00,0,Commercial Supplier
05/11/2018,Strategic Commissioning CYPS,By the Bridge,RESIDENTIAL PLACEMENTS - PRIVATE CONTRACTORS PAYMENT,935.80,0,Commercial Supplier
05/11/2018,Strategic Commissioning CYPS,By the Bridge,RESIDENTIAL PLACEMENTS - PRIVATE CONTRACTORS PAYMENT,"1,061.93",0,Commercial Supplier
05/11/2018,Strategic Commissioning CYPS,By the Bridge,RESIDENTIAL PLACEMENTS - PRIVATE CONTRACTORS PAYMENT,"1,061.93",0,Commercial Supplier
05/11/2018,Strategic Commissioning CYPS,By the Bridge,RESIDENTIAL PLACEMENTS - PRIVATE CONTRACTORS PAYMENT,935.80,0,Commercial Supplier
05/11/2018,Strategic Commissioning CYPS,By the Bridge,RESIDENTIAL PLACEMENTS - PRIVATE CONTRACTORS PAYMENT,935.80,0,Commercial Supplier
05/11/2018,Strategic Commissioning CYPS,By the Bridge,RESIDENTIAL PLACEMENTS - PRIVATE CONTRACTORS PAYMENT,"1,061.93",0,Commercial Supplier
05/11/2018,Strategic Commissioning CYPS,By the Bridge,RESIDENTIAL PLACEMENTS - PRIVATE CONTRACTORS PAYMENT,"1,061.93",0,Commercial Supplier
05/11/2018,Strategic Commissioning CYPS,By the Bridge,RESIDENTIAL PLACEMENTS - PRIVATE CONTRACTORS PAYMENT,"1,061.93",0,Commercial Supplier
05/11/2018,Strategic Commissioning CYPS,By the Bridge,RESIDENTIAL PLACEMENTS - PRIVATE CONTRACTORS PAYMENT,946.28,0,Commercial Supplier
05/11/2018,Strategic Commissioning CYPS,By the Bridge,RESIDENTIAL PLACEMENTS - PRIVATE CONTRACTORS PAYMENT,946.28,0,Commercial Supplier
05/11/2018,Strategic Commissioning CYPS,By the Bridge,RESIDENTIAL PLACEMENTS - PRIVATE CONTRACTORS PAYMENT,946.28,0,Commercial Supplier
05/11/2018,Strategic Commissioning CYPS,By the Bridge,RESIDENTIAL PLACEMENTS - PRIVATE CONTRACTORS PAYMENT,946.28,0,Commercial Supplier
05/11/2018,Strategic Commissioning CYPS,By the Bridge,RESIDENTIAL PLACEMENTS - PRIVATE CONTRACTORS PAYMENT,935.80,0,Commercial Supplier
05/11/2018,Strategic Commissioning CYPS,By the Bridge,RESIDENTIAL PLACEMENTS - PRIVATE CONTRACTORS PAYMENT,"1,061.93",0,Commercial Supplier
05/11/2018,Strategic Commissioning CYPS,By the Bridge,RESIDENTIAL PLACEMENTS - PRIVATE CONTRACTORS PAYMENT,"1,061.93",0,Commercial Supplier
05/11/2018,Strategic Commissioning CYPS,By the Bridge,RESIDENTIAL PLACEMENTS - PRIVATE CONTRACTORS PAYMENT,931.89,0,Commercial Supplier
05/11/2018,Strategic Commissioning CYPS,By the Bridge,RESIDENTIAL PLACEMENTS - PRIVATE CONTRACTORS PAYMENT,931.89,0,Commercial Supplier
05/11/2018,Strategic Commissioning CYPS,By the Bridge,RESIDENTIAL PLACEMENTS - PRIVATE CONTRACTORS PAYMENT,931.89,0,Commercial Supplier
05/11/2018,Strategic Commissioning CYPS,By the Bridge,RESIDENTIAL PLACEMENTS - PRIVATE CONTRACTORS PAYMENT,931.89,0,Commercial Supplier
05/11/2018,Strategic Commissioning CYPS,By the Bridge,RESIDENTIAL PLACEMENTS - PRIVATE CONTRACTORS PAYMENT,"1,061.93",0,Commercial Supplier
05/11/2018,Strategic Commissioning CYPS,Redacted - Personal Data,ADOPTION ALLOWANCE - PRIVATE CONTRACTORS PAYMENT,465.88,0,Foster Carers
05/11/2018,Strategic Commissioning CYPS,Redacted - Personal Data,ADOPTION ALLOWANCE - PRIVATE CONTRACTORS PAYMENT,465.88,0,Foster Carers
05/11/2018,Strategic Commissioning CYPS,Redacted - Personal Data,ADOPTION ALLOWANCE - PRIVATE CONTRACTORS PAYMENT,459.76,0,Foster Carers
05/11/2018,Strategic Commissioning CYPS,Redacted - Personal Data,ADOPTION ALLOWANCE - PRIVATE CONTRACTORS PAYMENT,459.76,0,Foster Carers
05/11/2018,oneSource oS ICT Services,CCS Media Limited,ICT HARDWARE,"1,602.00",0,Commercial Supplier
05/11/2018,oneSource oS ICT Services,CCS Media Limited,ICT HARDWARE,"1,244.36",0,Commercial Supplier
05/11/2018,Strategic Commissioning Community and Environment,Calibration Engineering Services Ltd,PURCHASE OF VEHICLES RELATED COSTS,"9,050.05",0,Non Commercial Supplier
05/11/2018,Strategic Commissioning CYPS,Capstone Foster Care (South East) Ltd,RESIDENTIAL PLACEMENTS - PRIVATE CONTRACTORS PAYMENT,775.07,0,Commercial Supplier
05/11/2018,Strategic Commissioning CYPS,Capstone Foster Care (South East) Ltd,RESIDENTIAL PLACEMENTS - PRIVATE CONTRACTORS PAYMENT,775.07,0,Commercial Supplier
05/11/2018,Strategic Commissioning CYPS,Capstone Foster Care (South East) Ltd,RESIDENTIAL PLACEMENTS - PRIVATE CONTRACTORS PAYMENT,775.07,0,Commercial Supplier
05/11/2018,Strategic Commissioning CYPS,Capstone Foster Care (South East) Ltd,RESIDENTIAL PLACEMENTS - PRIVATE CONTRACTORS PAYMENT,793.00,0,Commercial Supplier
05/11/2018,Strategic Commissioning CYPS,Capstone Foster Care (South East) Ltd,RESIDENTIAL PLACEMENTS - PRIVATE CONTRACTORS PAYMENT,793.00,0,Commercial Supplier
05/11/2018,Strategic Commissioning CYPS,Capstone Foster Care (South East) Ltd,RESIDENTIAL PLACEMENTS - PRIVATE CONTRACTORS PAYMENT,802.62,0,Commercial Supplier
05/11/2018,Strategic Commissioning CYPS,Capstone Foster Care (South East) Ltd,RESIDENTIAL PLACEMENTS - PRIVATE CONTRACTORS PAYMENT,775.07,0,Commercial Supplier
05/11/2018,Strategic Commissioning CYPS,Capstone Foster Care (South East) Ltd,RESIDENTIAL PLACEMENTS - PRIVATE CONTRACTORS PAYMENT,802.62,0,Commercial Supplier
05/11/2018,Strategic Commissioning CYPS,Capstone Foster Care (South East) Ltd,RESIDENTIAL PLACEMENTS - PRIVATE CONTRACTORS PAYMENT,802.62,0,Commercial Supplier
05/11/2018,Strategic Commissioning CYPS,Capstone Foster Care (South East) Ltd,RESIDENTIAL PLACEMENTS - PRIVATE CONTRACTORS PAYMENT,802.62,0,Commercial Supplier
05/11/2018,Strategic Commissioning CYPS,Capstone Foster Care (South East) Ltd,RESIDENTIAL PLACEMENTS - PRIVATE CONTRACTORS PAYMENT,802.62,0,Commercial Supplier
05/11/2018,Strategic Commissioning CYPS,Capstone Foster Care (South East) Ltd,RESIDENTIAL PLACEMENTS - PRIVATE CONTRACTORS PAYMENT,802.62,0,Commercial Supplier
05/11/2018,Strategic Commissioning CYPS,Capstone Foster Care (South East) Ltd,RESIDENTIAL PLACEMENTS - PRIVATE CONTRACTORS PAYMENT,802.62,0,Commercial Supplier
05/11/2018,Strategic Commissioning CYPS,Capstone Foster Care (South East) Ltd,RESIDENTIAL PLACEMENTS - PRIVATE CONTRACTORS PAYMENT,793.00,0,Commercial Supplier
05/11/2018,Strategic Commissioning CYPS,Capstone Foster Care (South East) Ltd,RESIDENTIAL PLACEMENTS - PRIVATE CONTRACTORS PAYMENT,775.07,0,Commercial Supplier
05/11/2018,Strategic Commissioning CYPS,Capstone Foster Care (South East) Ltd,RESIDENTIAL PLACEMENTS - PRIVATE CONTRACTORS PAYMENT,775.07,0,Commercial Supplier
05/11/2018,Strategic Commissioning CYPS,Capstone Foster Care (South East) Ltd,RESIDENTIAL PLACEMENTS - PRIVATE CONTRACTORS PAYMENT,793.00,0,Commercial Supplier
05/11/2018,Strategic Commissioning CYPS,Capstone Foster Care (South East) Ltd,RESIDENTIAL PLACEMENTS - PRIVATE CONTRACTORS PAYMENT,793.00,0,Commercial Supplier
05/11/2018,Strategic Commissioning CYPS,Capstone Foster Care (South East) Ltd,RESIDENTIAL PLACEMENTS - PRIVATE CONTRACTORS PAYMENT,793.00,0,Commercial Supplier
05/11/2018,Strategic Commissioning CYPS,Capstone Foster Care (South East) Ltd,RESIDENTIAL PLACEMENTS - PRIVATE CONTRACTORS PAYMENT,793.00,0,Commercial Supplier
05/11/2018,Strategic Commissioning CYPS,Capstone Foster Care (South East) Ltd,RESIDENTIAL PLACEMENTS - PRIVATE CONTRACTORS PAYMENT,793.00,0,Commercial Supplier
05/11/2018,Strategic Commissioning CYPS,Capstone Foster Care (South East) Ltd,RESIDENTIAL PLACEMENTS - PRIVATE CONTRACTORS PAYMENT,802.62,0,Commercial Supplier
05/11/2018,Strategic Commissioning CYPS,Capstone Foster Care (South East) Ltd,RESIDENTIAL PLACEMENTS - PRIVATE CONTRACTORS PAYMENT,775.07,0,Commercial Supplier
05/11/2018,Strategic Commissioning CYPS,Capstone Foster Care (South East) Ltd,RESIDENTIAL PLACEMENTS - PRIVATE CONTRACTORS PAYMENT,775.07,0,Commercial Supplier
05/11/2018,Strategic Commissioning CYPS,Redacted - Personal Data,SPECIAL GUARDIANSHIP,383.00,0,Foster Carers
05/11/2018,Strategic Commissioning CYPS,Redacted - Personal Data,SPECIAL GUARDIANSHIP,383.00,0,Foster Carers
05/11/2018,Strategic Commissioning CYPS,Redacted - Personal Data,SPECIAL GUARDIANSHIP,553.84,0,Foster Carers
05/11/2018,Strategic Commissioning CYPS,Redacted - Personal Data,SPECIAL GUARDIANSHIP,553.84,0,Foster Carers
05/11/2018,Customer & Strategic Services Communications,Centre Stage,"PURCHASE - EQUIPMENT, FURNITURE AND MATERIALS","2,650.00",0,Commercial Supplier
05/11/2018,Strategic Commissioning Adults,Chenai Holistic Homecare Agency Ltd,DAYCARE - PRIVATE CONTRACTORS PAYMENT,"3,101.32",0,Supplier
05/11/2018,Strategic Commissioning Adults,Chenai Holistic Homecare Agency Ltd,HOME CARE - PRIVATE CONTRACTORS PAYMENT,"32,217.74",0,Supplier
05/11/2018,Strategic Commissioning Adults,Chenai Holistic Homecare Agency Ltd,RESPITE CARE - PRIVATE CONTRACTORS PAYMENT,276.00,0,Supplier
05/11/2018,Strategic Commissioning CYPS,Redacted - Personal Data,ADOPTION ALLOWANCE - PRIVATE CONTRACTORS PAYMENT,323.50,0,Foster Carers
05/11/2018,Strategic Commissioning CYPS,Redacted - Personal Data,ADOPTION ALLOWANCE - PRIVATE CONTRACTORS PAYMENT,323.50,0,Foster Carers
05/11/2018,oneSource - Non Shared LBN Transactional Services,Choicelet Ltd,GRANTS AND CONTRIBUTIONS,"1,164.00",0,Individuals
05/11/2018,Strategic Commissioning CYPS,Chrysalis Care Ltd,RESIDENTIAL PLACEMENTS - PRIVATE CONTRACTORS PAYMENT,"1,012.75",0,Non Commercial Supplier
05/11/2018,Strategic Commissioning CYPS,Chrysalis Care Ltd,RESIDENTIAL PLACEMENTS - PRIVATE CONTRACTORS PAYMENT,"1,012.75",0,Non Commercial Supplier
05/11/2018,Strategic Commissioning CYPS,Chrysalis Care Ltd,RESIDENTIAL PLACEMENTS - PRIVATE CONTRACTORS PAYMENT,"1,012.75",0,Non Commercial Supplier
05/11/2018,Strategic Commissioning CYPS,Chrysalis Care Ltd,RESIDENTIAL PLACEMENTS - PRIVATE CONTRACTORS PAYMENT,"1,012.75",0,Non Commercial Supplier
05/11/2018,Strategic Commissioning CYPS,Redacted - Personal Data,SPECIAL GUARDIANSHIP,377.55,0,Foster Carers
05/11/2018,Strategic Commissioning CYPS,Redacted - Personal Data,SPECIAL GUARDIANSHIP,377.55,0,Foster Carers
05/11/2018,Strategic Commissioning CYPS,Redacted - Personal Data,SPECIAL GUARDIANSHIP,291.11,0,Foster Carers
05/11/2018,Strategic Commissioning CYPS,Redacted - Personal Data,SPECIAL GUARDIANSHIP,291.11,0,Foster Carers
05/11/2018,Strategic Commissioning CYPS,Claremore Mechanical Services Limited,BUILDING ALTERATIONS AND MATERIALS,441.60,0,CIS
05/11/2018,Strategic Commissioning Adults,Clarity Employment For The Blind,DAYCARE - PRIVATE CONTRACTORS PAYMENT,"1,520.28",0,Supplier
05/11/2018,Strategic Commissioning CYPS,Compass Fostering,RESIDENTIAL PLACEMENTS - PRIVATE CONTRACTORS PAYMENT,829.99,0,Commercial Supplier
05/11/2018,Strategic Commissioning CYPS,Compass Fostering,RESIDENTIAL PLACEMENTS - PRIVATE CONTRACTORS PAYMENT,829.99,0,Commercial Supplier
05/11/2018,Strategic Commissioning CYPS,Compass Fostering,RESIDENTIAL PLACEMENTS - PRIVATE CONTRACTORS PAYMENT,829.99,0,Commercial Supplier
05/11/2018,Strategic Commissioning CYPS,Compass Fostering,RESIDENTIAL PLACEMENTS - PRIVATE CONTRACTORS PAYMENT,829.99,0,Commercial Supplier
05/11/2018,Strategic Commissioning CYPS,Compass Fostering,RESIDENTIAL PLACEMENTS - PRIVATE CONTRACTORS PAYMENT,829.99,0,Commercial Supplier
05/11/2018,Strategic Commissioning CYPS,Compass Fostering,RESIDENTIAL PLACEMENTS - PRIVATE CONTRACTORS PAYMENT,829.99,0,Commercial Supplier
05/11/2018,Strategic Commissioning CYPS,Compass Fostering,RESIDENTIAL PLACEMENTS - PRIVATE CONTRACTORS PAYMENT,829.99,0,Commercial Supplier
05/11/2018,Strategic Commissioning CYPS,Compass Fostering,RESIDENTIAL PLACEMENTS - PRIVATE CONTRACTORS PAYMENT,592.85,0,Commercial Supplier
05/11/2018,Strategic Commissioning CYPS,Compass Fostering,RESIDENTIAL PLACEMENTS - PRIVATE CONTRACTORS PAYMENT,829.99,0,Commercial Supplier
05/11/2018,Strategic Commissioning CYPS,Compass Fostering,RESIDENTIAL PLACEMENTS - PRIVATE CONTRACTORS PAYMENT,481.56,0,Commercial Supplier
05/11/2018,Strategic Commissioning CYPS,Compass Fostering,RESIDENTIAL PLACEMENTS - PRIVATE CONTRACTORS PAYMENT,674.18,0,Commercial Supplier
05/11/2018,Strategic Commissioning CYPS,Compass Fostering,RESIDENTIAL PLACEMENTS - PRIVATE CONTRACTORS PAYMENT,716.39,0,Commercial Supplier
05/11/2018,Strategic Commissioning CYPS,Compass Fostering,RESIDENTIAL PLACEMENTS - PRIVATE CONTRACTORS PAYMENT,829.99,0,Commercial Supplier
05/11/2018,Strategic Commissioning CYPS,Compass Fostering,RESIDENTIAL PLACEMENTS - PRIVATE CONTRACTORS PAYMENT,730.00,0,Commercial Supplier
05/11/2018,Strategic Commissioning CYPS,Compass Fostering,RESIDENTIAL PLACEMENTS - PRIVATE CONTRACTORS PAYMENT,702.31,0,Commercial Supplier
05/11/2018,Strategic Commissioning CYPS,Compass Fostering,RESIDENTIAL PLACEMENTS - PRIVATE CONTRACTORS PAYMENT,702.31,0,Commercial Supplier
05/11/2018,Strategic Commissioning CYPS,Compass Fostering,RESIDENTIAL PLACEMENTS - PRIVATE CONTRACTORS PAYMENT,716.39,0,Commercial Supplier
05/11/2018,Strategic Commissioning CYPS,Compass Fostering,RESIDENTIAL PLACEMENTS - PRIVATE CONTRACTORS PAYMENT,695.03,0,Commercial Supplier
05/11/2018,Strategic Commissioning CYPS,Compass Fostering,RESIDENTIAL PLACEMENTS - PRIVATE CONTRACTORS PAYMENT,695.03,0,Commercial Supplier
05/11/2018,Strategic Commissioning CYPS,Compass Fostering,RESIDENTIAL PLACEMENTS - PRIVATE CONTRACTORS PAYMENT,716.39,0,Commercial Supplier
05/11/2018,Strategic Commissioning CYPS,Compass Fostering,RESIDENTIAL PLACEMENTS - PRIVATE CONTRACTORS PAYMENT,730.00,0,Commercial Supplier
05/11/2018,Strategic Commissioning CYPS,Compass Fostering,RESIDENTIAL PLACEMENTS - PRIVATE CONTRACTORS PAYMENT,702.31,0,Commercial Supplier
05/11/2018,Strategic Commissioning CYPS,Compass Fostering,RESIDENTIAL PLACEMENTS - PRIVATE CONTRACTORS PAYMENT,716.39,0,Commercial Supplier
05/11/2018,Strategic Commissioning CYPS,Compass Fostering,RESIDENTIAL PLACEMENTS - PRIVATE CONTRACTORS PAYMENT,716.39,0,Commercial Supplier
05/11/2018,Strategic Commissioning CYPS,Compass Fostering,RESIDENTIAL PLACEMENTS - PRIVATE CONTRACTORS PAYMENT,716.39,0,Commercial Supplier
05/11/2018,Strategic Commissioning CYPS,Compass Fostering,RESIDENTIAL PLACEMENTS - PRIVATE CONTRACTORS PAYMENT,674.18,0,Commercial Supplier
05/11/2018,Strategic Commissioning CYPS,Compass Fostering,RESIDENTIAL PLACEMENTS - PRIVATE CONTRACTORS PAYMENT,716.39,0,Commercial Supplier
05/11/2018,Strategic Commissioning CYPS,Compass Fostering,RESIDENTIAL PLACEMENTS - PRIVATE CONTRACTORS PAYMENT,674.16,0,Commercial Supplier
05/11/2018,Strategic Commissioning CYPS,Compass Fostering,RESIDENTIAL PLACEMENTS - PRIVATE CONTRACTORS PAYMENT,674.16,0,Commercial Supplier
05/11/2018,Strategic Commissioning CYPS,Compass Fostering,RESIDENTIAL PLACEMENTS - PRIVATE CONTRACTORS PAYMENT,702.31,0,Commercial Supplier
05/11/2018,Strategic Commissioning CYPS,Compass Fostering,RESIDENTIAL PLACEMENTS - PRIVATE CONTRACTORS PAYMENT,674.16,0,Commercial Supplier
05/11/2018,Strategic Commissioning CYPS,Compass Fostering,RESIDENTIAL PLACEMENTS - PRIVATE CONTRACTORS PAYMENT,730.00,0,Commercial Supplier
05/11/2018,Strategic Commissioning CYPS,Compass Fostering,RESIDENTIAL PLACEMENTS - PRIVATE CONTRACTORS PAYMENT,716.39,0,Commercial Supplier
05/11/2018,Strategic Commissioning CYPS,Compass Fostering,RESIDENTIAL PLACEMENTS - PRIVATE CONTRACTORS PAYMENT,730.00,0,Commercial Supplier
05/11/2018,Strategic Commissioning CYPS,Compass Fostering,RESIDENTIAL PLACEMENTS - PRIVATE CONTRACTORS PAYMENT,695.03,0,Commercial Supplier
05/11/2018,Strategic Commissioning CYPS,Compass Fostering,RESIDENTIAL PLACEMENTS - PRIVATE CONTRACTORS PAYMENT,695.03,0,Commercial Supplier
05/11/2018,Strategic Commissioning CYPS,Compass Fostering,RESIDENTIAL PLACEMENTS - PRIVATE CONTRACTORS PAYMENT,674.16,0,Commercial Supplier
05/11/2018,Strategic Commissioning Adults,Compassion In Dying,STAFF DEVELOPMENT AND TRAINING,600.00,0,Commercial Supplier
05/11/2018,Strategic Commissioning CYPS,Redacted - Personal Data,DIRECT TRANSPORT,555.52,0,Non Commercial Supplier
05/11/2018,Strategic Commissioning CYPS,Core Assets Fostering Ltd,RESIDENTIAL PLACEMENTS - PRIVATE CONTRACTORS PAYMENT,"1,473.90",0,Commercial Supplier
05/11/2018,Strategic Commissioning CYPS,Core Assets Fostering Ltd,RESIDENTIAL PLACEMENTS - PRIVATE CONTRACTORS PAYMENT,"1,473.90",0,Commercial Supplier
05/11/2018,Strategic Commissioning CYPS,Core Assets Fostering Ltd,RESIDENTIAL PLACEMENTS - PRIVATE CONTRACTORS PAYMENT,"1,272.95",0,Commercial Supplier
05/11/2018,Strategic Commissioning CYPS,Core Assets Fostering Ltd,RESIDENTIAL PLACEMENTS - PRIVATE CONTRACTORS PAYMENT,"1,473.90",0,Commercial Supplier
05/11/2018,Strategic Commissioning CYPS,Core Assets Fostering Ltd,RESIDENTIAL PLACEMENTS - PRIVATE CONTRACTORS PAYMENT,"1,272.95",0,Commercial Supplier
05/11/2018,Strategic Commissioning CYPS,Core Assets Fostering Ltd,RESIDENTIAL PLACEMENTS - PRIVATE CONTRACTORS PAYMENT,"1,272.95",0,Commercial Supplier
05/11/2018,Strategic Commissioning CYPS,Core Assets Fostering Ltd,RESIDENTIAL PLACEMENTS - PRIVATE CONTRACTORS PAYMENT,"1,473.90",0,Commercial Supplier
05/11/2018,Strategic Commissioning CYPS,Core Assets Fostering Ltd,RESIDENTIAL PLACEMENTS - PRIVATE CONTRACTORS PAYMENT,989.10,0,Commercial Supplier
05/11/2018,Strategic Commissioning CYPS,Core Assets Fostering Ltd,RESIDENTIAL PLACEMENTS - PRIVATE CONTRACTORS PAYMENT,989.10,0,Commercial Supplier
05/11/2018,Strategic Commissioning CYPS,Core Assets Fostering Ltd,RESIDENTIAL PLACEMENTS - PRIVATE CONTRACTORS PAYMENT,989.10,0,Commercial Supplier
05/11/2018,Strategic Commissioning CYPS,Core Assets Fostering Ltd,RESIDENTIAL PLACEMENTS - PRIVATE CONTRACTORS PAYMENT,989.10,0,Commercial Supplier
05/11/2018,Strategic Commissioning CYPS,Core Assets Fostering Ltd,RESIDENTIAL PLACEMENTS - PRIVATE CONTRACTORS PAYMENT,"1,272.95",0,Commercial Supplier
05/11/2018,oneSource oS ICT Services,Daisy Communications Ltd,LAND LINE TELEPHONE COSTS,"2,994.94",0,Commercial Supplier
05/11/2018,oneSource oS ICT Services,Daisy Communications Ltd,LAND LINE TELEPHONE COSTS,"7,134.10",0,Commercial Supplier
05/11/2018,Strategic Commissioning CYPS,Redacted - Personal Data,SPECIAL GUARDIANSHIP,"1,042.77",0,Foster Carers
05/11/2018,Strategic Commissioning CYPS,Redacted - Personal Data,SPECIAL GUARDIANSHIP,"1,042.77",0,Foster Carers
05/11/2018,Strategic Commissioning CYPS,Redacted - Personal Data,ADOPTION ALLOWANCE - PRIVATE CONTRACTORS PAYMENT,321.22,0,Foster Carers
05/11/2018,Strategic Commissioning CYPS,Redacted - Personal Data,ADOPTION ALLOWANCE - PRIVATE CONTRACTORS PAYMENT,321.22,0,Foster Carers
05/11/2018,Strategic Commissioning CYPS,Diverse Care Uk Ltd,RESIDENTIAL PLACEMENTS - PRIVATE CONTRACTORS PAYMENT,735.00,0,Commercial Supplier
05/11/2018,Strategic Commissioning CYPS,Diverse Care Uk Ltd,RESIDENTIAL PLACEMENTS - PRIVATE CONTRACTORS PAYMENT,735.00,0,Commercial Supplier
05/11/2018,Strategic Commissioning CYPS,Diverse Care Uk Ltd,RESIDENTIAL PLACEMENTS - PRIVATE CONTRACTORS PAYMENT,735.00,0,Commercial Supplier
05/11/2018,Strategic Commissioning CYPS,Diverse Care Uk Ltd,RESIDENTIAL PLACEMENTS - PRIVATE CONTRACTORS PAYMENT,735.00,0,Commercial Supplier
05/11/2018,Strategic Commissioning CYPS,Diverse Care Uk Ltd,RESIDENTIAL PLACEMENTS - PRIVATE CONTRACTORS PAYMENT,735.00,0,Commercial Supplier
05/11/2018,Strategic Commissioning CYPS,Diverse Care Uk Ltd,RESIDENTIAL PLACEMENTS - PRIVATE CONTRACTORS PAYMENT,735.00,0,Commercial Supplier
05/11/2018,Strategic Commissioning CYPS,Diverse Care Uk Ltd,RESIDENTIAL PLACEMENTS - PRIVATE CONTRACTORS PAYMENT,735.00,0,Commercial Supplier
05/11/2018,Strategic Commissioning CYPS,Diverse Care Uk Ltd,RESIDENTIAL PLACEMENTS - PRIVATE CONTRACTORS PAYMENT,735.00,0,Commercial Supplier
05/11/2018,Strategic Commissioning CYPS,Doe Motors Ltd,VEHICLE REPAIRS AND MAINTENANCE,406.01,0,Supplier
05/11/2018,Strategic Commissioning CYPS,Redacted - Personal Data,ADOPTION ALLOWANCE - PRIVATE CONTRACTORS PAYMENT,284.62,0,Foster Carers
05/11/2018,Strategic Commissioning CYPS,Redacted - Personal Data,ADOPTION ALLOWANCE - PRIVATE CONTRACTORS PAYMENT,284.62,0,Foster Carers
05/11/2018,Strategic Commissioning CYPS,Redacted - Personal Data,ADOPTION ALLOWANCE - PRIVATE CONTRACTORS PAYMENT,284.62,0,Foster Carers
05/11/2018,Strategic Commissioning CYPS,Redacted - Personal Data,ADOPTION ALLOWANCE - PRIVATE CONTRACTORS PAYMENT,284.62,0,Foster Carers
05/11/2018,Strategic Commissioning CYPS,Redacted - Personal Data,ADOPTION ALLOWANCE - PRIVATE CONTRACTORS PAYMENT,284.62,0,Foster Carers
05/11/2018,Strategic Commissioning CYPS,Redacted - Personal Data,ADOPTION ALLOWANCE - PRIVATE CONTRACTORS PAYMENT,284.62,0,Foster Carers
05/11/2018,oneSource - Non Shared Asset Management,EDF Energy,ELECTRICITY,298.56,0,Commercial Supplier
05/11/2018,Strategic Commissioning CYPS,Early Start Group Ltd,PRIVATE CONTRACTORS PAYMENT - OTHER,"59,180.00",0,Commercial Supplier
05/11/2018,oneSource - Non Shared Asset Management,Education Support (Newham) Ltd,"MAINTENANCE - EQUIPMENT, FURNITURE AND MATERIALS","322,794.59",0,Supplier
05/11/2018,Regeneration and Planning Economic Regeneration,Elba,CONSULTANCY FEES,"25,000.00",0,Supplier
05/11/2018,Strategic Commissioning CYPS,Redacted - Personal Data,SPECIAL GUARDIANSHIP,600.00,0,Individuals
05/11/2018,Strategic Commissioning CYPS,Redacted - Personal Data,SPECIAL GUARDIANSHIP,600.00,0,Individuals
05/11/2018,Strategic Commissioning CYPS,Elliot Leigh TLC Ltd,CLIENT SUPPORT - THIRD PARTY,840.00,0,Commercial Supplier
05/11/2018,Strategic Commissioning CYPS,Elliot Leigh TLC Ltd,IN HOUSE FOSTER CARE PLACEMENTS - PRIVATE CONTRACTORS PAYMENT,"1,000.00",0,Commercial Supplier
05/11/2018,Strategic Commissioning CYPS,Redacted - Personal Data,SPECIAL GUARDIANSHIP,321.11,0,Foster Carers
05/11/2018,Strategic Commissioning CYPS,Redacted - Personal Data,SPECIAL GUARDIANSHIP,321.11,0,Foster Carers
05/11/2018,Regeneration and Planning Economic Regeneration,Family Fund Trading Ltd,CONSULTANCY FEES,"6,208.33",0,Commercial Supplier
05/11/2018,Strategic Commissioning CYPS,Five Rivers Child Care Ltd,RESIDENTIAL PLACEMENTS - PRIVATE CONTRACTORS PAYMENT,820.00,0,Commercial Supplier
05/11/2018,Strategic Commissioning CYPS,Five Rivers Child Care Ltd,RESIDENTIAL PLACEMENTS - PRIVATE CONTRACTORS PAYMENT,820.00,0,Commercial Supplier
05/11/2018,Strategic Commissioning CYPS,Five Rivers Child Care Ltd,RESIDENTIAL PLACEMENTS - PRIVATE CONTRACTORS PAYMENT,820.00,0,Commercial Supplier
05/11/2018,Strategic Commissioning CYPS,Five Rivers Child Care Ltd,RESIDENTIAL PLACEMENTS - PRIVATE CONTRACTORS PAYMENT,820.00,0,Commercial Supplier
05/11/2018,Strategic Commissioning CYPS,Foster Care Link,RESIDENTIAL PLACEMENTS - PRIVATE CONTRACTORS PAYMENT,735.33,0,Non Commercial Supplier
05/11/2018,Strategic Commissioning CYPS,Foster Care Link,RESIDENTIAL PLACEMENTS - PRIVATE CONTRACTORS PAYMENT,735.33,0,Non Commercial Supplier
05/11/2018,Strategic Commissioning CYPS,Foster Care Link,RESIDENTIAL PLACEMENTS - PRIVATE CONTRACTORS PAYMENT,735.33,0,Non Commercial Supplier
05/11/2018,Strategic Commissioning CYPS,Foster Care Link,RESIDENTIAL PLACEMENTS - PRIVATE CONTRACTORS PAYMENT,735.33,0,Non Commercial Supplier
05/11/2018,Customer & Strategic Services Communications,Greatbatch Ltd,"ADVERTISING, PUBLICITY AND MARKETING","7,578.22",0,Commercial Supplier
05/11/2018,Strategic Commissioning CYPS,Greater London Fostering,RESIDENTIAL PLACEMENTS - PRIVATE CONTRACTORS PAYMENT,794.20,0,Commercial Supplier
05/11/2018,Strategic Commissioning CYPS,Greater London Fostering,RESIDENTIAL PLACEMENTS - PRIVATE CONTRACTORS PAYMENT,794.20,0,Commercial Supplier
05/11/2018,Strategic Commissioning CYPS,Greater London Fostering,RESIDENTIAL PLACEMENTS - PRIVATE CONTRACTORS PAYMENT,748.68,0,Commercial Supplier
05/11/2018,Strategic Commissioning CYPS,Greater London Fostering,RESIDENTIAL PLACEMENTS - PRIVATE CONTRACTORS PAYMENT,748.68,0,Commercial Supplier
05/11/2018,Strategic Commissioning CYPS,Greater London Fostering,RESIDENTIAL PLACEMENTS - PRIVATE CONTRACTORS PAYMENT,778.63,0,Commercial Supplier
05/11/2018,Strategic Commissioning CYPS,Greater London Fostering,RESIDENTIAL PLACEMENTS - PRIVATE CONTRACTORS PAYMENT,778.63,0,Commercial Supplier
05/11/2018,Strategic Commissioning CYPS,Greater London Fostering,RESIDENTIAL PLACEMENTS - PRIVATE CONTRACTORS PAYMENT,778.63,0,Commercial Supplier
05/11/2018,Strategic Commissioning CYPS,Greater London Fostering,RESIDENTIAL PLACEMENTS - PRIVATE CONTRACTORS PAYMENT,778.63,0,Commercial Supplier
05/11/2018,Strategic Commissioning CYPS,Greater London Fostering,RESIDENTIAL PLACEMENTS - PRIVATE CONTRACTORS PAYMENT,794.20,0,Commercial Supplier
05/11/2018,Strategic Commissioning CYPS,Greater London Fostering,RESIDENTIAL PLACEMENTS - PRIVATE CONTRACTORS PAYMENT,748.68,0,Commercial Supplier
05/11/2018,Strategic Commissioning CYPS,Greater London Fostering,RESIDENTIAL PLACEMENTS - PRIVATE CONTRACTORS PAYMENT,794.20,0,Commercial Supplier
05/11/2018,Strategic Commissioning CYPS,Greater London Fostering,RESIDENTIAL PLACEMENTS - PRIVATE CONTRACTORS PAYMENT,778.63,0,Commercial Supplier
05/11/2018,Strategic Commissioning CYPS,Greater London Fostering,RESIDENTIAL PLACEMENTS - PRIVATE CONTRACTORS PAYMENT,778.63,0,Commercial Supplier
05/11/2018,Strategic Commissioning CYPS,Greater London Fostering,RESIDENTIAL PLACEMENTS - PRIVATE CONTRACTORS PAYMENT,778.63,0,Commercial Supplier
05/11/2018,Strategic Commissioning CYPS,Greater London Fostering,RESIDENTIAL PLACEMENTS - PRIVATE CONTRACTORS PAYMENT,748.68,0,Commercial Supplier
05/11/2018,Strategic Commissioning CYPS,Greater London Fostering,RESIDENTIAL PLACEMENTS - PRIVATE CONTRACTORS PAYMENT,778.63,0,Commercial Supplier
05/11/2018,Strategic Commissioning CYPS,Greater London Fostering,RESIDENTIAL PLACEMENTS - PRIVATE CONTRACTORS PAYMENT,778.63,0,Commercial Supplier
05/11/2018,Strategic Commissioning CYPS,Greater London Fostering,RESIDENTIAL PLACEMENTS - PRIVATE CONTRACTORS PAYMENT,778.63,0,Commercial Supplier
05/11/2018,Strategic Commissioning CYPS,Greater London Fostering,RESIDENTIAL PLACEMENTS - PRIVATE CONTRACTORS PAYMENT,794.20,0,Commercial Supplier
05/11/2018,Strategic Commissioning CYPS,Greater London Fostering,RESIDENTIAL PLACEMENTS - PRIVATE CONTRACTORS PAYMENT,778.63,0,Commercial Supplier
05/11/2018,Strategic Commissioning CYPS,Greater London Fostering,RESIDENTIAL PLACEMENTS - PRIVATE CONTRACTORS PAYMENT,748.68,0,Commercial Supplier
05/11/2018,Strategic Commissioning CYPS,Greater London Fostering,RESIDENTIAL PLACEMENTS - PRIVATE CONTRACTORS PAYMENT,778.63,0,Commercial Supplier
05/11/2018,Strategic Commissioning CYPS,Greater London Fostering,RESIDENTIAL PLACEMENTS - PRIVATE CONTRACTORS PAYMENT,778.63,0,Commercial Supplier
05/11/2018,Strategic Commissioning CYPS,Greater London Fostering,RESIDENTIAL PLACEMENTS - PRIVATE CONTRACTORS PAYMENT,778.63,0,Commercial Supplier
05/11/2018,Strategic Commissioning CYPS,Greater London Fostering,RESIDENTIAL PLACEMENTS - PRIVATE CONTRACTORS PAYMENT,778.63,0,Commercial Supplier
05/11/2018,Strategic Commissioning CYPS,Greater London Fostering,RESIDENTIAL PLACEMENTS - PRIVATE CONTRACTORS PAYMENT,778.63,0,Commercial Supplier
05/11/2018,Strategic Commissioning CYPS,Greater London Fostering,RESIDENTIAL PLACEMENTS - PRIVATE CONTRACTORS PAYMENT,778.63,0,Commercial Supplier
05/11/2018,Strategic Commissioning CYPS,Greater London Fostering,RESIDENTIAL PLACEMENTS - PRIVATE CONTRACTORS PAYMENT,778.63,0,Commercial Supplier
05/11/2018,Strategic Commissioning CYPS,Greater London Fostering,RESIDENTIAL PLACEMENTS - PRIVATE CONTRACTORS PAYMENT,794.20,0,Commercial Supplier
05/11/2018,Strategic Commissioning CYPS,Greater London Fostering,RESIDENTIAL PLACEMENTS - PRIVATE CONTRACTORS PAYMENT,778.63,0,Commercial Supplier
05/11/2018,Strategic Commissioning CYPS,Greater London Fostering,RESIDENTIAL PLACEMENTS - PRIVATE CONTRACTORS PAYMENT,778.63,0,Commercial Supplier
05/11/2018,Strategic Commissioning CYPS,Greater London Fostering,RESIDENTIAL PLACEMENTS - PRIVATE CONTRACTORS PAYMENT,794.20,0,Commercial Supplier
05/11/2018,Strategic Commissioning CYPS,Greater London Fostering,RESIDENTIAL PLACEMENTS - PRIVATE CONTRACTORS PAYMENT,794.20,0,Commercial Supplier
05/11/2018,Strategic Commissioning CYPS,Greater London Fostering,RESIDENTIAL PLACEMENTS - PRIVATE CONTRACTORS PAYMENT,778.63,0,Commercial Supplier
05/11/2018,Strategic Commissioning CYPS,Greater London Fostering,RESIDENTIAL PLACEMENTS - PRIVATE CONTRACTORS PAYMENT,748.68,0,Commercial Supplier
05/11/2018,Strategic Commissioning CYPS,Greater London Fostering,RESIDENTIAL PLACEMENTS - PRIVATE CONTRACTORS PAYMENT,778.63,0,Commercial Supplier
05/11/2018,Strategic Commissioning CYPS,Greater London Fostering,RESIDENTIAL PLACEMENTS - PRIVATE CONTRACTORS PAYMENT,794.20,0,Commercial Supplier
05/11/2018,Strategic Commissioning CYPS,Greater London Fostering,RESIDENTIAL PLACEMENTS - PRIVATE CONTRACTORS PAYMENT,794.20,0,Commercial Supplier
05/11/2018,Strategic Commissioning CYPS,Greater London Fostering,RESIDENTIAL PLACEMENTS - PRIVATE CONTRACTORS PAYMENT,794.20,0,Commercial Supplier
05/11/2018,Strategic Commissioning CYPS,Greater London Fostering,RESIDENTIAL PLACEMENTS - PRIVATE CONTRACTORS PAYMENT,748.68,0,Commercial Supplier
05/11/2018,Strategic Commissioning CYPS,Greater London Fostering,RESIDENTIAL PLACEMENTS - PRIVATE CONTRACTORS PAYMENT,794.20,0,Commercial Supplier
05/11/2018,Strategic Commissioning CYPS,Greater London Fostering,RESIDENTIAL PLACEMENTS - PRIVATE CONTRACTORS PAYMENT,748.68,0,Commercial Supplier
05/11/2018,Strategic Commissioning CYPS,Greater London Fostering,RESIDENTIAL PLACEMENTS - PRIVATE CONTRACTORS PAYMENT,794.20,0,Commercial Supplier
05/11/2018,Strategic Commissioning CYPS,Greater London Fostering,RESIDENTIAL PLACEMENTS - PRIVATE CONTRACTORS PAYMENT,794.20,0,Commercial Supplier
05/11/2018,Strategic Commissioning CYPS,Greater London Fostering,RESIDENTIAL PLACEMENTS - PRIVATE CONTRACTORS PAYMENT,778.63,0,Commercial Supplier
05/11/2018,Strategic Commissioning CYPS,Greater London Fostering,RESIDENTIAL PLACEMENTS - PRIVATE CONTRACTORS PAYMENT,742.00,0,Commercial Supplier
05/11/2018,Strategic Commissioning CYPS,Greater London Fostering,RESIDENTIAL PLACEMENTS - PRIVATE CONTRACTORS PAYMENT,742.00,0,Commercial Supplier
05/11/2018,Strategic Commissioning CYPS,Greater London Fostering,RESIDENTIAL PLACEMENTS - PRIVATE CONTRACTORS PAYMENT,748.68,0,Commercial Supplier
05/11/2018,Strategic Commissioning CYPS,Greater London Fostering,RESIDENTIAL PLACEMENTS - PRIVATE CONTRACTORS PAYMENT,748.68,0,Commercial Supplier
05/11/2018,Strategic Commissioning CYPS,Greater London Fostering,RESIDENTIAL PLACEMENTS - PRIVATE CONTRACTORS PAYMENT,748.68,0,Commercial Supplier
05/11/2018,Strategic Commissioning CYPS,Greater London Fostering,RESIDENTIAL PLACEMENTS - PRIVATE CONTRACTORS PAYMENT,742.00,0,Commercial Supplier
05/11/2018,Strategic Commissioning CYPS,Greater London Fostering,RESIDENTIAL PLACEMENTS - PRIVATE CONTRACTORS PAYMENT,714.00,0,Commercial Supplier
05/11/2018,Strategic Commissioning CYPS,Greater London Fostering,RESIDENTIAL PLACEMENTS - PRIVATE CONTRACTORS PAYMENT,714.00,0,Commercial Supplier
05/11/2018,Strategic Commissioning CYPS,Greater London Fostering,RESIDENTIAL PLACEMENTS - PRIVATE CONTRACTORS PAYMENT,714.00,0,Commercial Supplier
05/11/2018,Strategic Commissioning CYPS,Greater London Fostering,RESIDENTIAL PLACEMENTS - PRIVATE CONTRACTORS PAYMENT,742.00,0,Commercial Supplier
05/11/2018,Strategic Commissioning CYPS,Greater London Fostering,RESIDENTIAL PLACEMENTS - PRIVATE CONTRACTORS PAYMENT,778.63,0,Commercial Supplier
05/11/2018,Strategic Commissioning CYPS,Greater London Fostering,RESIDENTIAL PLACEMENTS - PRIVATE CONTRACTORS PAYMENT,714.00,0,Commercial Supplier
05/11/2018,Strategic Commissioning CYPS,Greater London Fostering,RESIDENTIAL PLACEMENTS - PRIVATE CONTRACTORS PAYMENT,778.63,0,Commercial Supplier
05/11/2018,Strategic Commissioning CYPS,Greater London Fostering,RESIDENTIAL PLACEMENTS - PRIVATE CONTRACTORS PAYMENT,778.63,0,Commercial Supplier
05/11/2018,Strategic Commissioning CYPS,Greater London Fostering,RESIDENTIAL PLACEMENTS - PRIVATE CONTRACTORS PAYMENT,778.63,0,Commercial Supplier
05/11/2018,Strategic Commissioning CYPS,Greater London Fostering,RESIDENTIAL PLACEMENTS - PRIVATE CONTRACTORS PAYMENT,748.68,0,Commercial Supplier
05/11/2018,Strategic Commissioning CYPS,Greater London Fostering,RESIDENTIAL PLACEMENTS - PRIVATE CONTRACTORS PAYMENT,778.63,0,Commercial Supplier
05/11/2018,Strategic Commissioning Community and Environment,Harvest Energy Ltd,TRANSPORT FUEL,"27,139.68",0,Commercial Supplier
05/11/2018,Strategic Commissioning CYPS,Holibrook House Limited,RESIDENTIAL PLACEMENTS - PRIVATE CONTRACTORS PAYMENT,"2,850.00",0,Supplier
05/11/2018,Strategic Commissioning CYPS,Holibrook House Limited,RESIDENTIAL PLACEMENTS - PRIVATE CONTRACTORS PAYMENT,"2,850.00",0,Supplier
05/11/2018,Strategic Commissioning CYPS,Holibrook House Limited,RESIDENTIAL PLACEMENTS - PRIVATE CONTRACTORS PAYMENT,"2,850.00",0,Supplier
05/11/2018,Strategic Commissioning CYPS,Holibrook House Limited,RESIDENTIAL PLACEMENTS - PRIVATE CONTRACTORS PAYMENT,"2,850.00",0,Supplier
05/11/2018,Strategic Commissioning CYPS,Redacted - Personal Data,ADOPTION ALLOWANCE - PRIVATE CONTRACTORS PAYMENT,291.11,0,Foster Carers
05/11/2018,Strategic Commissioning CYPS,Redacted - Personal Data,ADOPTION ALLOWANCE - PRIVATE CONTRACTORS PAYMENT,291.11,0,Foster Carers
05/11/2018,Strategic Commissioning Adults,IRG Ltd,CLEANING SERVICES,"1,636.00",0,Commercial Supplier
05/11/2018,Strategic Commissioning CYPS,J M Adventure Ltd,"MAINTENANCE - EQUIPMENT, FURNITURE AND MATERIALS",516.10,0,Supplier
05/11/2018,Housing Revenue Account HRA,JLA Ltd,"PURCHASE - EQUIPMENT, FURNITURE AND MATERIALS",540.00,0,Commercial Supplier
05/11/2018,Housing Revenue Account HRA,JLA Ltd,"PURCHASE - EQUIPMENT, FURNITURE AND MATERIALS",540.00,0,Commercial Supplier
05/11/2018,Housing Revenue Account HRA,JLA Ltd,"PURCHASE - EQUIPMENT, FURNITURE AND MATERIALS",540.00,0,Commercial Supplier
05/11/2018,Strategic Commissioning CYPS,Redacted - Personal Data,SPECIAL GUARDIANSHIP,386.85,0,Foster Carers
05/11/2018,Strategic Commissioning CYPS,Redacted - Personal Data,SPECIAL GUARDIANSHIP,386.85,0,Foster Carers
05/11/2018,Strategic Commissioning Adults,Juniper Ventures Ltd,CLEANING SERVICES,"5,478.14",0,Commercial Supplier
05/11/2018,Regeneration and Planning Economic Regeneration,Juniper Ventures Ltd,CLEANING SERVICES,"1,541.80",0,Commercial Supplier
05/11/2018,Housing Revenue Account HRA,Juniper Ventures Ltd,CLEANING SERVICES,"10,638.42",0,Commercial Supplier
05/11/2018,Strategic Commissioning CYPS,Juniper Ventures Ltd,CLEANING SERVICES,"2,312.70",0,Commercial Supplier
05/11/2018,Strategic Commissioning Enforcement and Safety,Juniper Ventures Ltd,CLEANING SERVICES,"1,725.33",0,Commercial Supplier
05/11/2018,Strategic Commissioning Enforcement and Safety,Juniper Ventures Ltd,CLEANING SERVICES,949.14,0,Commercial Supplier
05/11/2018,Strategic Commissioning CYPS,Juniper Ventures Ltd,CLEANING SERVICES,"1,151.10",0,Commercial Supplier
05/11/2018,Strategic Commissioning Enforcement and Safety,Juniper Ventures Ltd,CLEANING SERVICES,385.45,0,Commercial Supplier
05/11/2018,Strategic Commissioning Enforcement and Safety,Juniper Ventures Ltd,CLEANING SERVICES,616.72,0,Commercial Supplier
05/11/2018,Strategic Commissioning Enforcement and Safety,Juniper Ventures Ltd,CLEANING SERVICES,308.36,0,Commercial Supplier
05/11/2018,Strategic Commissioning Enforcement and Safety,Juniper Ventures Ltd,CLEANING SERVICES,308.36,0,Commercial Supplier
05/11/2018,Strategic Commissioning Enforcement and Safety,Juniper Ventures Ltd,CLEANING SERVICES,462.54,0,Commercial Supplier
05/11/2018,Strategic Commissioning Enforcement and Safety,Juniper Ventures Ltd,CLEANING SERVICES,770.90,0,Commercial Supplier
05/11/2018,Strategic Commissioning CYPS,Juniper Ventures Ltd,CLEANING SERVICES,"4,239.95",0,Commercial Supplier
05/11/2018,Strategic Commissioning Enforcement and Safety,Kara (Burghfield) Ltd,BEREAVEMENT SERVICES EQUIPMENT,363.49,0,Commercial Supplier
05/11/2018,Housing Revenue Account HRA,Kent County Council (Kcs),ELECTRICITY,265.23,0,Local Authority Services
05/11/2018,Strategic Commissioning Community and Environment,Kent County Council (Kcs),ELECTRICITY,323.41,0,Local Authority Services
05/11/2018,Strategic Commissioning Community and Environment,L & F Plant Hire Co Ltd T/A Ti,GROUNDS MAINTENANCE,552.00,0,Supplier
05/11/2018,Strategic Commissioning Community and Environment,L & F Plant Hire Co Ltd T/A Ti,GROUNDS MAINTENANCE,621.00,0,Supplier
05/11/2018,Strategic Commissioning Community and Environment,L & F Plant Hire Co Ltd T/A Ti,GROUNDS MAINTENANCE,667.00,0,Supplier
05/11/2018,Strategic Commissioning Community and Environment,L & F Plant Hire Co Ltd T/A Ti,GROUNDS MAINTENANCE,552.00,0,Supplier
05/11/2018,Strategic Commissioning Community and Environment,L & F Plant Hire Co Ltd T/A Ti,GROUNDS MAINTENANCE,552.00,0,Supplier
05/11/2018,Strategic Commissioning Enforcement and Safety,LAFROSA,FEES & CHARGES INCOME - OTHER,700.00,0,Commercial Supplier
05/11/2018,Strategic Commissioning CYPS,Redacted - Personal Data,SPECIAL GUARDIANSHIP,345.00,0,Foster Carers
05/11/2018,Strategic Commissioning CYPS,Redacted - Personal Data,SPECIAL GUARDIANSHIP,345.00,0,Foster Carers
05/11/2018,Regeneration and Planning Economic Regeneration,London Community Credit Union,PROFESSIONAL SERVICES - GENERAL,"21,343.00",0,Supplier
05/11/2018,Regeneration and Planning Economic Regeneration,London Community Credit Union,PROFESSIONAL SERVICES - GENERAL,"5,000.00",0,Supplier
05/11/2018,Strategic Commissioning Community and Environment,London Hire Ltd,VEHICLE HIRE,531.34,0,Commercial Supplier
05/11/2018,Strategic Commissioning Community and Environment,London Hire Ltd,VEHICLE HIRE,325.66,0,Commercial Supplier
05/11/2018,Strategic Commissioning Community and Environment,London Hire Ltd,VEHICLE HIRE,420.00,0,Commercial Supplier
05/11/2018,Strategic Commissioning Community and Environment,London Hire Ltd,VEHICLE HIRE,531.34,0,Commercial Supplier
05/11/2018,Strategic Commissioning Enforcement and Safety,London and South East Electrical Ltd,SECURITY SERVICES (EXCLUDING PREMISES),475.00,0,Commercial Supplier
05/11/2018,Strategic Commissioning CYPS,Redacted - Personal Data,SPECIAL GUARDIANSHIP,345.00,0,Foster Carers
05/11/2018,Strategic Commissioning CYPS,Redacted - Personal Data,SPECIAL GUARDIANSHIP,345.00,0,Foster Carers
05/11/2018,Housing Revenue Account HRA,Manpower Direct Ltd,SECURITY OF PREMISES,"83,381.76",0,Commercial Supplier
05/11/2018,Strategic Commissioning CYPS,Redacted - Personal Data,ADOPTION ALLOWANCE - PRIVATE CONTRACTORS PAYMENT,301.11,0,Foster Carers
05/11/2018,Strategic Commissioning CYPS,Redacted - Personal Data,ADOPTION ALLOWANCE - PRIVATE CONTRACTORS PAYMENT,301.11,0,Foster Carers
05/11/2018,oneSource - Non Shared Human Resources,Medigold Hlth Consultancy Ltd,HEALTH AND SAFETY WORKS,920.05,0,Supplier
05/11/2018,Strategic Commissioning Enforcement and Safety,Miss Hershey Punzalan,FEES & CHARGES INCOME - OTHER,700.00,0,Individuals
05/11/2018,oneSource - Non Shared Asset Management,Mja Interior Services Ltd,FACILITIES MANAGEMENT,"6,374.50",0,CIS
05/11/2018,oneSource - Non Shared Asset Management,Mja Interior Services Ltd,FACILITIES MANAGEMENT,"8,215.00",0,CIS
05/11/2018,Strategic Commissioning Adults,Mooncare Ltd,HOME CARE - PRIVATE CONTRACTORS PAYMENT,960.00,0,Non Commercial Supplier
05/11/2018,Strategic Commissioning Adults,NEWway Project,PRIVATE CONTRACTORS PAYMENT - OTHER,"20,000.00",0,Commercial Supplier
05/11/2018,Strategic Commissioning Adults,Newham Asian Women's Project,PROFESSIONAL SERVICES - GENERAL,"16,500.00",0,Supplier
05/11/2018,Strategic Commissioning CYPS,Redacted - Personal Data,SPECIAL GUARDIANSHIP,346.00,0,Foster Carers
05/11/2018,Strategic Commissioning CYPS,Redacted - Personal Data,SPECIAL GUARDIANSHIP,346.00,0,Foster Carers
05/11/2018,Strategic Commissioning CYPS,Redacted - Personal Data,SPECIAL GUARDIANSHIP,346.00,0,Foster Carers
05/11/2018,Strategic Commissioning CYPS,Redacted - Personal Data,SPECIAL GUARDIANSHIP,346.00,0,Foster Carers
05/11/2018,Strategic Commissioning CYPS,Redacted - Personal Data,ADOPTION ALLOWANCE - PRIVATE CONTRACTORS PAYMENT,307.71,0,Foster Carers
05/11/2018,Strategic Commissioning CYPS,Redacted - Personal Data,ADOPTION ALLOWANCE - PRIVATE CONTRACTORS PAYMENT,307.71,0,Foster Carers
05/11/2018,Strategic Commissioning Enforcement and Safety,Peters Ltd,"BOOKS, PUBLICATIONS AND RESOURCES","6,566.10",0,Non Commercial Supplier
05/11/2018,Strategic Commissioning Community and Environment,Project Centre Ltd,PROFESSIONAL SERVICES - GENERAL,"6,434.58",0,Commercial Supplier
05/11/2018,Strategic Commissioning Community and Environment,Project Centre Ltd,PROFESSIONAL SERVICES - GENERAL,"6,913.08",0,Commercial Supplier
05/11/2018,Strategic Commissioning Enforcement and Safety,Public Realm Services Ltd,STREET SWEEPING,"2,832.00",0,Commercial Supplier
05/11/2018,Strategic Commissioning Community and Environment,Public Realm Services Ltd,STREET SWEEPING,"262,148.85",0,Commercial Supplier
05/11/2018,Housing Revenue Account HRA,Public Realm Services Ltd,STREET SWEEPING,"143,739.98",0,Commercial Supplier
05/11/2018,Strategic Commissioning CYPS,Redacted - Personal Data,ADOPTION ALLOWANCE - PRIVATE CONTRACTORS PAYMENT,334.08,0,Foster Carers
05/11/2018,Strategic Commissioning CYPS,Redacted - Personal Data,ADOPTION ALLOWANCE - PRIVATE CONTRACTORS PAYMENT,334.08,0,Foster Carers
05/11/2018,Strategic Commissioning Adults,Redspot Homecare (Contracts) Limited,HOME CARE - PRIVATE CONTRACTORS PAYMENT,371.28,0,Supplier
05/11/2018,Strategic Commissioning Adults,Redspot Homecare (Contracts) Limited,HOME CARE - PRIVATE CONTRACTORS PAYMENT,318.27,0,Supplier
05/11/2018,Strategic Commissioning Adults,Redspot Homecare (Contracts) Limited,HOME CARE - PRIVATE CONTRACTORS PAYMENT,"1,050.54",0,Supplier
05/11/2018,Strategic Commissioning Adults,Redspot Homecare (Contracts) Limited,HOME CARE - PRIVATE CONTRACTORS PAYMENT,"1,106.65",0,Supplier
05/11/2018,Strategic Commissioning Adults,Redspot Homecare (Contracts) Limited,HOME CARE - PRIVATE CONTRACTORS PAYMENT,318.00,0,Supplier
05/11/2018,Strategic Commissioning Adults,Redspot Homecare (Contracts) Limited,HOME CARE - PRIVATE CONTRACTORS PAYMENT,268.38,0,Supplier
05/11/2018,Strategic Commissioning Adults,Redspot Homecare (Contracts) Limited,HOME CARE - PRIVATE CONTRACTORS PAYMENT,"1,802.80",0,Supplier
05/11/2018,Strategic Commissioning Adults,Redspot Homecare (Contracts) Limited,HOME CARE - PRIVATE CONTRACTORS PAYMENT,371.28,0,Supplier
05/11/2018,Strategic Commissioning Adults,Redspot Homecare (Contracts) Limited,HOME CARE - PRIVATE CONTRACTORS PAYMENT,371.28,0,Supplier
05/11/2018,Strategic Commissioning Adults,Redspot Homecare (Contracts) Limited,HOME CARE - PRIVATE CONTRACTORS PAYMENT,"1,113.00",0,Supplier
05/11/2018,Strategic Commissioning Adults,Redspot Homecare (Contracts) Limited,HOME CARE - PRIVATE CONTRACTORS PAYMENT,371.28,0,Supplier
05/11/2018,Strategic Commissioning Adults,Redspot Homecare (Contracts) Limited,HOME CARE - PRIVATE CONTRACTORS PAYMENT,371.28,0,Supplier
05/11/2018,Strategic Commissioning Adults,Redspot Homecare (Contracts) Limited,HOME CARE - PRIVATE CONTRACTORS PAYMENT,371.28,0,Supplier
05/11/2018,Strategic Commissioning Adults,Redspot Homecare (Contracts) Limited,HOME CARE - PRIVATE CONTRACTORS PAYMENT,"1,722.50",0,Supplier
05/11/2018,Strategic Commissioning Adults,Redspot Homecare (Contracts) Limited,HOME CARE - PRIVATE CONTRACTORS PAYMENT,371.28,0,Supplier
05/11/2018,Strategic Commissioning Adults,Redspot Homecare (Contracts) Limited,HOME CARE - PRIVATE CONTRACTORS PAYMENT,371.28,0,Supplier
05/11/2018,Strategic Commissioning Adults,Redspot Homecare (Contracts) Limited,HOME CARE - PRIVATE CONTRACTORS PAYMENT,"1,113.00",0,Supplier
05/11/2018,RMS RMS,Rioned UK Limited,DIRECT TRANSPORT,"1,550.00",0,Commercial Supplier
05/11/2018,Strategic Commissioning Adults,Rosy Care Limited,DAYCARE - PRIVATE CONTRACTORS PAYMENT,"1,200.00",0,Non Commercial Supplier
05/11/2018,Strategic Commissioning Adults,Rosy Care Limited,DAYCARE - PRIVATE CONTRACTORS PAYMENT,900.00,0,Non Commercial Supplier
05/11/2018,Strategic Commissioning Adults,Rosy Care Limited,DAYCARE - PRIVATE CONTRACTORS PAYMENT,"1,995.00",0,Non Commercial Supplier
05/11/2018,Strategic Commissioning CYPS,Redacted - Personal Data,ADOPTION ALLOWANCE - PRIVATE CONTRACTORS PAYMENT,317.33,0,Foster Carers
05/11/2018,Strategic Commissioning CYPS,Redacted - Personal Data,ADOPTION ALLOWANCE - PRIVATE CONTRACTORS PAYMENT,317.33,0,Foster Carers
05/11/2018,Strategic Commissioning CYPS,Redacted - Personal Data,SPECIAL GUARDIANSHIP,479.70,0,Foster Carers
05/11/2018,Strategic Commissioning CYPS,Redacted - Personal Data,SPECIAL GUARDIANSHIP,479.70,0,Foster Carers
05/11/2018,Strategic Commissioning CYPS,Sayers (Car Hire),DIRECT TRANSPORT,552.00,0,Supplier
05/11/2018,Strategic Commissioning CYPS,Sayers (Car Hire),DIRECT TRANSPORT,"2,700.00",0,Supplier
05/11/2018,Strategic Commissioning CYPS,Sayers (Car Hire),DIRECT TRANSPORT,"1,931.00",0,Supplier
05/11/2018,Strategic Commissioning CYPS,Sayers (Car Hire),DIRECT TRANSPORT,"2,709.00",0,Supplier
05/11/2018,Strategic Commissioning CYPS,Sayers (Car Hire),DIRECT TRANSPORT,561.00,0,Supplier
05/11/2018,Strategic Commissioning CYPS,Sayers (Car Hire),DIRECT TRANSPORT,"4,986.50",0,Supplier
05/11/2018,Strategic Commissioning CYPS,Sayers (Car Hire),DIRECT TRANSPORT,"1,225.00",0,Supplier
05/11/2018,Strategic Commissioning CYPS,Sayers (Car Hire),DIRECT TRANSPORT,"1,285.00",0,Supplier
05/11/2018,Strategic Commissioning CYPS,Redacted - Personal Data,SPECIAL GUARDIANSHIP,800.00,0,Foster Carers
05/11/2018,Strategic Commissioning CYPS,Redacted - Personal Data,SPECIAL GUARDIANSHIP,800.00,0,Foster Carers
05/11/2018,Strategic Commissioning CYPS,Redacted - Personal Data,SPECIAL GUARDIANSHIP,255.15,0,Foster Carers
05/11/2018,Strategic Commissioning CYPS,Redacted - Personal Data,SPECIAL GUARDIANSHIP,255.15,0,Foster Carers
05/11/2018,Strategic Commissioning CYPS,Redacted - Personal Data,SPECIAL GUARDIANSHIP,255.15,0,Foster Carers
05/11/2018,Strategic Commissioning CYPS,Redacted - Personal Data,SPECIAL GUARDIANSHIP,255.15,0,Foster Carers
05/11/2018,Strategic Commissioning CYPS,Shebahl Support Services Ltd,SUPPORTED OTHER ACCOMMODATION - PRIVATE CONTRACTORS PAYMENT,"3,200.00",0,Supplier
05/11/2018,Strategic Commissioning CYPS,Shebahl Support Services Ltd,SUPPORTED OTHER ACCOMMODATION - PRIVATE CONTRACTORS PAYMENT,"3,400.00",0,Supplier
05/11/2018,Strategic Commissioning Community and Environment,Sonia Quintero,ARTS AND LEISURE COSTS,610.00,0,Individuals
05/11/2018,Strategic Commissioning Adults,Supreme Care Services Ltd,HOME CARE - PRIVATE CONTRACTORS PAYMENT,"24,271.20",0,Commercial Supplier
05/11/2018,Strategic Commissioning Adults,Supreme Care Services Ltd,DAYCARE - PRIVATE CONTRACTORS PAYMENT,"2,678.40",0,Commercial Supplier
05/11/2018,Strategic Commissioning CYPS,Redacted - Personal Data,ADOPTION ALLOWANCE - PRIVATE CONTRACTORS PAYMENT,288.18,0,Foster Carers
05/11/2018,Strategic Commissioning CYPS,Redacted - Personal Data,ADOPTION ALLOWANCE - PRIVATE CONTRACTORS PAYMENT,268.44,0,Foster Carers
05/11/2018,Strategic Commissioning CYPS,Redacted - Personal Data,ADOPTION ALLOWANCE - PRIVATE CONTRACTORS PAYMENT,288.18,0,Foster Carers
05/11/2018,Strategic Commissioning CYPS,Redacted - Personal Data,ADOPTION ALLOWANCE - PRIVATE CONTRACTORS PAYMENT,268.44,0,Foster Carers
05/11/2018,Strategic Commissioning Adults,TV Edwards LLP,LEGAL FEES,"13,365.36",0,Legal Services
05/11/2018,Dedicated Schools Budget Dedicated Schools Budget,Teaching Support Ltd,SUBSISTENCE,525.00,0,Commercial Supplier
05/11/2018,Dedicated Schools Budget Dedicated Schools Budget,Teaching Support Ltd,SUBSISTENCE,945.00,0,Commercial Supplier
05/11/2018,Strategic Commissioning CYPS,Teen Support Services- Nottingham,SUPPORTED OTHER ACCOMMODATION - PRIVATE CONTRACTORS PAYMENT,650.00,0,Commercial Supplier
05/11/2018,Strategic Commissioning CYPS,Teen Support Services- Nottingham,SUPPORTED OTHER ACCOMMODATION - PRIVATE CONTRACTORS PAYMENT,750.00,0,Commercial Supplier
05/11/2018,Strategic Commissioning CYPS,Teen Support Services- Nottingham,KINSHIP PLACEMENT - PRIVATE CONTRACTORS PAYMENT,750.00,0,Commercial Supplier
05/11/2018,Strategic Commissioning CYPS,Teen Support Services- Nottingham,SUPPORTED OTHER ACCOMMODATION - PRIVATE CONTRACTORS PAYMENT,650.00,0,Commercial Supplier
05/11/2018,Strategic Commissioning CYPS,Teen Support Services- Nottingham,SUPPORTED OTHER ACCOMMODATION - PRIVATE CONTRACTORS PAYMENT,750.00,0,Commercial Supplier
05/11/2018,Strategic Commissioning CYPS,Teen Support Services- Nottingham,SUPPORTED OTHER ACCOMMODATION - PRIVATE CONTRACTORS PAYMENT,750.00,0,Commercial Supplier
05/11/2018,Strategic Commissioning CYPS,Teen Support Services- Nottingham,SUPPORTED OTHER ACCOMMODATION - PRIVATE CONTRACTORS PAYMENT,650.00,0,Commercial Supplier
05/11/2018,Strategic Commissioning CYPS,Teen Support Services- Nottingham,SUPPORTED OTHER ACCOMMODATION - PRIVATE CONTRACTORS PAYMENT,650.00,0,Commercial Supplier
05/11/2018,Strategic Commissioning CYPS,Teen Support Services- Nottingham,KINSHIP PLACEMENT - PRIVATE CONTRACTORS PAYMENT,750.00,0,Commercial Supplier
05/11/2018,Strategic Commissioning CYPS,Teen Support Services- Nottingham,SUPPORTED OTHER ACCOMMODATION - PRIVATE CONTRACTORS PAYMENT,650.00,0,Commercial Supplier
05/11/2018,Strategic Commissioning CYPS,Teen Support Services- Nottingham,SUPPORTED OTHER ACCOMMODATION - PRIVATE CONTRACTORS PAYMENT,650.00,0,Commercial Supplier
05/11/2018,Strategic Commissioning CYPS,Teen Support Services- Nottingham,KINSHIP PLACEMENT - PRIVATE CONTRACTORS PAYMENT,750.00,0,Commercial Supplier
05/11/2018,Strategic Commissioning CYPS,Teen Support Services- Nottingham,KINSHIP PLACEMENT - PRIVATE CONTRACTORS PAYMENT,750.00,0,Commercial Supplier
05/11/2018,Strategic Commissioning CYPS,Teen Support Services- Nottingham,SUPPORTED OTHER ACCOMMODATION - PRIVATE CONTRACTORS PAYMENT,750.00,0,Commercial Supplier
05/11/2018,Strategic Commissioning CYPS,Teen Support Services- Nottingham,SUPPORTED OTHER ACCOMMODATION - PRIVATE CONTRACTORS PAYMENT,750.00,0,Commercial Supplier
05/11/2018,Strategic Commissioning CYPS,Teen Support Services- Nottingham,KINSHIP PLACEMENT - PRIVATE CONTRACTORS PAYMENT,364.29,0,Commercial Supplier
05/11/2018,Strategic Commissioning CYPS,Teen Support Services- Nottingham,SUPPORTED OTHER ACCOMMODATION - PRIVATE CONTRACTORS PAYMENT,650.00,0,Commercial Supplier
05/11/2018,Strategic Commissioning CYPS,Teen Support Services- Nottingham,KINSHIP PLACEMENT - PRIVATE CONTRACTORS PAYMENT,850.00,0,Commercial Supplier
05/11/2018,Strategic Commissioning CYPS,Teen Support Services- Nottingham,KINSHIP PLACEMENT - PRIVATE CONTRACTORS PAYMENT,850.00,0,Commercial Supplier
05/11/2018,Strategic Commissioning CYPS,Teen Support Services- Nottingham,KINSHIP PLACEMENT - PRIVATE CONTRACTORS PAYMENT,850.00,0,Commercial Supplier
05/11/2018,Strategic Commissioning CYPS,Teen Support Services- Nottingham,KINSHIP PLACEMENT - PRIVATE CONTRACTORS PAYMENT,850.00,0,Commercial Supplier
05/11/2018,Strategic Commissioning CYPS,Teen Support Services- Nottingham,KINSHIP PLACEMENT - PRIVATE CONTRACTORS PAYMENT,850.00,0,Commercial Supplier
05/11/2018,Strategic Commissioning CYPS,Teen Support Services- Nottingham,SUPPORTED OTHER ACCOMMODATION - PRIVATE CONTRACTORS PAYMENT,750.00,0,Commercial Supplier
05/11/2018,Strategic Commissioning CYPS,Teen Support Services- Nottingham,KINSHIP PLACEMENT - PRIVATE CONTRACTORS PAYMENT,850.00,0,Commercial Supplier
05/11/2018,Strategic Commissioning CYPS,Teen Support Services- Nottingham,SUPPORTED OTHER ACCOMMODATION - PRIVATE CONTRACTORS PAYMENT,750.00,0,Commercial Supplier
05/11/2018,Strategic Commissioning CYPS,Teen Support Services- Nottingham,KINSHIP PLACEMENT - PRIVATE CONTRACTORS PAYMENT,850.00,0,Commercial Supplier
05/11/2018,Strategic Commissioning CYPS,Teen Support Services- Nottingham,SUPPORTED OTHER ACCOMMODATION - PRIVATE CONTRACTORS PAYMENT,750.00,0,Commercial Supplier
05/11/2018,Strategic Commissioning CYPS,Teen Support Services- Nottingham,KINSHIP PLACEMENT - PRIVATE CONTRACTORS PAYMENT,850.00,0,Commercial Supplier
05/11/2018,Strategic Commissioning CYPS,Teen Support Services- Nottingham,SUPPORTED OTHER ACCOMMODATION - PRIVATE CONTRACTORS PAYMENT,650.00,0,Commercial Supplier
05/11/2018,Strategic Commissioning CYPS,Teen Support Services- Nottingham,SUPPORTED OTHER ACCOMMODATION - PRIVATE CONTRACTORS PAYMENT,650.00,0,Commercial Supplier
05/11/2018,Strategic Commissioning CYPS,Teen Support Services- Nottingham,SUPPORTED OTHER ACCOMMODATION - PRIVATE CONTRACTORS PAYMENT,650.00,0,Commercial Supplier
05/11/2018,Strategic Commissioning CYPS,Teen Support Services- Nottingham,SUPPORTED OTHER ACCOMMODATION - PRIVATE CONTRACTORS PAYMENT,650.00,0,Commercial Supplier
05/11/2018,Strategic Commissioning CYPS,Teen Support Services- Nottingham,SUPPORTED OTHER ACCOMMODATION - PRIVATE CONTRACTORS PAYMENT,650.00,0,Commercial Supplier
05/11/2018,Strategic Commissioning Enforcement and Safety,Tendu Ltd,EVENTS,720.00,0,Commercial Supplier
05/11/2018,Strategic Commissioning Adults,The Courtney Hotel London Ltd,RENTS PAYABLE,828.24,0,Non Commercial Supplier
05/11/2018,Strategic Commissioning Adults,The Courtney Hotel London Ltd,RENTS PAYABLE,600.81,0,Non Commercial Supplier
05/11/2018,Strategic Commissioning Adults,The Courtney Hotel London Ltd,RENTS PAYABLE,548.31,0,Non Commercial Supplier
05/11/2018,Strategic Commissioning Enforcement and Safety,The Jojo Entertainment Co Ltd,EVENTS,504.00,0,Non Commercial Supplier
05/11/2018,Strategic Commissioning Adults,The Nelson House Recovery Trust,PAYMENT TO HEALTH AUTHORITIES,"3,265.54",0,Supplier
05/11/2018,Strategic Commissioning Enforcement and Safety,The Small Pa Company,EVENTS,338.00,0,Supplier
05/11/2018,Strategic Commissioning CYPS,Time for Children Ltd,RESIDENTIAL PLACEMENTS - PRIVATE CONTRACTORS PAYMENT,"1,212.12",0,Commercial Supplier
05/11/2018,Strategic Commissioning CYPS,Time for Children Ltd,RESIDENTIAL PLACEMENTS - PRIVATE CONTRACTORS PAYMENT,700.00,0,Commercial Supplier
05/11/2018,Strategic Commissioning CYPS,Time for Children Ltd,RESIDENTIAL PLACEMENTS - PRIVATE CONTRACTORS PAYMENT,700.00,0,Commercial Supplier
05/11/2018,Strategic Commissioning CYPS,Time for Children Ltd,RESIDENTIAL PLACEMENTS - PRIVATE CONTRACTORS PAYMENT,700.00,0,Commercial Supplier
05/11/2018,Strategic Commissioning CYPS,Time for Children Ltd,RESIDENTIAL PLACEMENTS - PRIVATE CONTRACTORS PAYMENT,"1,212.12",0,Commercial Supplier
05/11/2018,Strategic Commissioning CYPS,Time for Children Ltd,RESIDENTIAL PLACEMENTS - PRIVATE CONTRACTORS PAYMENT,700.00,0,Commercial Supplier
05/11/2018,Strategic Commissioning CYPS,Time for Children Ltd,RESIDENTIAL PLACEMENTS - PRIVATE CONTRACTORS PAYMENT,700.00,0,Commercial Supplier
05/11/2018,Strategic Commissioning CYPS,Time for Children Ltd,RESIDENTIAL PLACEMENTS - PRIVATE CONTRACTORS PAYMENT,700.00,0,Commercial Supplier
05/11/2018,Strategic Commissioning CYPS,Time for Children Ltd,RESIDENTIAL PLACEMENTS - PRIVATE CONTRACTORS PAYMENT,"1,212.12",0,Commercial Supplier
05/11/2018,Strategic Commissioning CYPS,Time for Children Ltd,RESIDENTIAL PLACEMENTS - PRIVATE CONTRACTORS PAYMENT,700.00,0,Commercial Supplier
05/11/2018,Strategic Commissioning CYPS,Time for Children Ltd,RESIDENTIAL PLACEMENTS - PRIVATE CONTRACTORS PAYMENT,700.00,0,Commercial Supplier
05/11/2018,Strategic Commissioning CYPS,Time for Children Ltd,RESIDENTIAL PLACEMENTS - PRIVATE CONTRACTORS PAYMENT,700.00,0,Commercial Supplier
05/11/2018,Strategic Commissioning CYPS,Time for Children Ltd,RESIDENTIAL PLACEMENTS - PRIVATE CONTRACTORS PAYMENT,700.00,0,Commercial Supplier
05/11/2018,Strategic Commissioning CYPS,Time for Children Ltd,RESIDENTIAL PLACEMENTS - PRIVATE CONTRACTORS PAYMENT,700.00,0,Commercial Supplier
05/11/2018,Strategic Commissioning CYPS,Time for Children Ltd,RESIDENTIAL PLACEMENTS - PRIVATE CONTRACTORS PAYMENT,700.00,0,Commercial Supplier
05/11/2018,Strategic Commissioning CYPS,Time for Children Ltd,RESIDENTIAL PLACEMENTS - PRIVATE CONTRACTORS PAYMENT,700.00,0,Commercial Supplier
05/11/2018,Strategic Commissioning CYPS,Time for Children Ltd,RESIDENTIAL PLACEMENTS - PRIVATE CONTRACTORS PAYMENT,"1,212.12",0,Commercial Supplier
05/11/2018,Strategic Commissioning CYPS,Time for Children Ltd,RESIDENTIAL PLACEMENTS - PRIVATE CONTRACTORS PAYMENT,700.00,0,Commercial Supplier
05/11/2018,Strategic Commissioning CYPS,Time for Children Ltd,RESIDENTIAL PLACEMENTS - PRIVATE CONTRACTORS PAYMENT,700.00,0,Commercial Supplier
05/11/2018,Strategic Commissioning CYPS,Time for Children Ltd,RESIDENTIAL PLACEMENTS - PRIVATE CONTRACTORS PAYMENT,700.00,0,Commercial Supplier
05/11/2018,Strategic Commissioning CYPS,Tulipcare,RESIDENTIAL PLACEMENTS - PRIVATE CONTRACTORS PAYMENT,"18,000.00",0,Commercial Supplier
05/11/2018,Strategic Commissioning Adults,Turnwright Ltd,SPECIALIST EQUIPMENT FOR SERVICE PROVISION,"5,192.85",0,Commercial Supplier
05/11/2018,Strategic Commissioning Adults,Turnwright Ltd,SPECIALIST EQUIPMENT FOR SERVICE PROVISION,269.75,0,Commercial Supplier
05/11/2018,Strategic Commissioning Adults,Unique Personnel Uk Ltd,RESPITE CARE - PRIVATE CONTRACTORS PAYMENT,"1,749.00",0,Commercial Supplier
05/11/2018,Strategic Commissioning Adults,Unique Personnel Uk Ltd,DAYCARE - PRIVATE CONTRACTORS PAYMENT,"1,659.56",0,Commercial Supplier
05/11/2018,Strategic Commissioning Adults,Unique Personnel Uk Ltd,HOME CARE - PRIVATE CONTRACTORS PAYMENT,"11,000.81",0,Commercial Supplier
05/11/2018,Housing Revenue Account HRA,VLS Solicitors.,LEGAL FEES,"1,942.60",0,Commercial Supplier
05/11/2018,Strategic Commissioning CYPS,Redacted - Personal Data,SPECIAL GUARDIANSHIP,332.15,0,Foster Carers
05/11/2018,Strategic Commissioning CYPS,Redacted - Personal Data,SPECIAL GUARDIANSHIP,332.15,0,Foster Carers
05/11/2018,Strategic Commissioning CYPS,Welcome Foster Care,RESIDENTIAL PLACEMENTS - PRIVATE CONTRACTORS PAYMENT,999.00,0,Commercial Supplier
05/11/2018,Strategic Commissioning CYPS,Welcome Foster Care,RESIDENTIAL PLACEMENTS - PRIVATE CONTRACTORS PAYMENT,950.00,0,Commercial Supplier
05/11/2018,Strategic Commissioning CYPS,Welcome Foster Care,RESIDENTIAL PLACEMENTS - PRIVATE CONTRACTORS PAYMENT,999.00,0,Commercial Supplier
05/11/2018,Strategic Commissioning CYPS,Welcome Foster Care,RESIDENTIAL PLACEMENTS - PRIVATE CONTRACTORS PAYMENT,999.00,0,Commercial Supplier
05/11/2018,Strategic Commissioning CYPS,Welcome Foster Care,RESIDENTIAL PLACEMENTS - PRIVATE CONTRACTORS PAYMENT,950.00,0,Commercial Supplier
05/11/2018,Strategic Commissioning CYPS,Welcome Foster Care,RESIDENTIAL PLACEMENTS - PRIVATE CONTRACTORS PAYMENT,749.00,0,Commercial Supplier
05/11/2018,Strategic Commissioning CYPS,Welcome Foster Care,RESIDENTIAL PLACEMENTS - PRIVATE CONTRACTORS PAYMENT,749.00,0,Commercial Supplier
05/11/2018,Strategic Commissioning CYPS,Welcome Foster Care,RESIDENTIAL PLACEMENTS - PRIVATE CONTRACTORS PAYMENT,999.00,0,Commercial Supplier
05/11/2018,Strategic Commissioning CYPS,Welcome Foster Care,RESIDENTIAL PLACEMENTS - PRIVATE CONTRACTORS PAYMENT,949.00,0,Commercial Supplier
05/11/2018,Strategic Commissioning CYPS,Welcome Foster Care,RESIDENTIAL PLACEMENTS - PRIVATE CONTRACTORS PAYMENT,950.00,0,Commercial Supplier
05/11/2018,Strategic Commissioning CYPS,Welcome Foster Care,RESIDENTIAL PLACEMENTS - PRIVATE CONTRACTORS PAYMENT,749.00,0,Commercial Supplier
05/11/2018,Strategic Commissioning CYPS,Welcome Foster Care,RESIDENTIAL PLACEMENTS - PRIVATE CONTRACTORS PAYMENT,950.00,0,Commercial Supplier
05/11/2018,Strategic Commissioning CYPS,Welcome Foster Care,RESIDENTIAL PLACEMENTS - PRIVATE CONTRACTORS PAYMENT,850.00,0,Commercial Supplier
05/11/2018,Strategic Commissioning CYPS,Welcome Foster Care,RESIDENTIAL PLACEMENTS - PRIVATE CONTRACTORS PAYMENT,749.00,0,Commercial Supplier
05/11/2018,Strategic Commissioning CYPS,Welcome Foster Care,RESIDENTIAL PLACEMENTS - PRIVATE CONTRACTORS PAYMENT,749.00,0,Commercial Supplier
05/11/2018,Strategic Commissioning CYPS,Welcome Foster Care,RESIDENTIAL PLACEMENTS - PRIVATE CONTRACTORS PAYMENT,749.00,0,Commercial Supplier
05/11/2018,Strategic Commissioning CYPS,Welcome Foster Care,RESIDENTIAL PLACEMENTS - PRIVATE CONTRACTORS PAYMENT,749.00,0,Commercial Supplier
05/11/2018,Strategic Commissioning CYPS,Welcome Foster Care,RESIDENTIAL PLACEMENTS - PRIVATE CONTRACTORS PAYMENT,749.00,0,Commercial Supplier
05/11/2018,Strategic Commissioning CYPS,Welcome Foster Care,RESIDENTIAL PLACEMENTS - PRIVATE CONTRACTORS PAYMENT,749.00,0,Commercial Supplier
05/11/2018,Strategic Commissioning CYPS,Welcome Foster Care,RESIDENTIAL PLACEMENTS - PRIVATE CONTRACTORS PAYMENT,749.00,0,Commercial Supplier
05/11/2018,Strategic Commissioning CYPS,Welcome Foster Care,RESIDENTIAL PLACEMENTS - PRIVATE CONTRACTORS PAYMENT,749.00,0,Commercial Supplier
05/11/2018,Strategic Commissioning CYPS,Welcome Foster Care,RESIDENTIAL PLACEMENTS - PRIVATE CONTRACTORS PAYMENT,749.00,0,Commercial Supplier
05/11/2018,Strategic Commissioning CYPS,Welcome Foster Care,RESIDENTIAL PLACEMENTS - PRIVATE CONTRACTORS PAYMENT,850.00,0,Commercial Supplier
05/11/2018,Strategic Commissioning CYPS,Welcome Foster Care,RESIDENTIAL PLACEMENTS - PRIVATE CONTRACTORS PAYMENT,850.00,0,Commercial Supplier
05/11/2018,Strategic Commissioning CYPS,Welcome Foster Care,RESIDENTIAL PLACEMENTS - PRIVATE CONTRACTORS PAYMENT,949.00,0,Commercial Supplier
05/11/2018,Strategic Commissioning CYPS,Welcome Foster Care,RESIDENTIAL PLACEMENTS - PRIVATE CONTRACTORS PAYMENT,949.00,0,Commercial Supplier
05/11/2018,Strategic Commissioning CYPS,Welcome Foster Care,RESIDENTIAL PLACEMENTS - PRIVATE CONTRACTORS PAYMENT,949.00,0,Commercial Supplier
05/11/2018,Strategic Commissioning CYPS,Welcome Foster Care,RESIDENTIAL PLACEMENTS - PRIVATE CONTRACTORS PAYMENT,850.00,0,Commercial Supplier
05/11/2018,Strategic Commissioning CYPS,Wellcare Fostering Services Ltd,RESIDENTIAL PLACEMENTS - PRIVATE CONTRACTORS PAYMENT,745.00,0,Commercial Supplier
05/11/2018,Strategic Commissioning CYPS,Wellcare Fostering Services Ltd,RESIDENTIAL PLACEMENTS - PRIVATE CONTRACTORS PAYMENT,745.00,0,Commercial Supplier
05/11/2018,Strategic Commissioning CYPS,Wellcare Fostering Services Ltd,RESIDENTIAL PLACEMENTS - PRIVATE CONTRACTORS PAYMENT,745.00,0,Commercial Supplier
05/11/2018,Strategic Commissioning CYPS,Wellcare Fostering Services Ltd,RESIDENTIAL PLACEMENTS - PRIVATE CONTRACTORS PAYMENT,745.00,0,Commercial Supplier
05/11/2018,Strategic Commissioning CYPS,Wellcare Fostering Services Ltd,RESIDENTIAL PLACEMENTS - PRIVATE CONTRACTORS PAYMENT,795.00,0,Commercial Supplier
05/11/2018,Strategic Commissioning CYPS,Wellcare Fostering Services Ltd,RESIDENTIAL PLACEMENTS - PRIVATE CONTRACTORS PAYMENT,795.00,0,Commercial Supplier
05/11/2018,Strategic Commissioning CYPS,Wellcare Fostering Services Ltd,RESIDENTIAL PLACEMENTS - PRIVATE CONTRACTORS PAYMENT,795.00,0,Commercial Supplier
05/11/2018,Strategic Commissioning CYPS,Wellcare Fostering Services Ltd,RESIDENTIAL PLACEMENTS - PRIVATE CONTRACTORS PAYMENT,795.00,0,Commercial Supplier
05/11/2018,Strategic Commissioning CYPS,Wellcare Fostering Services Ltd,RESIDENTIAL PLACEMENTS - PRIVATE CONTRACTORS PAYMENT,795.00,0,Commercial Supplier
05/11/2018,Strategic Commissioning CYPS,Wellcare Fostering Services Ltd,RESIDENTIAL PLACEMENTS - PRIVATE CONTRACTORS PAYMENT,745.00,0,Commercial Supplier
05/11/2018,Strategic Commissioning CYPS,Wellcare Fostering Services Ltd,RESIDENTIAL PLACEMENTS - PRIVATE CONTRACTORS PAYMENT,745.00,0,Commercial Supplier
05/11/2018,Strategic Commissioning CYPS,Wellcare Fostering Services Ltd,RESIDENTIAL PLACEMENTS - PRIVATE CONTRACTORS PAYMENT,795.00,0,Commercial Supplier
05/11/2018,Strategic Commissioning CYPS,Wellcare Fostering Services Ltd,RESIDENTIAL PLACEMENTS - PRIVATE CONTRACTORS PAYMENT,795.00,0,Commercial Supplier
05/11/2018,Strategic Commissioning CYPS,Wellcare Fostering Services Ltd,RESIDENTIAL PLACEMENTS - PRIVATE CONTRACTORS PAYMENT,795.00,0,Commercial Supplier
05/11/2018,Strategic Commissioning CYPS,Wellcare Fostering Services Ltd,RESIDENTIAL PLACEMENTS - PRIVATE CONTRACTORS PAYMENT,795.00,0,Commercial Supplier
05/11/2018,Strategic Commissioning CYPS,Wellcare Fostering Services Ltd,RESIDENTIAL PLACEMENTS - PRIVATE CONTRACTORS PAYMENT,795.00,0,Commercial Supplier
05/11/2018,Strategic Commissioning CYPS,Wellcare Fostering Services Ltd,RESIDENTIAL PLACEMENTS - PRIVATE CONTRACTORS PAYMENT,795.00,0,Commercial Supplier
05/11/2018,Strategic Commissioning CYPS,Wellcare Fostering Services Ltd,RESIDENTIAL PLACEMENTS - PRIVATE CONTRACTORS PAYMENT,745.00,0,Commercial Supplier
05/11/2018,Strategic Commissioning CYPS,Wellcare Fostering Services Ltd,RESIDENTIAL PLACEMENTS - PRIVATE CONTRACTORS PAYMENT,795.00,0,Commercial Supplier
05/11/2018,Strategic Commissioning CYPS,Wellcare Fostering Services Ltd,RESIDENTIAL PLACEMENTS - PRIVATE CONTRACTORS PAYMENT,745.00,0,Commercial Supplier
05/11/2018,Strategic Commissioning CYPS,Williams Medical Supplies Ltd,"PURCHASE - EQUIPMENT, FURNITURE AND MATERIALS","1,265.55",0,Commercial Supplier
05/11/2018,Strategic Commissioning CYPS,Redacted - Personal Data,LOOKED AFTER COST OTHER,500.00,0,Individuals
05/11/2018,Strategic Commissioning CYPS,Wiseman Lee LLP,LEGAL FEES,"6,500.00",0,Legal Services
05/11/2018,Strategic Commissioning Community and Environment,Womble Bond Dickinson (UK) LLP,R & M MINOR WORKS,753.00,0,Commercial Supplier
05/11/2018,Strategic Commissioning CYPS,i O Associates Ltd,STAFF RECRUITMENT COSTS,"1,280.00",0,Commercial Supplier
06/11/2018,Strategic Commissioning CYPS,Adam Campbell,LEGAL FEES,519.20,0,Supplier
06/11/2018,Strategic Commissioning Adults,Redacted - Personal Data,DIRECT PAYMENTS,323.96,0,Foster Carers
06/11/2018,Strategic Commissioning Adults,Redacted - Personal Data,DIRECT PAYMENTS,323.96,0,Foster Carers
06/11/2018,Strategic Commissioning Adults,Redacted - Personal Data,DIRECT PAYMENTS,323.96,0,Foster Carers
06/11/2018,Strategic Commissioning Adults,Redacted - Personal Data,DIRECT PAYMENTS,323.96,0,Foster Carers
06/11/2018,Customer & Strategic Services Communications,Alistage Ltd,EVENTS,"3,986.00",0,Commercial Supplier
06/11/2018,Customer & Strategic Services Communications,Alistage Ltd,EVENTS,"1,118.00",0,Commercial Supplier
06/11/2018,Strategic Commissioning Adults,Redacted - Personal Data,DIRECT PAYMENTS,898.56,0,Foster Carers
06/11/2018,Strategic Commissioning Adults,Redacted - Personal Data,DIRECT PAYMENTS,898.56,0,Foster Carers
06/11/2018,Strategic Commissioning Adults,Redacted - Personal Data,DIRECT PAYMENTS,898.56,0,Foster Carers
06/11/2018,Strategic Commissioning Adults,Redacted - Personal Data,DIRECT PAYMENTS,898.56,0,Foster Carers
06/11/2018,Strategic Commissioning Adults,Redacted - Personal Data,DIRECT PAYMENTS,307.91,0,Foster Carers
06/11/2018,Strategic Commissioning Adults,Redacted - Personal Data,DIRECT PAYMENTS,307.91,0,Foster Carers
06/11/2018,Strategic Commissioning Adults,Redacted - Personal Data,DIRECT PAYMENTS,307.91,0,Foster Carers
06/11/2018,Strategic Commissioning Adults,Redacted - Personal Data,DIRECT PAYMENTS,307.91,0,Foster Carers
06/11/2018,Strategic Commissioning Adults,Redacted - Personal Data,DIRECT PAYMENTS,461.68,0,Foster Carers
06/11/2018,Strategic Commissioning Adults,Redacted - Personal Data,DIRECT PAYMENTS,461.68,0,Foster Carers
06/11/2018,Strategic Commissioning Adults,Redacted - Personal Data,DIRECT PAYMENTS,461.68,0,Foster Carers
06/11/2018,Strategic Commissioning Adults,Redacted - Personal Data,DIRECT PAYMENTS,461.68,0,Foster Carers
06/11/2018,Strategic Commissioning Adults,Redacted - Personal Data,DIRECT PAYMENTS,280.38,0,Foster Carers
06/11/2018,Strategic Commissioning Adults,Redacted - Personal Data,DIRECT PAYMENTS,280.38,0,Foster Carers
06/11/2018,Strategic Commissioning Adults,Redacted - Personal Data,DIRECT PAYMENTS,280.38,0,Foster Carers
06/11/2018,Strategic Commissioning Adults,Redacted - Personal Data,DIRECT PAYMENTS,280.38,0,Foster Carers
06/11/2018,Strategic Commissioning CYPS,Austen Morgan,LEGAL FEES,800.00,0,Legal Services
06/11/2018,Strategic Commissioning Enforcement and Safety,Banner Group Ltd,STATIONERY,256.08,0,Commercial Supplier
06/11/2018,Strategic Commissioning Adults,Bettertogether Limited,ADULT PLACEMENT SCHEME - PRIVATE CONTRACTORS PAYMENT,564.00,0,Non Commercial Supplier
06/11/2018,Strategic Commissioning Adults,Bettertogether Limited,ADULT PLACEMENT SCHEME - PRIVATE CONTRACTORS PAYMENT,"2,256.00",0,Non Commercial Supplier
06/11/2018,Strategic Commissioning Adults,Bettertogether Limited,ADULT PLACEMENT SCHEME - PRIVATE CONTRACTORS PAYMENT,"2,256.00",0,Non Commercial Supplier
06/11/2018,Strategic Commissioning Adults,Bettertogether Limited,ADULT PLACEMENT SCHEME - PRIVATE CONTRACTORS PAYMENT,"1,542.00",0,Non Commercial Supplier
06/11/2018,Strategic Commissioning Adults,Bettertogether Limited,ADULT PLACEMENT SCHEME - PRIVATE CONTRACTORS PAYMENT,"1,542.00",0,Non Commercial Supplier
06/11/2018,Strategic Commissioning Adults,Bettertogether Limited,ADULT PLACEMENT SCHEME - PRIVATE CONTRACTORS PAYMENT,"1,542.00",0,Non Commercial Supplier
06/11/2018,Strategic Commissioning Adults,Bettertogether Limited,ADULT PLACEMENT SCHEME - PRIVATE CONTRACTORS PAYMENT,"1,832.00",0,Non Commercial Supplier
06/11/2018,Strategic Commissioning Adults,Beyond Reach,SUPPORTED OTHER ACCOMMODATION - PRIVATE CONTRACTORS PAYMENT,"1,152.00",0,Commercial Supplier
06/11/2018,Strategic Commissioning Adults,Beyond Reach,SUPPORTED OTHER ACCOMMODATION - PRIVATE CONTRACTORS PAYMENT,"1,152.00",0,Commercial Supplier
06/11/2018,oneSource oS ICT Services,Bloom Procurement Services Ltd,CONSULTANCY FEES,"8,723.00",0,Commercial Supplier
06/11/2018,Strategic Commissioning Enforcement and Safety,Bolinda UK Ltd,"BOOKS, PUBLICATIONS AND RESOURCES",467.09,0,Commercial Supplier
06/11/2018,Strategic Commissioning Enforcement and Safety,Redacted - Personal Data,SUBSISTENCE,296.61,0,Employee
06/11/2018,Strategic Commissioning CYPS,Bromley & Croydon Women's Aid,SECTION 17 - PRIVATE CONTRACTORS PAYMENT,"1,860.00",0,Commercial Supplier
06/11/2018,Strategic Commissioning CYPS,Bromley & Croydon Women's Aid,SECTION 17 - PRIVATE CONTRACTORS PAYMENT,"2,170.00",0,Commercial Supplier
06/11/2018,oneSource oS ICT Services,Bytes Software Services Ltd,ICT SOFTWARE,"3,773.70",0,Non Commercial Supplier
06/11/2018,Strategic Commissioning CYPS,Care 2 Share 1,SECTION 17 - PRIVATE CONTRACTORS PAYMENT,"12,342.84",0,Supplier
06/11/2018,Strategic Commissioning CYPS,Care 2 Share 1,RESIDENTIAL PLACEMENTS - PRIVATE CONTRACTORS PAYMENT,"2,657.16",0,Supplier
06/11/2018,Strategic Commissioning Adults,Care Support,DAYCARE - PRIVATE CONTRACTORS PAYMENT,331.20,0,Commercial Supplier
06/11/2018,Strategic Commissioning Adults,Care Support,DAYCARE - PRIVATE CONTRACTORS PAYMENT,331.20,0,Commercial Supplier
06/11/2018,Strategic Commissioning Adults,Care Support,HOME CARE - PRIVATE CONTRACTORS PAYMENT,869.40,0,Commercial Supplier
06/11/2018,Strategic Commissioning Adults,Care Support,HOME CARE - PRIVATE CONTRACTORS PAYMENT,"6,147.90",0,Commercial Supplier
06/11/2018,Strategic Commissioning Adults,Care Support,DAYCARE - PRIVATE CONTRACTORS PAYMENT,"1,600.80",0,Commercial Supplier
06/11/2018,Strategic Commissioning Adults,Care Support,HOME CARE - PRIVATE CONTRACTORS PAYMENT,386.40,0,Commercial Supplier
06/11/2018,Strategic Commissioning Adults,Care Support,PAYMENT TO HEALTH AUTHORITIES,"4,581.60",0,Commercial Supplier
06/11/2018,Strategic Commissioning Adults,Care Support,HOME CARE - PRIVATE CONTRACTORS PAYMENT,358.80,0,Commercial Supplier
06/11/2018,Strategic Commissioning Adults,Care Support,HOME CARE - PRIVATE CONTRACTORS PAYMENT,386.40,0,Commercial Supplier
06/11/2018,Strategic Commissioning Adults,Care Support,HOME CARE - PRIVATE CONTRACTORS PAYMENT,869.40,0,Commercial Supplier
06/11/2018,Strategic Commissioning Adults,Care Support,HOME CARE - PRIVATE CONTRACTORS PAYMENT,296.70,0,Commercial Supplier
06/11/2018,Strategic Commissioning Adults,Care Support,HOME CARE - PRIVATE CONTRACTORS PAYMENT,676.20,0,Commercial Supplier
06/11/2018,Strategic Commissioning Adults,Care Support,HOME CARE - PRIVATE CONTRACTORS PAYMENT,621.00,0,Commercial Supplier
06/11/2018,Strategic Commissioning Adults,Care Support,HOME CARE - PRIVATE CONTRACTORS PAYMENT,"83,224.62",0,Commercial Supplier
06/11/2018,Strategic Commissioning Adults,Care Support,HOME CARE - PRIVATE CONTRACTORS PAYMENT,579.60,0,Commercial Supplier
06/11/2018,Strategic Commissioning Adults,Care Support,HOME CARE - PRIVATE CONTRACTORS PAYMENT,"1,242.00",0,Commercial Supplier
06/11/2018,Strategic Commissioning Adults,Care Support,HOME CARE - PRIVATE CONTRACTORS PAYMENT,358.80,0,Commercial Supplier
06/11/2018,Strategic Commissioning Adults,Care Support,HOME CARE - PRIVATE CONTRACTORS PAYMENT,386.40,0,Commercial Supplier
06/11/2018,Strategic Commissioning Adults,Care Support,HOME CARE - PRIVATE CONTRACTORS PAYMENT,627.90,0,Commercial Supplier
06/11/2018,Strategic Commissioning CYPS,Central Park Estates,SECTION 17 - PRIVATE CONTRACTORS PAYMENT,"2,400.00",0,Commercial Supplier
06/11/2018,Strategic Commissioning Adults,Redacted - Personal Data,DIRECT PAYMENTS,"1,221.32",0,Foster Carers
06/11/2018,Strategic Commissioning Adults,Redacted - Personal Data,DIRECT PAYMENTS,"1,221.32",0,Foster Carers
06/11/2018,Strategic Commissioning Adults,Redacted - Personal Data,DIRECT PAYMENTS,"1,221.32",0,Foster Carers
06/11/2018,Strategic Commissioning Adults,Redacted - Personal Data,DIRECT PAYMENTS,"1,221.32",0,Foster Carers
06/11/2018,Strategic Commissioning Adults,Chiltern Invadex (UK) Ltd,PRIVATE CONTRACTORS PAYMENT - OTHER,"2,312.90",0,Non Commercial Supplier
06/11/2018,oneSource - Non Shared Asset Management,Claremore Mechanical Services Limited,BUILDING ALTERATIONS AND MATERIALS,407.78,0,CIS
06/11/2018,Strategic Commissioning CYPS,Crb Disclosure Services,MEMBERSHIP AND SUBSCRIPTIONS,294.00,0,Supplier
06/11/2018,Regeneration and Planning Planning,Crown Records Management Ltd,STORAGE AND ARCHIVING,"1,118.25",0,Supplier
06/11/2018,Strategic Commissioning CYPS,Crown Records Management Ltd,STORAGE AND ARCHIVING,"2,420.91",0,Supplier
06/11/2018,Strategic Commissioning Adults,Crown Records Management Ltd,STORAGE AND ARCHIVING,476.89,0,Supplier
06/11/2018,oneSource oS Legal & Governance,Crown Records Management Ltd,STORAGE AND ARCHIVING,"1,336.54",0,Supplier
06/11/2018,oneSource oS Exchequer & Transactional Services,Crown Records Management Ltd,STORAGE AND ARCHIVING,683.45,0,Supplier
06/11/2018,Housing Revenue Account HRA,Daisy Communications Ltd,RESPONSIVE REPAIRS - MECHANICAL AND ELECTRICAL,338.74,0,Commercial Supplier
06/11/2018,oneSource oS ICT Services,Daisy Communications Ltd,LAND LINE TELEPHONE COSTS,"7,924.00",0,Commercial Supplier
06/11/2018,oneSource oS ICT Services,Dataforms Chartered Press Ltd,PRINTING,"1,525.00",0,Commercial Supplier
06/11/2018,Strategic Commissioning Enforcement and Safety,Deister Electronic (Uk) Ltd,CONSULTANCY FEES,"1,407.00",0,Supplier
06/11/2018,Strategic Commissioning Community and Environment,Douglas Hill,PRIVATE CONTRACTORS PAYMENT - OTHER,"1,270.50",0,Commercial Supplier
06/11/2018,Strategic Commissioning Adults,Dr Bhadra's Surgery,PAYMENT TO HEALTH AUTHORITIES,"9,208.00",0,Non Commercial Supplier
06/11/2018,Strategic Commissioning Adults,Ebme Solutions Ltd,PROFESSIONAL SERVICES - GENERAL,360.00,0,Commercial Supplier
06/11/2018,Strategic Commissioning Adults,Ebme Solutions Ltd,PROFESSIONAL SERVICES - GENERAL,870.51,0,Commercial Supplier
06/11/2018,Strategic Commissioning Adults,Ebme Solutions Ltd,PROFESSIONAL SERVICES - GENERAL,"1,029.13",0,Commercial Supplier
06/11/2018,Strategic Commissioning Adults,Ebme Solutions Ltd,PROFESSIONAL SERVICES - GENERAL,807.02,0,Commercial Supplier
06/11/2018,Strategic Commissioning Adults,Ebme Solutions Ltd,PROFESSIONAL SERVICES - GENERAL,890.00,0,Commercial Supplier
06/11/2018,Strategic Commissioning Adults,Redacted - Personal Data,DIRECT PAYMENTS,274.71,0,Foster Carers
06/11/2018,Strategic Commissioning Adults,Redacted - Personal Data,DIRECT PAYMENTS,274.71,0,Foster Carers
06/11/2018,Strategic Commissioning Adults,Redacted - Personal Data,DIRECT PAYMENTS,274.71,0,Foster Carers
06/11/2018,Strategic Commissioning Adults,Redacted - Personal Data,DIRECT PAYMENTS,274.71,0,Foster Carers
06/11/2018,Strategic Commissioning Adults,Redacted - Personal Data,DIRECT PAYMENTS,320.00,0,Foster Carers
06/11/2018,Strategic Commissioning Adults,Redacted - Personal Data,DIRECT PAYMENTS,320.00,0,Foster Carers
06/11/2018,Strategic Commissioning Adults,Redacted - Personal Data,DIRECT PAYMENTS,320.00,0,Foster Carers
06/11/2018,Strategic Commissioning Adults,Redacted - Personal Data,DIRECT PAYMENTS,320.00,0,Foster Carers
06/11/2018,oneSource - Non Shared Legal & Democratic,Financial Data Management PLC,PRINTING,"2,995.20",0,Commercial Supplier
06/11/2018,Strategic Commissioning Enforcement and Safety,Folake Akinjola,PRIVATE CONTRACTORS PAYMENT - OTHER,300.00,0,Individuals
06/11/2018,Customer & Strategic Services Communications,GD Web Offset Ltd,"ADVERTISING, PUBLICITY AND MARKETING","9,787.09",0,Commercial Supplier
06/11/2018,Strategic Commissioning CYPS,GatenbySanderson Ltd,PROFESSIONAL SERVICES - GENERAL,"3,540.00",0,Commercial Supplier
06/11/2018,Strategic Commissioning CYPS,Gateway Qualifications.,PROFESSIONAL SERVICES - GENERAL,"1,848.00",0,Commercial Supplier
06/11/2018,Strategic Commissioning Adults,Redacted - Personal Data,DIRECT PAYMENTS,399.52,0,Foster Carers
06/11/2018,Strategic Commissioning Adults,Redacted - Personal Data,DIRECT PAYMENTS,399.52,0,Foster Carers
06/11/2018,Strategic Commissioning Adults,Redacted - Personal Data,DIRECT PAYMENTS,399.52,0,Foster Carers
06/11/2018,Strategic Commissioning Adults,Redacted - Personal Data,DIRECT PAYMENTS,399.52,0,Foster Carers
06/11/2018,Housing Revenue Account HRA,Greenham Trading Ltd,CLEANING MATERIALS,335.04,0,Commercial Supplier
06/11/2018,Strategic Commissioning Adults,Greenham Trading Ltd,CLEANING MATERIALS,"1,058.65",0,Commercial Supplier
06/11/2018,Housing Revenue Account HRA,Greenham Trading Ltd,STATIONERY,703.43,0,Commercial Supplier
06/11/2018,Strategic Commissioning Community and Environment,Greenham Trading Ltd,CLEANING MATERIALS,313.30,0,Commercial Supplier
06/11/2018,Strategic Commissioning CYPS,Greenham Trading Ltd,CLEANING MATERIALS,547.32,0,Commercial Supplier
06/11/2018,oneSource - Non Shared Asset Management,Greenham Trading Ltd,CLEANING MATERIALS,433.95,0,Commercial Supplier
06/11/2018,Housing Revenue Account HRA,Greenham Trading Ltd,CLEANING MATERIALS,401.99,0,Commercial Supplier
06/11/2018,Strategic Commissioning Adults,HAS Technology Ltd T/A CM2000,ICT HARDWARE,"4,568.69",0,Commercial Supplier
06/11/2018,Strategic Commissioning CYPS,Helen Nettleship,LEGAL FEES,"1,600.00",0,Legal Services
06/11/2018,Strategic Commissioning CYPS,Holmdene Housing Ltd,SUPPORTED OTHER ACCOMMODATION - PRIVATE CONTRACTORS PAYMENT,"1,028.57",0,Commercial Supplier
06/11/2018,Strategic Commissioning Community and Environment,I.O.D. Skip Hire Limited,WASTE DISPOSAL COSTS,"3,929.60",0,Supplier
06/11/2018,Strategic Commissioning Adults,Redacted - Personal Data,DIRECT PAYMENTS,309.50,0,Foster Carers
06/11/2018,Strategic Commissioning Adults,Redacted - Personal Data,DIRECT PAYMENTS,309.50,0,Foster Carers
06/11/2018,Strategic Commissioning Adults,Redacted - Personal Data,DIRECT PAYMENTS,309.50,0,Foster Carers
06/11/2018,Strategic Commissioning Adults,Redacted - Personal Data,DIRECT PAYMENTS,309.50,0,Foster Carers
06/11/2018,Strategic Commissioning Enforcement and Safety,Ixact Limited,STREET SWEEPING,"1,104.79",0,Commercial Supplier
06/11/2018,Strategic Commissioning Community and Environment,Ixact Limited,STREET SWEEPING,"285,470.50",0,Commercial Supplier
06/11/2018,Housing Revenue Account HRA,Ixact Limited,STREET SWEEPING,"84,551.32",0,Commercial Supplier
06/11/2018,oneSource - Non Shared Asset Management,J C WATSON MECHANICAL Ltd,BUILDING ALTERATIONS AND MATERIALS,257.51,0,CIS
06/11/2018,Strategic Commissioning CYPS,JK Assessments Services Ltd,LEGAL FEES,"7,700.00",0,Commercial Supplier
06/11/2018,Strategic Commissioning Adults,Redacted - Personal Data,DIRECT PAYMENTS,384.05,0,Foster Carers
06/11/2018,Strategic Commissioning Adults,Redacted - Personal Data,DIRECT PAYMENTS,384.05,0,Foster Carers
06/11/2018,Strategic Commissioning Adults,Redacted - Personal Data,DIRECT PAYMENTS,384.05,0,Foster Carers
06/11/2018,Strategic Commissioning Adults,Redacted - Personal Data,DIRECT PAYMENTS,384.05,0,Foster Carers
06/11/2018,Strategic Commissioning Adults,Redacted - Personal Data,DIRECT PAYMENTS,402.73,0,Foster Carers
06/11/2018,Strategic Commissioning Adults,Redacted - Personal Data,DIRECT PAYMENTS,402.73,0,Foster Carers
06/11/2018,Strategic Commissioning Adults,Redacted - Personal Data,DIRECT PAYMENTS,402.73,0,Foster Carers
06/11/2018,Strategic Commissioning Adults,Redacted - Personal Data,DIRECT PAYMENTS,402.73,0,Foster Carers
06/11/2018,Strategic Commissioning Adults,Jetsol Pharmacy,PAYMENT TO HEALTH AUTHORITIES,"3,644.68",0,Supplier
06/11/2018,Strategic Commissioning Adults,Redacted - Personal Data,DIRECT PAYMENTS,420.42,0,Foster Carers
06/11/2018,Strategic Commissioning Adults,Redacted - Personal Data,DIRECT PAYMENTS,420.42,0,Foster Carers
06/11/2018,Strategic Commissioning Adults,Redacted - Personal Data,DIRECT PAYMENTS,420.42,0,Foster Carers
06/11/2018,Strategic Commissioning Adults,Redacted - Personal Data,DIRECT PAYMENTS,420.42,0,Foster Carers
06/11/2018,Strategic Commissioning Enforcement and Safety,Karen Truman,EVENTS,400.00,0,Supplier
06/11/2018,Strategic Commissioning CYPS,Katherine Couper,LEGAL FEES,760.00,0,Commercial Supplier
06/11/2018,Strategic Commissioning Adults,Redacted - Personal Data,DIRECT PAYMENTS,446.82,0,Foster Carers
06/11/2018,Strategic Commissioning Adults,Redacted - Personal Data,DIRECT PAYMENTS,446.82,0,Foster Carers
06/11/2018,Strategic Commissioning Adults,Redacted - Personal Data,DIRECT PAYMENTS,446.82,0,Foster Carers
06/11/2018,Strategic Commissioning Adults,Redacted - Personal Data,DIRECT PAYMENTS,446.82,0,Foster Carers
06/11/2018,Strategic Commissioning CYPS,Kisimul Group Ltd,RESIDENTIAL PLACEMENTS - PRIVATE CONTRACTORS PAYMENT,"74,701.25",0,Commercial Supplier
06/11/2018,Strategic Commissioning Adults,Redacted - Personal Data,DIRECT PAYMENTS,276.92,0,Foster Carers
06/11/2018,Strategic Commissioning Adults,Redacted - Personal Data,DIRECT PAYMENTS,276.92,0,Foster Carers
06/11/2018,Strategic Commissioning Adults,Redacted - Personal Data,DIRECT PAYMENTS,276.92,0,Foster Carers
06/11/2018,Strategic Commissioning Adults,Redacted - Personal Data,DIRECT PAYMENTS,276.92,0,Foster Carers
06/11/2018,oneSource - Non Shared Asset Management,Laker Bms,BUILDING ALTERATIONS AND MATERIALS,488.54,0,CIS
06/11/2018,oneSource - Non Shared Asset Management,Laker Bms,BUILDING ALTERATIONS AND MATERIALS,586.33,0,CIS
06/11/2018,Strategic Commissioning Adults,Redacted - Personal Data,DIRECT PAYMENTS,408.95,0,Foster Carers
06/11/2018,Strategic Commissioning Adults,Redacted - Personal Data,DIRECT PAYMENTS,408.95,0,Foster Carers
06/11/2018,Strategic Commissioning Adults,Redacted - Personal Data,DIRECT PAYMENTS,408.95,0,Foster Carers
06/11/2018,Strategic Commissioning Adults,Redacted - Personal Data,DIRECT PAYMENTS,408.95,0,Foster Carers
06/11/2018,Strategic Commissioning CYPS,Laura Harrington,LEGAL FEES,951.00,0,Non Commercial Supplier
06/11/2018,Strategic Commissioning Community and Environment,Local Authority Recycling Advisory Committee (LARAC),MEMBERSHIP AND SUBSCRIPTIONS,850.00,0,Commercial Supplier
06/11/2018,Strategic Commissioning Adults,Local Space Ltd,RENTS PAYABLE,"209,690.77",0,Supplier
06/11/2018,Strategic Commissioning CYPS,London Borough of Barnet.,RESIDENTIAL PLACEMENTS - PRIVATE CONTRACTORS PAYMENT,"2,732.00",0,Commercial Supplier
06/11/2018,Strategic Commissioning CYPS,London Borough of Barnet.,RESIDENTIAL PLACEMENTS - PRIVATE CONTRACTORS PAYMENT,"1,853.86",0,Commercial Supplier
06/11/2018,Strategic Commissioning Community and Environment,Maestro7,STAFF DEVELOPMENT AND TRAINING,"1,000.00",0,Commercial Supplier
06/11/2018,Strategic Commissioning Adults,Redacted - Personal Data,DIRECT PAYMENTS,362.60,0,Foster Carers
06/11/2018,Strategic Commissioning Adults,Redacted - Personal Data,DIRECT PAYMENTS,362.60,0,Foster Carers
06/11/2018,Strategic Commissioning Adults,Redacted - Personal Data,DIRECT PAYMENTS,362.60,0,Foster Carers
06/11/2018,Strategic Commissioning Adults,Redacted - Personal Data,DIRECT PAYMENTS,362.60,0,Foster Carers
06/11/2018,Housing Revenue Account HRA,Manpower Direct Ltd,SECURITY OF PREMISES,"43,428.00",0,Commercial Supplier
06/11/2018,Strategic Commissioning Adults,Redacted - Personal Data,DIRECT PAYMENTS,286.42,0,Foster Carers
06/11/2018,Strategic Commissioning Adults,Redacted - Personal Data,DIRECT PAYMENTS,286.42,0,Foster Carers
06/11/2018,Strategic Commissioning Adults,Redacted - Personal Data,DIRECT PAYMENTS,286.42,0,Foster Carers
06/11/2018,Strategic Commissioning Adults,Redacted - Personal Data,DIRECT PAYMENTS,286.42,0,Foster Carers
06/11/2018,Strategic Commissioning Adults,Redacted - Personal Data,DIRECT PAYMENTS,"1,360.68",0,Individuals
06/11/2018,Strategic Commissioning Adults,Redacted - Personal Data,DIRECT PAYMENTS,"1,360.68",0,Individuals
06/11/2018,Strategic Commissioning Adults,Redacted - Personal Data,DIRECT PAYMENTS,"1,360.68",0,Individuals
06/11/2018,Strategic Commissioning Adults,Redacted - Personal Data,DIRECT PAYMENTS,"1,360.68",0,Individuals
06/11/2018,Strategic Commissioning CYPS,Martina Van Der Leij,LEGAL FEES,920.00,0,Supplier
06/11/2018,Strategic Commissioning Adults,Micks Furniture Discount,"PURCHASE - EQUIPMENT, FURNITURE AND MATERIALS",915.00,0,CIS
06/11/2018,Strategic Commissioning Adults,Mindme,SECURITY SERVICES (EXCLUDING PREMISES),"2,094.99",0,Commercial Supplier
06/11/2018,Strategic Commissioning CYPS,Miss Nicola Hall.,LEGAL FEES,903.00,0,Commercial Supplier
06/11/2018,oneSource - Non Shared Asset Management,Mja Interior Services Ltd,FACILITIES MANAGEMENT,367.00,0,CIS
06/11/2018,oneSource - Non Shared Asset Management,Mja Interior Services Ltd,FACILITIES MANAGEMENT,367.00,0,CIS
06/11/2018,oneSource - Non Shared Asset Management,Mja Interior Services Ltd,FACILITIES MANAGEMENT,278.00,0,CIS
06/11/2018,oneSource - Non Shared Asset Management,Mja Interior Services Ltd,FACILITIES MANAGEMENT,286.00,0,CIS
06/11/2018,oneSource oS Finance,Morgan Law Partners LLP,AGENCY STAFF,"3,162.50",0,Commercial Supplier
06/11/2018,Strategic Commissioning Community and Environment,Nadege Germian,ARTS AND LEISURE COSTS,320.00,0,Individuals
06/11/2018,Strategic Commissioning Adults,Redacted - Personal Data,DIRECT PAYMENTS,326.25,0,Foster Carers
06/11/2018,Strategic Commissioning Adults,Redacted - Personal Data,DIRECT PAYMENTS,326.25,0,Foster Carers
06/11/2018,Strategic Commissioning Adults,Redacted - Personal Data,DIRECT PAYMENTS,326.25,0,Foster Carers
06/11/2018,Strategic Commissioning Adults,Redacted - Personal Data,DIRECT PAYMENTS,326.25,0,Foster Carers
06/11/2018,Dedicated Schools Budget Dedicated Schools Budget,Newham College of Further Education,PROFESSIONAL SERVICES - GENERAL,"200,244.66",0,Commercial Supplier
06/11/2018,Strategic Commissioning CYPS,Redacted - Personal Data,CLIENT EXPENSES - THIRD PARTY,"1,900.00",0,Direct Payments
06/11/2018,Strategic Commissioning Adults,Redacted - Personal Data,DIRECT PAYMENTS,791.77,0,Foster Carers
06/11/2018,Strategic Commissioning Adults,Redacted - Personal Data,DIRECT PAYMENTS,791.77,0,Foster Carers
06/11/2018,Strategic Commissioning Adults,Redacted - Personal Data,DIRECT PAYMENTS,791.77,0,Foster Carers
06/11/2018,Strategic Commissioning Adults,Redacted - Personal Data,DIRECT PAYMENTS,791.77,0,Foster Carers
06/11/2018,Strategic Commissioning Adults,Redacted - Personal Data,DIRECT PAYMENTS,274.25,0,Foster Carers
06/11/2018,Strategic Commissioning Adults,Redacted - Personal Data,DIRECT PAYMENTS,274.25,0,Foster Carers
06/11/2018,Strategic Commissioning Adults,Redacted - Personal Data,DIRECT PAYMENTS,274.25,0,Foster Carers
06/11/2018,Strategic Commissioning Adults,Redacted - Personal Data,DIRECT PAYMENTS,274.25,0,Foster Carers
06/11/2018,Strategic Commissioning Community and Environment,Northgate Public Services (UK) Limited,CONSULTANCY FEES,660.00,0,Commercial Supplier
06/11/2018,Strategic Commissioning Community and Environment,Northgate Vehicle Hire Ltd,VEHICLE HIRE,416.89,0,Non Commercial Supplier
06/11/2018,Strategic Commissioning Community and Environment,Northgate Vehicle Hire Ltd,VEHICLE HIRE,344.01,0,Non Commercial Supplier
06/11/2018,Strategic Commissioning Community and Environment,Northgate Vehicle Hire Ltd,VEHICLE HIRE,286.32,0,Non Commercial Supplier
06/11/2018,Strategic Commissioning Community and Environment,Northgate Vehicle Hire Ltd,VEHICLE HIRE,286.32,0,Non Commercial Supplier
06/11/2018,Strategic Commissioning Community and Environment,Northgate Vehicle Hire Ltd,VEHICLE HIRE,645.10,0,Non Commercial Supplier
06/11/2018,Strategic Commissioning Community and Environment,Northgate Vehicle Hire Ltd,VEHICLE HIRE,543.36,0,Non Commercial Supplier
06/11/2018,Strategic Commissioning Community and Environment,Northgate Vehicle Hire Ltd,VEHICLE HIRE,523.31,0,Non Commercial Supplier
06/11/2018,Strategic Commissioning Community and Environment,Northgate Vehicle Hire Ltd,VEHICLE HIRE,361.58,0,Non Commercial Supplier
06/11/2018,Strategic Commissioning Community and Environment,Northgate Vehicle Hire Ltd,VEHICLE HIRE,645.10,0,Non Commercial Supplier
06/11/2018,Strategic Commissioning Community and Environment,Northgate Vehicle Hire Ltd,VEHICLE HIRE,433.00,0,Non Commercial Supplier
06/11/2018,Strategic Commissioning Community and Environment,Northgate Vehicle Hire Ltd,VEHICLE HIRE,286.32,0,Non Commercial Supplier
06/11/2018,Strategic Commissioning Community and Environment,Northgate Vehicle Hire Ltd,VEHICLE HIRE,382.41,0,Non Commercial Supplier
06/11/2018,Strategic Commissioning Community and Environment,Northgate Vehicle Hire Ltd,VEHICLE HIRE,416.89,0,Non Commercial Supplier
06/11/2018,Strategic Commissioning Community and Environment,Northgate Vehicle Hire Ltd,VEHICLE HIRE,315.63,0,Non Commercial Supplier
06/11/2018,Strategic Commissioning Community and Environment,Northgate Vehicle Hire Ltd,VEHICLE HIRE,416.89,0,Non Commercial Supplier
06/11/2018,Strategic Commissioning Community and Environment,Northgate Vehicle Hire Ltd,VEHICLE HIRE,531.11,0,Non Commercial Supplier
06/11/2018,Strategic Commissioning Community and Environment,Northgate Vehicle Hire Ltd,VEHICLE HIRE,416.89,0,Non Commercial Supplier
06/11/2018,Strategic Commissioning Community and Environment,Northgate Vehicle Hire Ltd,VEHICLE HIRE,286.32,0,Non Commercial Supplier
06/11/2018,Strategic Commissioning Community and Environment,Northgate Vehicle Hire Ltd,VEHICLE HIRE,286.32,0,Non Commercial Supplier
06/11/2018,Strategic Commissioning Community and Environment,Northgate Vehicle Hire Ltd,VEHICLE HIRE,344.01,0,Non Commercial Supplier
06/11/2018,Strategic Commissioning Community and Environment,Northgate Vehicle Hire Ltd,VEHICLE HIRE,286.32,0,Non Commercial Supplier
06/11/2018,Strategic Commissioning Community and Environment,Northgate Vehicle Hire Ltd,VEHICLE HIRE,416.89,0,Non Commercial Supplier
06/11/2018,Strategic Commissioning Community and Environment,Northgate Vehicle Hire Ltd,VEHICLE HIRE,523.31,0,Non Commercial Supplier
06/11/2018,Strategic Commissioning Community and Environment,Northgate Vehicle Hire Ltd,VEHICLE HIRE,645.10,0,Non Commercial Supplier
06/11/2018,Strategic Commissioning Community and Environment,Northgate Vehicle Hire Ltd,VEHICLE HIRE,416.89,0,Non Commercial Supplier
06/11/2018,Strategic Commissioning Community and Environment,Northgate Vehicle Hire Ltd,VEHICLE HIRE,525.46,0,Non Commercial Supplier
06/11/2018,Strategic Commissioning Community and Environment,Northgate Vehicle Hire Ltd,VEHICLE HIRE,416.89,0,Non Commercial Supplier
06/11/2018,Strategic Commissioning Community and Environment,Northgate Vehicle Hire Ltd,VEHICLE HIRE,416.89,0,Non Commercial Supplier
06/11/2018,Strategic Commissioning Community and Environment,Northgate Vehicle Hire Ltd,VEHICLE HIRE,416.89,0,Non Commercial Supplier
06/11/2018,Strategic Commissioning CYPS,Nugent House School And Residential Home,RESIDENTIAL PLACEMENTS - PRIVATE CONTRACTORS PAYMENT,"11,169.32",0,Commercial Supplier
06/11/2018,Strategic Commissioning CYPS,Nugent House School And Residential Home,RESIDENTIAL PLACEMENTS - PRIVATE CONTRACTORS PAYMENT,"1,369.31",0,Commercial Supplier
06/11/2018,Strategic Commissioning CYPS,PFS Prepaid Financial Services,NO RECOURSE TO PUBLIC FUNDS - PRIVATE CONTRACTORS PAYMENT,300.00,0,Individuals
06/11/2018,oneSource - Non Shared Asset Management,RIBA Enterprises Ltd,"PURCHASE - EQUIPMENT, FURNITURE AND MATERIALS","1,120.00",0,Commercial Supplier
06/11/2018,Strategic Commissioning Adults,Rachel Coyle,LEGAL FEES,950.00,0,Non Commercial Supplier
06/11/2018,Strategic Commissioning Adults,Redacted - Personal Data,DIRECT PAYMENTS,322.12,0,Foster Carers
06/11/2018,Strategic Commissioning Adults,Redacted - Personal Data,DIRECT PAYMENTS,322.12,0,Foster Carers
06/11/2018,Strategic Commissioning Adults,Redacted - Personal Data,DIRECT PAYMENTS,322.12,0,Foster Carers
06/11/2018,Strategic Commissioning Adults,Redacted - Personal Data,DIRECT PAYMENTS,322.12,0,Foster Carers
06/11/2018,Strategic Commissioning Adults,Redspot Homecare (Contracts) Limited,HOME CARE - PRIVATE CONTRACTORS PAYMENT,848.28,0,Supplier
06/11/2018,Strategic Commissioning Adults,Redspot Homecare (Contracts) Limited,HOME CARE - PRIVATE CONTRACTORS PAYMENT,649.32,0,Supplier
06/11/2018,Strategic Commissioning Adults,Redspot Homecare (Contracts) Limited,HOME CARE - PRIVATE CONTRACTORS PAYMENT,636.34,0,Supplier
06/11/2018,Strategic Commissioning Adults,Redspot Homecare (Contracts) Limited,HOME CARE - PRIVATE CONTRACTORS PAYMENT,371.00,0,Supplier
06/11/2018,Strategic Commissioning Adults,Redspot Homecare (Contracts) Limited,HOME CARE - PRIVATE CONTRACTORS PAYMENT,"1,722.50",0,Supplier
06/11/2018,Strategic Commissioning Adults,Redspot Homecare (Contracts) Limited,HOME CARE - PRIVATE CONTRACTORS PAYMENT,"1,802.80",0,Supplier
06/11/2018,Strategic Commissioning Adults,Redspot Homecare (Contracts) Limited,HOME CARE - PRIVATE CONTRACTORS PAYMENT,"1,895.56",0,Supplier
06/11/2018,Strategic Commissioning Adults,Redspot Homecare (Contracts) Limited,HOME CARE - PRIVATE CONTRACTORS PAYMENT,371.28,0,Supplier
06/11/2018,Strategic Commissioning Adults,Redspot Homecare (Contracts) Limited,HOME CARE - PRIVATE CONTRACTORS PAYMENT,463.97,0,Supplier
06/11/2018,Strategic Commissioning Adults,Redspot Homecare (Contracts) Limited,DAYCARE - PRIVATE CONTRACTORS PAYMENT,530.00,0,Supplier
06/11/2018,Strategic Commissioning Adults,Redspot Homecare (Contracts) Limited,HOME CARE - PRIVATE CONTRACTORS PAYMENT,"1,842.66",0,Supplier
06/11/2018,Strategic Commissioning Adults,Redspot Homecare (Contracts) Limited,HOME CARE - PRIVATE CONTRACTORS PAYMENT,835.24,0,Supplier
06/11/2018,Strategic Commissioning Adults,Redspot Homecare (Contracts) Limited,HOME CARE - PRIVATE CONTRACTORS PAYMENT,420.88,0,Supplier
06/11/2018,Strategic Commissioning Adults,Redspot Homecare (Contracts) Limited,HOME CARE - PRIVATE CONTRACTORS PAYMENT,"1,855.84",0,Supplier
06/11/2018,Strategic Commissioning Adults,Redspot Homecare (Contracts) Limited,PRIVATE CONTRACTORS PAYMENT - OTHER,649.60,0,Supplier
06/11/2018,Strategic Commissioning Adults,Redacted - Personal Data,DIRECT PAYMENTS,745.88,0,Foster Carers
06/11/2018,Strategic Commissioning Adults,Redacted - Personal Data,DIRECT PAYMENTS,745.88,0,Foster Carers
06/11/2018,Strategic Commissioning Adults,Redacted - Personal Data,DIRECT PAYMENTS,745.88,0,Foster Carers
06/11/2018,Strategic Commissioning Adults,Redacted - Personal Data,DIRECT PAYMENTS,745.88,0,Foster Carers
06/11/2018,Customer & Strategic Services Public Policy and Research,Redacted - Personal Data,CATERING AND VENDING SUPPLIES,623.98,0,Employee
06/11/2018,Strategic Commissioning Adults,Redacted - Personal Data,DIRECT PAYMENTS,306.58,0,Foster Carers
06/11/2018,Strategic Commissioning Adults,Redacted - Personal Data,DIRECT PAYMENTS,306.58,0,Foster Carers
06/11/2018,Strategic Commissioning Adults,Redacted - Personal Data,DIRECT PAYMENTS,306.58,0,Foster Carers
06/11/2018,Strategic Commissioning Adults,Redacted - Personal Data,DIRECT PAYMENTS,306.58,0,Foster Carers
06/11/2018,Customer & Strategic Services Communications,Royal Docks Management Authority Ltd,FACILITIES MANAGEMENT,860.00,0,Supplier
06/11/2018,Strategic Commissioning CYPS,S Phil-Ebosie,LEGAL FEES,"6,350.00",0,Supplier
06/11/2018,Strategic Commissioning Adults,Redacted - Personal Data,DIRECT PAYMENTS,355.06,0,Foster Carers
06/11/2018,Strategic Commissioning Adults,Redacted - Personal Data,DIRECT PAYMENTS,355.06,0,Foster Carers
06/11/2018,Strategic Commissioning Adults,Redacted - Personal Data,DIRECT PAYMENTS,355.06,0,Foster Carers
06/11/2018,Strategic Commissioning Adults,Redacted - Personal Data,DIRECT PAYMENTS,355.06,0,Foster Carers
06/11/2018,Strategic Commissioning Adults,Redacted - Personal Data,DIRECT PAYMENTS,393.97,0,Foster Carers
06/11/2018,Strategic Commissioning Adults,Redacted - Personal Data,DIRECT PAYMENTS,393.97,0,Foster Carers
06/11/2018,Strategic Commissioning Adults,Redacted - Personal Data,DIRECT PAYMENTS,393.97,0,Foster Carers
06/11/2018,Strategic Commissioning Adults,Redacted - Personal Data,DIRECT PAYMENTS,393.97,0,Foster Carers
06/11/2018,Strategic Commissioning Adults,Redacted - Personal Data,DIRECT PAYMENTS,414.28,0,Direct Payments
06/11/2018,Strategic Commissioning Adults,Redacted - Personal Data,DIRECT PAYMENTS,414.28,0,Direct Payments
06/11/2018,Strategic Commissioning Adults,Redacted - Personal Data,DIRECT PAYMENTS,414.28,0,Direct Payments
06/11/2018,Strategic Commissioning Adults,Redacted - Personal Data,DIRECT PAYMENTS,414.28,0,Direct Payments
06/11/2018,Strategic Commissioning Adults,Redacted - Personal Data,DIRECT PAYMENTS,307.97,0,Foster Carers
06/11/2018,Strategic Commissioning Adults,Redacted - Personal Data,DIRECT PAYMENTS,307.97,0,Foster Carers
06/11/2018,Strategic Commissioning Adults,Redacted - Personal Data,DIRECT PAYMENTS,307.97,0,Foster Carers
06/11/2018,Strategic Commissioning Adults,Redacted - Personal Data,DIRECT PAYMENTS,307.97,0,Foster Carers
06/11/2018,Strategic Commissioning Adults,Redacted - Personal Data,DIRECT PAYMENTS,269.14,0,Foster Carers
06/11/2018,Strategic Commissioning Adults,Redacted - Personal Data,DIRECT PAYMENTS,269.14,0,Foster Carers
06/11/2018,Strategic Commissioning Adults,Redacted - Personal Data,DIRECT PAYMENTS,269.14,0,Foster Carers
06/11/2018,Strategic Commissioning Adults,Redacted - Personal Data,DIRECT PAYMENTS,269.14,0,Foster Carers
06/11/2018,Strategic Commissioning Adults,Redacted - Personal Data,DIRECT PAYMENTS,377.73,0,Foster Carers
06/11/2018,Strategic Commissioning Adults,Redacted - Personal Data,DIRECT PAYMENTS,377.73,0,Foster Carers
06/11/2018,Strategic Commissioning Adults,Redacted - Personal Data,DIRECT PAYMENTS,377.73,0,Foster Carers
06/11/2018,Strategic Commissioning Adults,Redacted - Personal Data,DIRECT PAYMENTS,377.73,0,Foster Carers
06/11/2018,Strategic Commissioning CYPS,Shebahl Support Services Ltd,KINSHIP PLACEMENT - PRIVATE CONTRACTORS PAYMENT,"2,321.43",0,Supplier
06/11/2018,Strategic Commissioning CYPS,Shebahl Support Services Ltd,SUPPORTED OTHER ACCOMMODATION - PRIVATE CONTRACTORS PAYMENT,"2,600.00",0,Supplier
06/11/2018,Strategic Commissioning CYPS,Shebahl Support Services Ltd,SUPPORTED OTHER ACCOMMODATION - PRIVATE CONTRACTORS PAYMENT,"1,300.00",0,Supplier
06/11/2018,Strategic Commissioning CYPS,Sinead King,LEGAL FEES,"2,275.00",0,Commercial Supplier
06/11/2018,Dedicated Schools Budget Dedicated Schools Budget,St Helens t/a Our Lady of Grace Academy,PAYMENTS TO VOLUNTARY SECTOR,"19,401.00",0,Individuals
06/11/2018,Strategic Commissioning Adults,Redacted - Personal Data,DIRECT PAYMENTS,758.50,0,Foster Carers
06/11/2018,Strategic Commissioning Adults,Redacted - Personal Data,DIRECT PAYMENTS,758.50,0,Foster Carers
06/11/2018,Strategic Commissioning Adults,Redacted - Personal Data,DIRECT PAYMENTS,758.50,0,Foster Carers
06/11/2018,Strategic Commissioning Adults,Redacted - Personal Data,DIRECT PAYMENTS,758.50,0,Foster Carers
06/11/2018,Strategic Commissioning Adults,Redacted - Personal Data,DIRECT PAYMENTS,758.50,0,Foster Carers
06/11/2018,Strategic Commissioning Adults,Redacted - Personal Data,DIRECT PAYMENTS,758.50,0,Foster Carers
06/11/2018,Strategic Commissioning CYPS,Sunbeam Fostering Agency Ltd,RESIDENTIAL PLACEMENTS - PRIVATE CONTRACTORS PAYMENT,"2,780.12",0,Commercial Supplier
06/11/2018,Strategic Commissioning CYPS,Sunbeam Fostering Agency Ltd,RESIDENTIAL PLACEMENTS - PRIVATE CONTRACTORS PAYMENT,"2,880.00",0,Commercial Supplier
06/11/2018,Strategic Commissioning CYPS,Sunshine Contact Centre Ltd,CONTACT COSTS (PLACEMENTS),760.00,0,Supplier
06/11/2018,Strategic Commissioning Adults,Redacted - Personal Data,DIRECT PAYMENTS,635.01,0,Foster Carers
06/11/2018,Strategic Commissioning Adults,Redacted - Personal Data,DIRECT PAYMENTS,635.01,0,Foster Carers
06/11/2018,Strategic Commissioning Adults,Redacted - Personal Data,DIRECT PAYMENTS,635.01,0,Foster Carers
06/11/2018,Strategic Commissioning Adults,Redacted - Personal Data,DIRECT PAYMENTS,635.01,0,Foster Carers
06/11/2018,oneSource oS Exchequer & Transactional Services,Telsolutions Ltd,ICT MAINTENANCE AND SUPPORT,"1,712.83",0,Commercial Supplier
06/11/2018,Strategic Commissioning Adults,Redacted - Personal Data,DIRECT PAYMENTS,303.06,0,Foster Carers
06/11/2018,Strategic Commissioning Adults,Redacted - Personal Data,DIRECT PAYMENTS,303.06,0,Foster Carers
06/11/2018,Strategic Commissioning Adults,Redacted - Personal Data,DIRECT PAYMENTS,303.06,0,Foster Carers
06/11/2018,Strategic Commissioning Adults,Redacted - Personal Data,DIRECT PAYMENTS,303.06,0,Foster Carers
06/11/2018,Strategic Commissioning Adults,Redacted - Personal Data,DIRECT PAYMENTS,300.92,0,Foster Carers
06/11/2018,Strategic Commissioning Adults,Redacted - Personal Data,DIRECT PAYMENTS,300.92,0,Foster Carers
06/11/2018,Strategic Commissioning Adults,Redacted - Personal Data,DIRECT PAYMENTS,300.92,0,Foster Carers
06/11/2018,Strategic Commissioning Adults,Redacted - Personal Data,DIRECT PAYMENTS,300.92,0,Foster Carers
06/11/2018,RMS RMS,Travis Perkins Trading Company Ltd,"PURCHASE - EQUIPMENT, FURNITURE AND MATERIALS","271,316.62",0,Commercial Supplier
06/11/2018,RMS RMS,Travis Perkins Trading Company Ltd,BUILDING ALTERATIONS AND MATERIALS,"65,099.33",0,Commercial Supplier
06/11/2018,Strategic Commissioning Adults,Trinity Independent Living,PRIVATE CONTRACTORS PAYMENT - OTHER,"7,286.88",0,Supplier
06/11/2018,Strategic Commissioning Adults,Trinity Independent Living,PRIVATE CONTRACTORS PAYMENT - OTHER,"8,391.54",0,Supplier
06/11/2018,Strategic Commissioning Adults,Redacted - Personal Data,DIRECT PAYMENTS,470.42,0,Foster Carers
06/11/2018,Strategic Commissioning Adults,Redacted - Personal Data,DIRECT PAYMENTS,470.42,0,Foster Carers
06/11/2018,Strategic Commissioning Adults,Redacted - Personal Data,DIRECT PAYMENTS,470.42,0,Foster Carers
06/11/2018,Strategic Commissioning Adults,Redacted - Personal Data,DIRECT PAYMENTS,470.42,0,Foster Carers
06/11/2018,Strategic Commissioning CYPS,Unique Property Services & Investment Ltd,SECTION 17 - PRIVATE CONTRACTORS PAYMENT,"2,220.00",0,Commercial Supplier
06/11/2018,Strategic Commissioning Adults,Uniting Friends,DAYCARE - PRIVATE CONTRACTORS PAYMENT,672.00,0,Supplier
06/11/2018,Strategic Commissioning Adults,Uniting Friends,DAYCARE - PRIVATE CONTRACTORS PAYMENT,"1,725.50",0,Supplier
06/11/2018,Strategic Commissioning Adults,Uniting Friends,DAYCARE - PRIVATE CONTRACTORS PAYMENT,"1,585.10",0,Supplier
06/11/2018,Strategic Commissioning Adults,Weston Ltd,SPECIALIST EQUIPMENT FOR SERVICE PROVISION,"4,386.33",0,Supplier
06/11/2018,Strategic Commissioning Adults,Redacted - Personal Data,DIRECT PAYMENTS,591.64,0,Foster Carers
06/11/2018,Strategic Commissioning Adults,Redacted - Personal Data,DIRECT PAYMENTS,591.64,0,Foster Carers
06/11/2018,Strategic Commissioning Adults,Redacted - Personal Data,DIRECT PAYMENTS,591.64,0,Foster Carers
06/11/2018,Strategic Commissioning Adults,Redacted - Personal Data,DIRECT PAYMENTS,591.64,0,Foster Carers
06/11/2018,Strategic Commissioning Adults,Redacted - Personal Data,DIRECT PAYMENTS,363.30,0,Foster Carers
06/11/2018,Strategic Commissioning Adults,Redacted - Personal Data,DIRECT PAYMENTS,363.30,0,Foster Carers
06/11/2018,Strategic Commissioning Adults,Redacted - Personal Data,DIRECT PAYMENTS,363.30,0,Foster Carers
06/11/2018,Strategic Commissioning Adults,Redacted - Personal Data,DIRECT PAYMENTS,363.30,0,Foster Carers
06/11/2018,Strategic Commissioning CYPS,i O Associates Ltd,STAFF RECRUITMENT COSTS,"7,360.00",0,Commercial Supplier
06/11/2018,Strategic Commissioning CYPS,i O Associates Ltd,STAFF RECRUITMENT COSTS,"6,900.00",0,Commercial Supplier
07/11/2018,Dedicated Schools Budget Dedicated Schools Budget,Redacted - Personal Data,INDEPENDENT UNITS WITHIN THE COUNCIL,"60,000.00",0,Supplier
07/11/2018,Strategic Commissioning Adults,Abba Day Care Centre,DAYCARE - PRIVATE CONTRACTORS PAYMENT,"2,800.00",0,Supplier
07/11/2018,Strategic Commissioning CYPS,Alpha Care Services Ltd,SUPPORTED OTHER ACCOMMODATION - PRIVATE CONTRACTORS PAYMENT,"3,599.99",0,Supplier
07/11/2018,Strategic Commissioning CYPS,Alpha Care Services Ltd,SUPPORTED OTHER ACCOMMODATION - PRIVATE CONTRACTORS PAYMENT,"3,599.99",0,Supplier
07/11/2018,Strategic Commissioning CYPS,Alpha Care Services Ltd,SUPPORTED OTHER ACCOMMODATION - PRIVATE CONTRACTORS PAYMENT,"2,399.99",0,Supplier
07/11/2018,Strategic Commissioning CYPS,Alpha Care Services Ltd,SUPPORTED OTHER ACCOMMODATION - PRIVATE CONTRACTORS PAYMENT,"2,399.99",0,Supplier
07/11/2018,Strategic Commissioning CYPS,Alpha Care Services Ltd,SUPPORTED OTHER ACCOMMODATION - PRIVATE CONTRACTORS PAYMENT,"3,199.99",0,Supplier
07/11/2018,Strategic Commissioning CYPS,Ansacare Fostering Agency Ltd,RESIDENTIAL PLACEMENTS - PRIVATE CONTRACTORS PAYMENT,"3,212.68",0,Commercial Supplier
07/11/2018,Strategic Commissioning Enforcement and Safety,Armstrong York Asbestos Environmental Ltd,PROFESSIONAL SERVICES - GENERAL,875.00,0,Commercial Supplier
07/11/2018,Strategic Commissioning Enforcement and Safety,Askews and Holts Library Services Ltd,"BOOKS, PUBLICATIONS AND RESOURCES",672.49,0,Commercial Supplier
07/11/2018,Dedicated Schools Budget Dedicated Schools Budget,Autism Partnership Uk Ltd,PROFESSIONAL SERVICES - GENERAL,585.00,0,Commercial Supplier
07/11/2018,Strategic Commissioning Adults,Bloom Procurement Services Ltd,CONSULTANCY FEES,"5,071.43",0,Commercial Supplier
07/11/2018,Strategic Commissioning Adults,Bloom Procurement Services Ltd,CONSULTANCY FEES,"8,709.80",0,Commercial Supplier
07/11/2018,Strategic Commissioning Adults,Bloom Procurement Services Ltd,CONSULTANCY FEES,"40,012.47",0,Commercial Supplier
07/11/2018,Strategic Commissioning Adults,Bloom Procurement Services Ltd,CONSULTANCY FEES,"5,071.43",0,Commercial Supplier
07/11/2018,Strategic Commissioning Adults,Bloom Procurement Services Ltd,CONSULTANCY FEES,"5,071.43",0,Commercial Supplier
07/11/2018,Strategic Commissioning Enforcement and Safety,Blue Diamond STL,"PURCHASE - EQUIPMENT, FURNITURE AND MATERIALS",270.00,0,Commercial Supplier
07/11/2018,Strategic Commissioning Enforcement and Safety,Blue Diamond STL,"PURCHASE - EQUIPMENT, FURNITURE AND MATERIALS",300.00,0,Commercial Supplier
07/11/2018,Strategic Commissioning Enforcement and Safety,Bolinda UK Ltd,"BOOKS, PUBLICATIONS AND RESOURCES","1,500.00",0,Commercial Supplier
07/11/2018,Strategic Commissioning Enforcement and Safety,Bolinda UK Ltd,"BOOKS, PUBLICATIONS AND RESOURCES","2,500.00",0,Commercial Supplier
07/11/2018,Strategic Commissioning Enforcement and Safety,Bolinda UK Ltd,"BOOKS, PUBLICATIONS AND RESOURCES",392.70,0,Commercial Supplier
07/11/2018,Strategic Commissioning Enforcement and Safety,Bolinda UK Ltd,"BOOKS, PUBLICATIONS AND RESOURCES",403.90,0,Commercial Supplier
07/11/2018,Strategic Commissioning Enforcement and Safety,Bolinda UK Ltd,"BOOKS, PUBLICATIONS AND RESOURCES",403.90,0,Commercial Supplier
07/11/2018,Strategic Commissioning Enforcement and Safety,Bolinda UK Ltd,"BOOKS, PUBLICATIONS AND RESOURCES",402.30,0,Commercial Supplier
07/11/2018,RMS RMS,British Standards Institution,BUILDING ALTERATIONS AND MATERIALS,"2,679.00",0,Commercial Supplier
07/11/2018,oneSource - Non Shared Asset Management,Building A Future (Newham Schools) Limited,"MAINTENANCE - EQUIPMENT, FURNITURE AND MATERIALS","2,521.94",0,Supplier
07/11/2018,oneSource - Non Shared Asset Management,Building A Future (Newham Schools) Limited,"MAINTENANCE - EQUIPMENT, FURNITURE AND MATERIALS","14,423.76",0,Supplier
07/11/2018,oneSource - Non Shared Asset Management,Building A Future (Newham Schools) Limited,"MAINTENANCE - EQUIPMENT, FURNITURE AND MATERIALS","7,125.30",0,Supplier
07/11/2018,oneSource - Non Shared Asset Management,Building A Future (Newham Schools) Limited,"MAINTENANCE - EQUIPMENT, FURNITURE AND MATERIALS",522.72,0,Supplier
07/11/2018,Regeneration and Planning Economic Regeneration,Building Crafts College,PROFESSIONAL SERVICES - GENERAL,800.00,0,Commercial Supplier
07/11/2018,Regeneration and Planning Economic Regeneration,Building Crafts College,PROFESSIONAL SERVICES - GENERAL,"14,500.00",0,Commercial Supplier
07/11/2018,Strategic Commissioning CYPS,Cameron Support Services Ltd,SUPPORTED OTHER ACCOMMODATION - PRIVATE CONTRACTORS PAYMENT,"2,600.00",0,Supplier
07/11/2018,Strategic Commissioning CYPS,Cameron Support Services Ltd,SUPPORTED OTHER ACCOMMODATION - PRIVATE CONTRACTORS PAYMENT,"3,400.00",0,Supplier
07/11/2018,Strategic Commissioning CYPS,Cameron Support Services Ltd,SUPPORTED OTHER ACCOMMODATION - PRIVATE CONTRACTORS PAYMENT,"2,600.00",0,Supplier
07/11/2018,Strategic Commissioning CYPS,Cameron Support Services Ltd,SUPPORTED OTHER ACCOMMODATION - PRIVATE CONTRACTORS PAYMENT,"11,655.84",0,Supplier
07/11/2018,Strategic Commissioning CYPS,Cameron Support Services Ltd,SUPPORTED OTHER ACCOMMODATION - PRIVATE CONTRACTORS PAYMENT,"3,400.00",0,Supplier
07/11/2018,Strategic Commissioning CYPS,Children's Services Network Ltd t/a WillisPalmer,LEGAL FEES,381.75,0,Commercial Supplier
07/11/2018,Strategic Commissioning Adults,Chosen Care Group Ltd,HOME CARE - PRIVATE CONTRACTORS PAYMENT,921.88,0,Supplier
07/11/2018,Customer & Strategic Services Communications,Chris Russell,EVENTS,"1,260.00",0,Commercial Supplier
07/11/2018,Strategic Commissioning Adults,Claremont Clinic.,PAYMENT TO HEALTH AUTHORITIES,"2,772.00",0,Supplier
07/11/2018,Strategic Commissioning Adults,Claremont Clinic.,PAYMENT TO HEALTH AUTHORITIES,858.42,0,Supplier
07/11/2018,Strategic Commissioning Adults,Claremont Clinic.,PAYMENT TO HEALTH AUTHORITIES,"1,251.82",0,Supplier
07/11/2018,oneSource - Non Shared LBN Transactional Services,Computershare Voucher Services,PROFESSIONAL SERVICES - GENERAL,774.00,0,Commercial Supplier
07/11/2018,Strategic Commissioning CYPS,Crown Records Management Ltd,STORAGE AND ARCHIVING,"2,264.00",0,Supplier
07/11/2018,Strategic Commissioning CYPS,Crown Records Management Ltd,STORAGE AND ARCHIVING,"2,288.93",0,Supplier
07/11/2018,oneSource oS Legal & Governance,Crown Records Management Ltd,STORAGE AND ARCHIVING,"1,339.31",0,Supplier
07/11/2018,Strategic Commissioning CYPS,Crown Records Management Ltd,STORAGE AND ARCHIVING,"2,217.79",0,Supplier
07/11/2018,Strategic Commissioning Adults,Drs Care Homes Limited,RESIDENTIAL PLACEMENTS - PRIVATE CONTRACTORS PAYMENT,"3,400.00",0,Supplier
07/11/2018,Strategic Commissioning Community and Environment,E H Roberts-Penet Group Ltd,DIRECT TRANSPORT,"1,495.00",0,Supplier
07/11/2018,Strategic Commissioning Community and Environment,E H Roberts-Penet Group Ltd,DIRECT TRANSPORT,391.00,0,Supplier
07/11/2018,Strategic Commissioning Community and Environment,E H Roberts-Penet Group Ltd,DIRECT TRANSPORT,390.00,0,Supplier
07/11/2018,Strategic Commissioning Community and Environment,E H Roberts-Penet Group Ltd,DIRECT TRANSPORT,282.00,0,Supplier
07/11/2018,Strategic Commissioning Community and Environment,E H Roberts-Penet Group Ltd,DIRECT TRANSPORT,476.66,0,Supplier
07/11/2018,Strategic Commissioning Community and Environment,E H Roberts-Penet Group Ltd,DIRECT TRANSPORT,300.00,0,Supplier
07/11/2018,Strategic Commissioning Community and Environment,E H Roberts-Penet Group Ltd,DIRECT TRANSPORT,375.00,0,Supplier
07/11/2018,Strategic Commissioning Community and Environment,E H Roberts-Penet Group Ltd,DIRECT TRANSPORT,375.00,0,Supplier
07/11/2018,Strategic Commissioning Community and Environment,E H Roberts-Penet Group Ltd,DIRECT TRANSPORT,310.50,0,Supplier
07/11/2018,Strategic Commissioning Community and Environment,E H Roberts-Penet Group Ltd,DIRECT TRANSPORT,300.00,0,Supplier
07/11/2018,Strategic Commissioning Community and Environment,E H Roberts-Penet Group Ltd,DIRECT TRANSPORT,391.00,0,Supplier
07/11/2018,Strategic Commissioning Community and Environment,E H Roberts-Penet Group Ltd,DIRECT TRANSPORT,414.00,0,Supplier
07/11/2018,Strategic Commissioning Community and Environment,E H Roberts-Penet Group Ltd,DIRECT TRANSPORT,391.00,0,Supplier
07/11/2018,Strategic Commissioning Community and Environment,E H Roberts-Penet Group Ltd,DIRECT TRANSPORT,414.00,0,Supplier
07/11/2018,Strategic Commissioning Community and Environment,E H Roberts-Penet Group Ltd,DIRECT TRANSPORT,322.00,0,Supplier
07/11/2018,Strategic Commissioning Community and Environment,E H Roberts-Penet Group Ltd,DIRECT TRANSPORT,759.00,0,Supplier
07/11/2018,Strategic Commissioning Community and Environment,E H Roberts-Penet Group Ltd,DIRECT TRANSPORT,310.50,0,Supplier
07/11/2018,Strategic Commissioning Community and Environment,E H Roberts-Penet Group Ltd,DIRECT TRANSPORT,322.00,0,Supplier
07/11/2018,Strategic Commissioning Community and Environment,E H Roberts-Penet Group Ltd,DIRECT TRANSPORT,391.00,0,Supplier
07/11/2018,Strategic Commissioning Community and Environment,E H Roberts-Penet Group Ltd,DIRECT TRANSPORT,460.00,0,Supplier
07/11/2018,Strategic Commissioning Community and Environment,E H Roberts-Penet Group Ltd,DIRECT TRANSPORT,414.00,0,Supplier
07/11/2018,Strategic Commissioning Community and Environment,E H Roberts-Penet Group Ltd,DIRECT TRANSPORT,322.00,0,Supplier
07/11/2018,Strategic Commissioning Adults,East End Medical Centre,PAYMENT TO HEALTH AUTHORITIES,"1,872.00",0,Commercial Supplier
07/11/2018,Strategic Commissioning Adults,East End Medical Centre,PAYMENT TO HEALTH AUTHORITIES,"2,088.00",0,Commercial Supplier
07/11/2018,Strategic Commissioning Community and Environment,Egbert H Taylor & Company Ltd,HIGHWAY SERVICES,"2,840.50",0,Commercial Supplier
07/11/2018,Strategic Commissioning Community and Environment,Egbert H Taylor & Company Ltd,HIGHWAY SERVICES,"6,665.80",0,Commercial Supplier
07/11/2018,Strategic Commissioning Community and Environment,Egbert H Taylor & Company Ltd,HIGHWAY SERVICES,"1,080.00",0,Commercial Supplier
07/11/2018,Strategic Commissioning Community and Environment,First Parts Solutions,HIGHWAY SERVICES,258.51,0,Supplier
07/11/2018,Strategic Commissioning CYPS,Forest Care Services Ltd,CLIENT SUPPORT - THIRD PARTY,553.83,0,Non Commercial Supplier
07/11/2018,Strategic Commissioning CYPS,Forest Care Services Ltd,CLIENT SUPPORT - THIRD PARTY,632.96,0,Non Commercial Supplier
07/11/2018,Strategic Commissioning CYPS,Forest Care Services Ltd,CLIENT SUPPORT - THIRD PARTY,"1,200.00",0,Non Commercial Supplier
07/11/2018,Strategic Commissioning CYPS,Forest Care Services Ltd,CLIENT SUPPORT - THIRD PARTY,"1,200.00",0,Non Commercial Supplier
07/11/2018,Strategic Commissioning CYPS,Forest Care Services Ltd,CLIENT SUPPORT - THIRD PARTY,"1,200.00",0,Non Commercial Supplier
07/11/2018,Strategic Commissioning CYPS,Forest Care Services Ltd,CLIENT SUPPORT - THIRD PARTY,"1,200.00",0,Non Commercial Supplier
07/11/2018,Customer & Strategic Services Communications,Gorkana Group Ltd,"PURCHASE - EQUIPMENT, FURNITURE AND MATERIALS","1,697.87",0,Supplier
07/11/2018,Housing Revenue Account HRA,Harding Bros Electrical Ltd,BUILDING ALTERATIONS AND MATERIALS,"3,274.98",0,CIS
07/11/2018,Strategic Commissioning Community and Environment,Harris Commercial Repairs Ltd,"PURCHASE - EQUIPMENT, FURNITURE AND MATERIALS",888.75,0,Supplier
07/11/2018,Strategic Commissioning Community and Environment,Harris Commercial Repairs Ltd,"PURCHASE - EQUIPMENT, FURNITURE AND MATERIALS",990.66,0,Supplier
07/11/2018,Strategic Commissioning Adults,Help In Newham Ltd,OTHER SOCIAL SERVICES TRANSFER PAYMENTS,"1,336.00",0,Supplier
07/11/2018,Strategic Commissioning Adults,Help In Newham Ltd,DAYCARE - PRIVATE CONTRACTORS PAYMENT,432.00,0,Supplier
07/11/2018,Strategic Commissioning Adults,Help In Newham Ltd,HOME CARE - PRIVATE CONTRACTORS PAYMENT,810.00,0,Supplier
07/11/2018,Strategic Commissioning Adults,Help In Newham Ltd,HOME CARE - PRIVATE CONTRACTORS PAYMENT,864.00,0,Supplier
07/11/2018,Strategic Commissioning Community and Environment,Helping Hand Co Ltd,HIGHWAY SERVICES,315.00,0,Non Commercial Supplier
